{"text_format":"1","workbook":"xlsx","n_sheets":4,"sheets":["hodnoceni","vysledky","knt_tab","ranking"],"not_rendered":{"charts":0,"images":0,"macros":1,"external_links":0,"defined_names":3,"comments":0,"pivot_tables":14},"unopened":[],"bounds":{"document_bytes":16777216,"sheet_cells":100000,"rows_first":2000,"rows_last":500,"rows_between":2000,"halvings":0,"cell_chars":16384,"cell_head_chars":4096},"cells_cut":0,"cells_raw":0,"read":"whole","date_system":"1900"}

{"sheet":"hodnoceni","index":0,"n_rows":63,"n_cols":9,"rows_kept":63,"cut":false,"hidden":false,"merged":[]}
["1.      Kritéria pro bodování jednotlivců:"]
[]
["Každý závodník obdrží :"]
["a)","1 bod za vyhraný zápas v turnaji jednotlivců"]
["b)","2 body za vyhraný zápas v turnaji družstev"]
["c)","1 bod za remízu v turnaji družstev"]
["d)","počet bodů za umístění podle typu soutěže"]
[]
["1.1.  Mistrovské soutěže ( MK, MČR, ME, MS, soutěže družstev):"]
[]
["1.1.1        MK:",null,null,null,null,"1.1.3        ME:"]
["             ","1. místo                 7 bodů",null,null,null,"             ","1. místo                 50 bodů"]
["             ","2. místo                 5 bodů",null,null,null,"             ","2. místo                 40 bodů"]
["             ","3. místo                 4 body",null,null,null,"             ","3. místo                 35 bodů "]
[null,null,null,null,null,null,"4. místo                 30 bodů"]
[" ",null,null,null,null,"             ","5. místo                 30 bodů"]
[null,null,null,null,null,null,"6. místo                 25 bodů"]
[null,null,null,null,null,"             ","7. místo                 25 bodů"]
[null,null,null,null,null,"             ","9. místo                 20 bodů"]
["1.1.2        MČR:"]
["             ","1. místo                 20 bodů",null,null,null,"1.1.4        MS:"]
["             ","2. místo                 15 bodů",null,null,null,null,"1. místo                100 bodů"]
["             ","3. místo                 10 bodů ",null,null,null,null,"2. místo                 80 bodů"]
["             ","4. místo                   7 bodů ",null,null,null,null,"3. místo                 70 bodů "]
["             ","5. místo                   7 bodů",null,null,null,null,"5. místo                 60 bodů"]
["             ","6. místo                   5 bodů",null,null,null,null,"7. místo                 50 bodů"]
[null,"7. místo                   5 bodů",null,null,null,null,"9. místo                 40 bodů"]
[]
["1.2.    Nemistrovské soutěže ( MC, PK, VC, MVC, KT, MT, PČR, EJU, soutěže družstev):"]
[]
["1.2.1        MC a ostatní :",null,null,null,null,"1.2.2        VC, MVC, PK a PSO:"]
["             ","1. místo                  4      body",null,null,null,null,"1.místo                  6    bodů"]
["             ","2. místo                  3      body",null,null,null,null,"2. místo                 5    bodů"]
["             ","3. místo                  2      body ",null,null,null,null,"3. místo                 3    body "]
[null,null,null,null,null," "]
["1.2.3        KT, MT a PČR:",null,null,null,null,"1.2.4        EJU:"]
["             ","1. místo               10 bodů",null,null,null,"           ","1. místo                 35 bodů"]
["             ","2. místo                 7 bodů",null,null,null,"             ","2. místo                 30 bodů"]
["             ","3. místo                 5 bodů ",null,null,null,"             ","3. místo                 25 bodů "]
["             ","4. místo                 3 body ",null,null,null,"             ","5. místo                 20 bodů "]
["             ","5. místo                 3 body ",null,null,null,"             ","7. místo                 15 bodů"]
["             ","6. místo                 2 body ",null,null,null,"             ","9. místo                 10 bodů"]
[null,"7. místo                 2 body"]
[null,null,null,null,null,"1.2.4        EYOF:"]
[null,null,null,null,null,"           ","1. místo                 50 bodů"]
[null,null,null,null,null,"             ","2. místo                 40 bodů"]
[null,null,null,null,null,"             ","3. místo                 35 bodů "]
[null,null,null,null,null,"             ","5. místo                 30 bodů "]
[null,null,null,null,null,"             ","7. místo                 25 bodů"]
[null,null,null,null,null,"             ","9. místo                 20 bodů"]
[]
["Legenda :"]
["MC","malá cena",null,null,null,null,null,"MK","mistrovství kraje"]
["VC ","ostatní turnaje zařazené do kal. ČSJu",null,null,null,null,null,"MČR","mistrovství České republiky"]
["MVC","mezinárodní velká cena",null,null,null,null,null,"ME","mistrovství Evropy"]
["PK","přebor kraje",null,null,null,null,null,"DL","dorostenecká liga"]
["PČR","přebor České republiky",null,null,null,null,null,"EXL","extraliga mužů"]
["KT","kvalifikační turnaj na PČR, MČR",null,null,null,null,null,"PSO","přebor spojených oblastí"]
["MT","turnaj za účasti více než 3 států",null,null,null,null,null,"MS","mistrovství světa"]
["EJU","turnaj zařazen do kalendáře Evropské federace juda",null,null,null,null,null,"EYOF","Evropský olympijský festival mládeže"]
[]
["V Ostravě 31.10.2011"]
["M. Pavlica"]

{"sheet":"vysledky","index":1,"n_rows":996,"n_cols":23,"rows_kept":996,"cut":false,"hidden":false,"merged":[]}
["datum","nazev","typ_souteze","jedn./dr.","Primeni","Jmeno","umisteni","kategorie","vaha","vyhr_zap","rem_zap","prohr_zap","body_um","body_zap","zavodnik","body",null,"Typ soutěže",null,"Bodování"]
["2018-01-13","VII. MT - Překonáme hranice - Bielsko Biala","MVC","j","Přichystal","Leon","bez","mláďata","27",1,0,1,{"$f":"IF(ISNA(VLOOKUP(C2&G2,$V$3:$W$92,2,FALSE)),0,VLOOKUP(C2&G2,$V$3:$W$92,2,FALSE))","v":0},{"$f":"IF(D2=\"d\",SUM(J2*2,K2),J2)","v":1},{"$f":"E2&\" \"&F2","v":"Přichystal Leon"},{"$f":"SUM(M2,N2)","v":1},null,"MC",null,"typ_souteze","umisteni","kód","body"]
["2018-01-13","VII. MT - Překonáme hranice - Bielsko Biala","MVC","j","Ciora","Jakub",3,"mláďata","28",2,0,1,3,{"$f":"IF(D3=\"d\",SUM(J3*2,K3),J3)","v":2},"Ciora Jakub",{"$f":"SUM(M3,N3)","v":5},null,"VC",null,"EJU",1,{"$f":"T3&U3","v":"EJU1"},35]
["2018-01-13","VII. MT - Překonáme hranice - Bielsko Biala","MVC","j","Huvar","Matyáš",3,"mláďata","35",3,0,1,3,3,"Huvar Matyáš",6,null,"MVC",null,"EJU",2,"EJU2",30]
["2018-01-13","VII. MT - Překonáme hranice - Bielsko Biala","MVC","j","Nuhlíček","Michal",3,"mláďata","27",5,0,1,3,5,"Nuhlíček Michal",8,null,"PK",null,"EJU",3,"EJU3",25]
["2018-01-13","VII. MT - Překonáme hranice - Bielsko Biala","MVC","j","Kuluris","Manolis",1,"mláďata","31",5,0,0,6,5,"Kuluris Manolis",11,null,"PCR",null,"EJU",5,"EJU5",20]
["2018-01-13","VII. MT - Překonáme hranice - Bielsko Biala","MVC","j","Vlk","František",7,"mláďata","45",1,0,2,0,1,"Vlk František",1,null,"PSO",null,"EJU",7,"EJU7",15]
["2018-01-13","VII. MT - Překonáme hranice - Bielsko Biala","MVC","j","Kaszperová","Kristýna",5,"mláďata","42",2,0,2,0,2,"Kaszperová Kristýna",2,null,"KT",null,"EJU",9,"EJU9",10]
["2018-01-13","VII. MT - Překonáme hranice - Bielsko Biala","MVC","j","Zwilling","Šimon","bez","mláďata","39",0,0,2,0,0,"Zwilling Šimon",0,null,"MK",null,"KT",1,"KT1",10]
["2018-01-13","VII. MT - Překonáme hranice - Bielsko Biala","MVC","j","Mařec","Tomáš","bez","mláďata","30",2,0,2,0,2,"Mařec Tomáš",2,null,"MCR",null,"KT",2,"KT2",7]
["2018-01-13","VII. MT - Překonáme hranice - Bielsko Biala","MVC","j","Kocmanová","Lucie",7,"mláďata","30",2,0,2,0,2,"Kocmanová Lucie",2,null,"DL",null,"KT",3,"KT3",5]
["2018-01-13","VII. MT - Překonáme hranice - Bielsko Biala","MVC","j","Martináková","Stela",7,"mladší žákyně","36",2,0,2,0,2,"Martináková Stela",2,null,"1.liga",null,"KT",4,"KT4",3]
["2018-01-13","VII. MT - Překonáme hranice - Bielsko Biala","MVC","j","Kulhánek","Adam","bez","mladší žáci","42",2,0,2,0,2,"Kulhánek Adam",2,null,"EXL",null,"KT",5,"KT5",3]
["2018-01-13","VII. MT - Překonáme hranice - Bielsko Biala","MVC","j","Schotli","Josef","bez","mladší žáci","36",0,0,1,0,0,"Schotli Josef",0,null,"EJU",null,"KT",6,"KT6",2]
["2018-01-13","VII. MT - Překonáme hranice - Bielsko Biala","MVC","j","Nuhlíček","Jakub","bez","mladší žáci","30",2,0,1,0,2,"Nuhlíček Jakub",2,null,"EYOF",null,"KT",7,{"$f":"T15&U15","v":"KT7"},2]
["2018-01-13","VII. MT - Překonáme hranice - Bielsko Biala","MVC","j","Vavřínová","Pavla",3,"starší žákyně","52",3,0,1,3,3,"Vavřínová Pavla",6,null,"ME",null,"MC",1,"MC1",4]
["2018-01-13","VII. MT - Překonáme hranice - Bielsko Biala","MVC","j","Kožušník","Vojtěch","bez","starší žáci","45",1,0,2,0,1,"Kožušník Vojtěch",1,null,"MT",null,"MC",2,"MC2",3]
["2018-01-13","VII. MT - Překonáme hranice - Bielsko Biala","MVC","j","Fulneček","Šimon","bez","starší žáci","+57",0,0,2,0,0,"Fulneček Šimon",0,null,"MS",null,"MC",3,"MC3",2]
["2018-01-20","Velká cena - České Třebové ","VC","j","Caletka","Petr",7,"starší žáci","50",2,0,2,0,2,"Caletka Petr",2,null,null,null,"MCR",1,"MCR1",20]
["2018-01-20","Velká cena - České Třebové ","VC","j","Kršňák","Filip",5,"starší žáci","55",2,0,2,0,2,"Kršňák Filip",2,null,"Věkové kategorie",null,"MCR",2,"MCR2",15]
["2018-01-20","Velká cena - České Třebové ","VC","j","Křížek","Šimon",2,"starší žáci","50",3,0,1,5,3,"Křížek Šimon",8,null,"mláďata",null,"MCR",3,"MCR3",10]
["2018-01-20","Velká cena - České Třebové ","VC","j","Kolář","Daniel","bez","starší žáci","55",1,0,2,0,1,"Kolář Daniel",1,null,"mladší žákyně",null,"MCR",4,"MCR4",7]
["2018-01-20","Velká cena - České Třebové ","VC","j","Tomek","David","bez","starší žáci","55",1,0,2,0,1,"Tomek David",1,null,"mladší žáci",null,"MCR",5,"MCR5",7]
["2018-01-20","Velká cena - České Třebové ","VC","j","Fráňa","Patrik","bez","starší žáci","42",0,0,1,0,0,"Fráňa Patrik",0,null,"starší žákyně",null,"MCR",6,"MCR6",5]
["2018-01-20","Velká cena - České Třebové ","VC","j","Čerchla","Michal",7,"starší žáci","50",2,0,2,0,2,"Čerchla Michal",2,null,"starší žáci",null,"MCR",7,{"$f":"T25&U25","v":"MCR7"},5]
["2018-01-20","Velká cena - České Třebové ","VC","j","Neckář","Matěj","bez","starší žáci","55",0,0,1,0,0,"Neckář Matěj",0,null,"dorostenky",null,"EYOF",1,"EYOF1",50]
["2018-01-20","Velká cena - České Třebové ","VC","j","Caletka","Michal","bez","starší žáci","42",0,0,1,0,0,"Caletka Michal",0,null,"dorostenci",null,"EYOF",2,"EYOF2",40]
["2018-01-20","Velká cena - České Třebové ","VC","j","Závodný","Matyáš",7,"starší žáci","55",2,0,2,0,2,"Závodný Matyáš",2,null,"juniorky",null,"EYOF",3,"EYOF3",35]
["2018-01-20","Velká cena - České Třebové ","VC","j","Lindovský","Jiří",3,"starší žáci","55",3,0,1,3,3,"Lindovský Jiří",6,null,"junioři",null,"EYOF",5,"EYOF5",30]
["2018-01-20","Velká cena - České Třebové ","VC","j","Čebík","Filip","bez","starší žáci","42",0,0,1,0,0,"Čebík Filip",0,null,"ženy",null,"EYOF",7,"EYOF7",25]
["2018-01-20","Velká cena - České Třebové ","VC","j","Čech","Jiří","bez","starší žáci","55",0,0,2,0,0,"Čech Jiří",0,null,"muži",null,"EYOF",9,"EYOF9",20]
["2018-01-20","Velká cena - České Třebové ","VC","j","Motyka","Dominik",1,"starší žáci","73",3,0,0,6,3,"Motyka Dominik",9,null,"veteráni",null,"ME",1,{"$f":"T32&U32","v":"ME1"},50]
["2018-01-20","Velká cena - České Třebové ","VC","j","Vontor","Tomáš",1,"starší žáci","34",3,0,0,6,3,"Vontor Tomáš",9,null,"kata",null,"ME",2,"ME2",40]
["2018-01-20","Velká cena - České Třebové ","VC","j","Freiwald","Richard",5,"starší žáci","46",2,0,2,0,2,"Freiwald Richard",2,null,null,null,"ME",3,"ME3",35]
["2018-01-20","Velká cena - České Třebové ","VC","j","Náplava","Richard",5,"starší žáci","73",2,0,2,0,2,"Náplava Richard",2,null,null,null,"ME",4,{"$f":"T35&U35","v":"ME4"},30]
["2018-01-20","Velká cena - České Třebové ","VC","j","Otáhalová","Magdaléna","bez","starší žákyně","52",0,0,4,0,0,"Otáhalová Magdaléna",0,null,null,null,"ME",5,"ME5",30]
["2018-01-20","Velká cena - České Třebové ","VC","j","Rodryčová","Adéla","bez","starší žákyně","48",0,0,2,0,0,"Rodryčová Adéla",0,null,null,null,"ME",6,{"$f":"T37&U37","v":"ME6"},25]
["2018-01-20","Velká cena - České Třebové ","VC","j","Kuželová","Dominika",4,"starší žákyně","57",2,0,3,0,2,"Kuželová Dominika",2,null,null,null,"ME",7,"ME7",25]
["2018-01-20","Velká cena - České Třebové ","VC","j","To","Vojtěch",2,"mláďata",null,0,0,2,5,0,"To Vojtěch",5,null,null,null,"ME",9,"ME9",20]
["2018-01-20","Velká cena - České Třebové ","VC","j","Bartošic","Sebastian",5,"mláďata",null,0,0,4,0,0,"Bartošic Sebastian",0,null,null,null,"MK",1,"MK1",7]
["2018-01-20","Velká cena - České Třebové ","VC","j","Macháček","Tomáš",5,"mláďata",null,0,0,4,0,0,"Macháček Tomáš",0,null,null,null,"MK",2,"MK2",5]
["2018-01-20","Velká cena - České Třebové ","VC","j","Stark","Vojtěch",5,"mláďata",null,0,0,4,0,0,"Stark Vojtěch",0,null,null,null,"MK",3,"MK3",4]
["2018-01-20","Velká cena - České Třebové ","VC","j","Vjaclovský","David",4,"mláďata",null,1,0,3,0,1,"Vjaclovský David",1,null,null,null,"MVC",1,"MVC1",6]
["2018-01-20","Velká cena - České Třebové ","VC","j","Kanclíř","Šimon",4,"mláďata",null,1,0,3,0,1,"Kanclíř Šimon",1,null,null,null,"MVC",2,"MVC2",5]
["2018-01-20","Velká cena - České Třebové ","VC","j","Zwilling","Šimon",2,"mláďata",null,3,0,1,5,3,"Zwilling Šimon",8,null,null,null,"MVC",3,"MVC3",3]
["2018-01-20","Velká cena - České Třebové ","VC","j","Románek","Jakub",5,"mláďata",null,0,0,4,0,0,"Románek Jakub",0,null,null,null,"PCR",1,"PCR1",10]
["2018-01-21","Velká cena - České Třebové ","VC","j","Václavková","Tereza",1,"dorostenky","52",1,0,1,6,1,"Václavková Tereza",7,null,null,null,"PCR",2,"PCR2",7]
["2018-01-21","Velká cena - České Třebové ","VC","j","Čerchlová","Markéta",4,"dorostenky","+70",1,0,3,0,1,"Čerchlová Markéta",1,null,null,null,"PCR",3,"PCR3",5]
["2018-01-21","Velká cena - České Třebové ","VC","j","Malaczynski","Filip",2,"dorostenci","55",2,0,1,5,2,"Malaczynski Filip",7,null,null,null,"PCR",4,"PCR4",3]
["2018-01-21","Velká cena - České Třebové ","VC","j","Motyka","Dominik","bez","dorostenci","73",0,0,1,0,0,"Motyka Dominik",0,null,null,null,"PCR",5,"PCR5",3]
["2018-01-21","Velká cena - České Třebové ","VC","j","Neuwirt","Petr",5,"mladší žáci","30",2,0,2,0,2,"Neuwirt Petr",2,null,null,null,"PCR",6,"PCR6",2]
["2018-01-21","Velká cena - České Třebové ","VC","j","Turek","Jakub","bez","mladší žáci","34",1,0,2,0,1,"Turek Jakub",1,null,null,null,"PCR",7,{"$f":"T52&U52","v":"PCR7"},2]
["2018-01-21","Velká cena - České Třebové ","VC","j","To","Adam","bez","mladší žáci","34",0,0,2,0,0,"To Adam",0,null,null,null,"PK",1,{"$f":"T53&U53","v":"PK1"},6]
["2018-01-21","Velká cena - České Třebové ","VC","j","Suchan","Jan","bez","mladší žáci","38",0,0,2,0,0,"Suchan Jan",0,null,null,null,"PK",2,"PK2",5]
["2018-01-21","Velká cena - České Třebové ","VC","j","Matušek","Jakub","bez","mladší žáci","38",1,0,2,0,1,"Matušek Jakub",1,null,null,null,"PK",3,"PK3",3]
["2018-01-21","Velká cena - České Třebové ","VC","j","Seibert","Marian",5,"mladší žáci","38",2,0,2,0,2,"Seibert Marian",2,null,null,null,"VC",1,"VC1",6]
["2018-01-21","Velká cena - České Třebové ","VC","j","Chmela","Tomáš","bez","mladší žáci","42",1,0,2,0,1,"Chmela Tomáš",1,null,null,null,"VC",2,"VC2",5]
["2018-01-21","Velká cena - České Třebové ","VC","j","Meixner","Michal","bez","mladší žáci","42",2,0,2,0,2,"Meixner Michal",2,null,null,null,"VC",3,"VC3",3]
["2018-01-21","Velká cena - České Třebové ","VC","j","Boháček","Jan",3,"mladší žáci","42",4,0,1,3,4,"Boháček Jan",7,null,null,null,"MT",1,"MT1",10]
["2018-01-21","Velká cena - České Třebové ","VC","j","Hegner","Leoš","bez","mladší žáci","50",0,0,2,0,0,"Hegner Leoš",0,null,null,null,"MT",2,"MT2",7]
["2018-01-21","Velká cena - České Třebové ","VC","j","Křenek","Jakub","bez","mladší žáci","50",0,0,2,0,0,"Křenek Jakub",0,null,null,null,"MT",3,"MT3",5]
["2018-01-21","Velká cena - České Třebové ","VC","j","Horák","Adam",1,"mladší žáci","+60",5,0,0,6,5,"Horák Adam",11,null,null,null,"MT",4,"MT4",3]
["2018-01-21","Velká cena - České Třebové ","VC","j","Rapčanová","Silvie",7,"mladší žákyně","32",1,0,2,0,1,"Rapčanová Silvie",1,null,null,null,"MT",5,"MT5",3]
["2018-01-21","Velká cena - České Třebové ","VC","j","Rapčanová","Alice",7,"mladší žákyně","40",1,0,2,0,1,"Rapčanová Alice",1,null,null,null,"MT",6,{"$f":"T64&U64","v":"MT6"},2]
["2018-01-21","Velká cena - České Třebové ","VC","j","Vavřínová","Pavla",2,"mladší žákyně","52",3,0,1,5,3,"Vavřínová Pavla",8,null,null,null,"MT",7,{"$f":"T65&U65","v":"MT7"},2]
["2018-01-21","Velká cena - České Třebové ","VC","j","Bukovjanová","Charlotte",7,"mladší žákyně","40",1,0,2,{"$f":"IF(ISNA(VLOOKUP(C66&G66,$V$3:$W$92,2,FALSE)),0,VLOOKUP(C66&G66,$V$3:$W$92,2,FALSE))","v":0},1,{"$f":"E66&\" \"&F66","v":"Bukovjanová Charlotte"},1,null,null,null,"DL",1,"DL1",20]
["2018-01-27","MT - Pohár Nadějí - Olomouc","VC","j","Kuncová","Viktorie",4,"dorostenky","48",2,0,3,0,{"$f":"IF(D67=\"d\",SUM(J67*2,K67),J67)","v":2},"Kuncová Viktorie",{"$f":"SUM(M67,N67)","v":2},null,null,null,"DL",2,"DL2",15]
["2018-01-27","MT - Pohár Nadějí - Olomouc","VC","j","Václavková","Tereza",3,"dorostenky","52",1,0,2,3,1,"Václavková Tereza",4,null,null,null,"DL",3,"DL3",10]
["2018-01-27","MT - Pohár Nadějí - Olomouc","VC","j","Čerchlová","Markéta",4,"dorostenky","+70",2,0,4,0,2,"Čerchlová Markéta",2,null,null,null,"DL",4,"DL4",7]
["2018-01-27","MT - Pohár Nadějí - Olomouc","VC","j","Bulka","Vojtěch",3,"dorostenci","50",3,0,2,3,3,"Bulka Vojtěch",6,null,null,null,"DL",5,"DL5",7]
["2018-01-27","MT - Pohár Nadějí - Olomouc","VC","j","Tycar","Štěpán","bez","dorostenci","55",0,0,1,0,0,"Tycar Štěpán",0,null,null,null,"DL",6,"DL6",5]
["2018-01-27","MT - Pohár Nadějí - Olomouc","VC","j","Malaczynski","Filip","bez","dorostenci","55",0,0,2,0,0,"Malaczynski Filip",0,null,null,null,"DL",7,{"$f":"T72&U72","v":"DL7"},5]
["2018-01-27","MT - Pohár Nadějí - Olomouc","VC","j","Šimek","Daniel",5,"dorostenci","66",3,0,2,0,3,"Šimek Daniel",3,null,null,null,"1.liga",1,{"$f":"T73&U73","v":"1.liga1"},15]
["2018-01-27","MT - Pohár Nadějí - Olomouc","VC","j","Mojžíšek","Lukáš","bez","dorostenci","81",0,0,1,0,0,"Mojžíšek Lukáš",0,null,null,null,"1.liga",2,"1.liga2",10]
["2018-01-27","MT - Pohár Nadějí - Olomouc","VC","j","Pavlica","Tomáš",3,"dorostenci","+90",1,0,2,3,1,"Pavlica Tomáš",4,null,null,null,"1.liga",3,"1.liga3",7]
["2018-01-27","MT - Pohár Nadějí - Olomouc","VC","j","Polášková","Kristýna",3,"juniorky","63",2,0,1,3,2,"Polášková Kristýna",5,null,null,null,"1.liga",4,"1.liga4",5]
["2018-01-27","MT - Pohár Nadějí - Olomouc","VC","j","Pustějovský","Tomáš",3,"junioři","90",3,0,2,3,3,"Pustějovský Tomáš",6,null,null,null,"1.liga",5,"1.liga5",4]
["2018-01-27","MT - Pohár Nadějí - Olomouc","VC","j","Silvestr","Matěj",3,"junioři","81",3,0,1,3,3,"Silvestr Matěj",6,null,null,null,"1.liga",6,"1.liga6",3]
["2018-01-27","MT - Pohár Nadějí - Olomouc","VC","j","Šmatelka","Ondřej","bez","junioři","73",0,0,1,0,0,"Šmatelka Ondřej",0,null,null,null,"1.liga",7,{"$f":"T79&U79","v":"1.liga7"},2]
["2018-01-27","MT - Pohár Nadějí - Olomouc","VC","j","Ondrašíková","Eva","bez","juniorky","+70",0,0,2,0,0,"Ondrašíková Eva",0,null,null,null,"EXL",1,{"$f":"T80&U80","v":"EXL1"},20]
["2018-02-10","MT - Bělorusko - Lida","MT","j","Václavková","Tereza",2,"dorostenky","52",3,0,1,7,3,"Václavková Tereza",10,null,null,null,"EXL",2,"EXL2",15]
["2018-02-10","MT - Bělorusko - Lida","MT","j","Čerchlová","Markéta",3,"dorostenky","+63",3,0,1,5,3,"Čerchlová Markéta",8,null,null,null,"EXL",3,"EXL3",10]
["2018-02-10","MT - Bělorusko - Lida","MT","j","Tycar","Štěpán","bez","dorostenci","50",0,0,2,0,0,"Tycar Štěpán",0,null,null,null,"EXL",4,"EXL4",7]
["2018-02-10","MT - Bělorusko - Lida","MT","j","Malaczynski","Filip","bez","dorostenci","50",1,0,1,0,1,"Malaczynski Filip",1,null,null,null,"EXL",5,"EXL5",7]
["2018-02-11","MT - Bělorusko - Lida","MT","j","Šimek","Daniel","bez","dorostenci","60",1,0,2,0,1,"Šimek Daniel",1,null,null,null,"EXL",6,"EXL6",5]
["2018-02-10","Grand Prix Banská Bystrica","MVC","j","Ciora","Jakub","bez","mláďata","27",1,0,2,0,1,"Ciora Jakub",1,null,null,null,"EXL",7,{"$f":"T86&U86","v":"EXL7"},5]
["2018-02-10","Grand Prix Banská Bystrica","MVC","j","Fojtík","Jiří Václav",5,"mláďata","27",2,0,2,0,2,"Fojtík Jiří Václav",2,null,null,null,"MS",1,{"$f":"T87&U87","v":"MS1"},100]
["2018-02-10","Grand Prix Banská Bystrica","MVC","j","Přichystal","Leon","bez","mláďata","27",1,0,2,0,1,"Přichystal Leon",1,null,null,null,"MS",2,"MS2",80]
["2018-02-10","Grand Prix Banská Bystrica","MVC","j","Kuluris","Manolis","bez","mláďata","30",0,0,1,0,0,"Kuluris Manolis",0,null,null,null,"MS",3,"MS3",70]
["2018-02-10","Grand Prix Banská Bystrica","MVC","j","Mařec","Tomáš","bez","mláďata","30",0,0,1,0,0,"Mařec Tomáš",0,null,null,null,"MS",5,"MS5",60]
["2018-02-10","Grand Prix Banská Bystrica","MVC","j","Huvar","Matyáš",2,"mláďata","38",4,0,1,5,4,"Huvar Matyáš",9,null,null,null,"MS",7,"MS7",50]
["2018-02-10","Grand Prix Banská Bystrica","MVC","j","Zwilling","Šimon",2,"mláďata","42",5,0,1,5,5,"Zwilling Šimon",10,null,null,null,"MS",9,"MS9",40]
["2018-02-10","Grand Prix Banská Bystrica","MVC","j","Vlk","František","bez","mláďata","46",1,0,2,0,1,"Vlk František",1]
["2018-02-10","Grand Prix Banská Bystrica","MVC","j","Turek","Jakub","bez","mladší žáci","34",1,0,1,0,1,"Turek Jakub",1]
["2018-02-10","Grand Prix Banská Bystrica","MVC","j","Vavřínová","Pavla",1,"mladší žákyně","52",5,0,0,6,5,"Vavřínová Pavla",11]
["2018-02-03","Dorostenecká liga - 1. kolo Brno","DL","d","Mojžíšek","Lukáš",null,"dorostenci","81",4,0,0,0,8,"Mojžíšek Lukáš",8]
["2018-02-03","Dorostenecká liga - 1. kolo Brno","DL","d","Pavlica","Tomáš",null,"dorostenci","+90",3,0,1,0,6,"Pavlica Tomáš",6]
["2018-02-03","Dorostenecká liga - 1. kolo Brno","DL","d","Bulka","Vojtěch",null,"dorostenci","50",2,0,0,0,4,"Bulka Vojtěch",4]
["2018-02-03","Dorostenecká liga - 1. kolo Brno","DL","d","Malaczynski","Filip",null,"dorostenci","55",2,0,1,0,4,"Malaczynski Filip",4]
["2018-02-03","Dorostenecká liga - 1. kolo Brno","DL","d","Kresta","Matěj",null,"dorostenci","73",2,0,2,0,4,"Kresta Matěj",4]
["2018-02-03","Dorostenecká liga - 1. kolo Brno","DL","d","Tycar","Štěpán",null,"dorostenci","50",1,0,2,0,2,"Tycar Štěpán",2]
["2018-02-03","Dorostenecká liga - 1. kolo Brno","DL","d","Kršňák","Filip",null,"dorostenci","60",1,0,2,0,2,"Kršňák Filip",2]
["2018-02-03","Dorostenecká liga - 1. kolo Brno","DL","d","Šimek","Daniel",null,"dorostenci","66",1,0,3,0,2,"Šimek Daniel",2]
["2018-02-03","Dorostenecká liga - 1. kolo Brno","DL","d","Motyka","Dominik",null,"dorostenci","73",1,0,0,0,2,"Motyka Dominik",2]
["2018-02-03","Dorostenecká liga - 1. kolo Brno","DL","d","Lindovský","Jiří",null,"dorostenci","55",0,0,0,0,0,"Lindovský Jiří",0]
["2018-02-18","GP - Ostrava - Český pohár","KT","j","Bulka","Vojtěch",1,"dorostenci","46",4,0,0,10,4,"Bulka Vojtěch",14]
["2018-02-18","GP - Ostrava - Český pohár","KT","j","Tycar","Štěpán",3,"dorostenci","50",3,0,1,5,3,"Tycar Štěpán",8]
["2018-02-18","GP - Ostrava - Český pohár","KT","j","Malaczynski","Filip",7,"dorostenci","50",2,0,2,2,2,"Malaczynski Filip",4]
["2018-02-18","GP - Ostrava - Český pohár","KT","j","Šimek","Daniel",7,"dorostenci","66",3,0,2,2,3,"Šimek Daniel",5]
["2018-02-18","GP - Ostrava - Český pohár","KT","j","Kresta","Matěj","bez","dorostenci","73",1,0,2,0,1,"Kresta Matěj",1]
["2018-02-18","GP - Ostrava - Český pohár","KT","j","Mojžíšek","Lukáš","bez","dorostenci","81",1,0,2,0,1,"Mojžíšek Lukáš",1]
["2018-02-18","GP - Ostrava - Český pohár","KT","j","Pavlica","Tomáš",3,"dorostenci","+90",3,0,1,5,3,"Pavlica Tomáš",8]
["2018-02-18","GP - Ostrava - Český pohár","KT","j","Kuncová","Viktorie",5,"dorostenky","48",1,0,2,3,1,"Kuncová Viktorie",4]
["2018-02-18","GP - Ostrava - Český pohár","KT","j","Václavková","Tereza",3,"dorostenky","52",4,0,1,5,4,"Václavková Tereza",9]
["2018-02-18","GP - Ostrava - Český pohár","KT","j","Čerchlová","Markéta",5,"dorostenky","+70",1,0,2,3,1,"Čerchlová Markéta",4]
["2018-02-18","GP - Ostrava - Český pohár","KT","j","Šmatelka","Ondřej","bez","junioři","73",0,0,1,0,0,"Šmatelka Ondřej",0]
["2018-02-18","GP - Ostrava - Český pohár","KT","j","Silvestr","Matěj",3,"junioři","81",3,0,1,5,3,"Silvestr Matěj",8]
["2018-02-18","GP - Ostrava - Český pohár","KT","j","Pustějovský","Tomáš",2,"junioři","90",2,0,1,7,2,"Pustějovský Tomáš",9]
["2018-02-18","GP - Ostrava - Český pohár","KT","j","Polášková","Kristýna",3,"juniorky","63",2,0,1,5,2,"Polášková Kristýna",7]
["2018-02-18","GP - Ostrava - Český pohár","KT","j","Martínková","Adéla",3,"juniorky","70",2,0,2,5,2,"Martínková Adéla",7]
["2018-02-18","GP - Ostrava - Český pohár","KT","j","Ondrašíková","Eva","bez","juniorky","+78",0,0,2,0,0,"Ondrašíková Eva",0]
["2018-02-17","GP - Ostrava - Český pohár","KT","j","Rapčanová","Silvie",5,"mladší žákyně","32",3,0,2,3,3,"Rapčanová Silvie",6]
["2018-02-17","GP - Ostrava - Český pohár","KT","j","Bukovjanová","Charlotte","bez","mladší žákyně","40",0,0,1,0,0,"Bukovjanová Charlotte",0]
["2018-02-17","GP - Ostrava - Český pohár","KT","j","Rapčanová","Alice","bez","mladší žákyně","40",0,0,1,0,0,"Rapčanová Alice",0]
["2018-02-17","GP - Ostrava - Český pohár","KT","j","Vavřínová","Pavla",3,"mladší žákyně","52",2,0,1,5,2,"Vavřínová Pavla",7]
["2018-02-17","GP - Ostrava - Český pohár","KT","j","To","Adam","bez","mladší žáci","34",0,0,2,0,0,"To Adam",0]
["2018-02-17","GP - Ostrava - Český pohár","KT","j","Turek","Jakub","bez","mladší žáci","34",0,0,2,0,0,"Turek Jakub",0]
["2018-02-17","GP - Ostrava - Český pohár","KT","j","Suchan","Jan","bez","mladší žáci","38",0,0,1,0,0,"Suchan Jan",0]
["2018-02-17","GP - Ostrava - Český pohár","KT","j","Seibert","Marian","bez","mladší žáci","38",1,0,1,0,1,"Seibert Marian",1]
["2018-02-17","GP - Ostrava - Český pohár","KT","j","Válek","Matěj","bez","mladší žáci","38",0,0,1,{"$f":"IF(ISNA(VLOOKUP(C130&G130,$V$3:$W$92,2,FALSE)),0,VLOOKUP(C130&G130,$V$3:$W$92,2,FALSE))","v":0},0,{"$f":"E130&\" \"&F130","v":"Válek Matěj"},0]
["2018-02-17","GP - Ostrava - Český pohár","KT","j","Pospíšil","Jan","bez","mladší žáci","42",0,0,1,0,{"$f":"IF(D131=\"d\",SUM(J131*2,K131),J131)","v":0},"Pospíšil Jan",{"$f":"SUM(M131,N131)","v":0}]
["2018-02-17","GP - Ostrava - Český pohár","KT","j","Meixner","Michal","bez","mladší žáci","42",0,0,1,0,0,"Meixner Michal",0]
["2018-02-17","GP - Ostrava - Český pohár","KT","j","Novák","Matyáš","bez","mladší žáci","42",0,0,1,0,0,"Novák Matyáš",0]
["2018-02-17","GP - Ostrava - Český pohár","KT","j","Boháček","Jan","bez","mladší žáci","42",1,0,1,0,1,"Boháček Jan",1]
["2018-02-17","GP - Ostrava - Český pohár","KT","j","Mikenda","Ondřej","bez","mladší žáci","42",0,0,1,0,0,"Mikenda Ondřej",0]
["2018-02-17","GP - Ostrava - Český pohár","KT","j","Kolář","Vojtěch","bez","mladší žáci","42",0,0,1,0,0,"Kolář Vojtěch",0]
["2018-02-17","GP - Ostrava - Český pohár","KT","j","Dryšl","Adam","bez","mladší žáci","46",0,0,1,0,0,"Dryšl Adam",0]
["2018-02-17","GP - Ostrava - Český pohár","KT","j","Blažek","Daniel","bez","mladší žáci","46",0,0,1,0,0,"Blažek Daniel",0]
["2018-02-17","GP - Ostrava - Český pohár","KT","j","Schwarz","Šimon","bez","mladší žáci","46",0,0,1,0,0,"Schwarz Šimon",0]
["2018-02-17","GP - Ostrava - Český pohár","KT","j","Huvar","Jakub",5,"mladší žáci","46",4,0,2,3,4,"Huvar Jakub",7]
["2018-02-17","GP - Ostrava - Český pohár","KT","j","Baudiš","Michal","bez","mladší žáci","50",0,0,1,0,0,"Baudiš Michal",0]
["2018-02-17","GP - Ostrava - Český pohár","KT","j","Krischke","Fabien","bez","mladší žáci","50",0,0,1,0,0,"Krischke Fabien",0]
["2018-02-17","GP - Ostrava - Český pohár","KT","j","Konvičný","Dominik",3,"mladší žáci","55",3,0,1,5,3,"Konvičný Dominik",8]
["2018-02-17","GP - Ostrava - Český pohár","KT","j","Horák","Adam",5,"mladší žáci","+60",1,0,2,3,1,"Horák Adam",4]
["2018-02-17","GP - Ostrava - Český pohár","KT","j","Fulneček","Šimon",5,"starší žáci","73",2,0,2,3,2,"Fulneček Šimon",5]
["2018-02-17","GP - Ostrava - Český pohár","KT","j","Vontor","Tomáš","bez","starší žáci","34",1,0,2,0,1,"Vontor Tomáš",1]
["2018-02-17","GP - Ostrava - Český pohár","KT","j","Caletka","Michal","bez","starší žáci","42",0,0,1,0,0,"Caletka Michal",0]
["2018-02-17","GP - Ostrava - Český pohár","KT","j","Fráňa","Patrik",7,"starší žáci","42",3,0,2,2,3,"Fráňa Patrik",5]
["2018-02-17","GP - Ostrava - Český pohár","KT","j","Matýsek","Jan","bez","starší žáci","42",0,0,1,0,0,"Matýsek Jan",0]
["2018-02-17","GP - Ostrava - Český pohár","KT","j","Čebík","Filip","bez","starší žáci","42",0,0,2,0,0,"Čebík Filip",0]
["2018-02-17","GP - Ostrava - Český pohár","KT","j","Kunc","Matěj","bez","starší žáci","46",1,0,2,0,1,"Kunc Matěj",1]
["2018-02-17","GP - Ostrava - Český pohár","KT","j","Caletka","Petr","bez","starší žáci","50",0,0,1,0,0,"Caletka Petr",0]
["2018-02-17","GP - Ostrava - Český pohár","KT","j","Čerchla","Michal","bez","starší žáci","50",0,0,1,0,0,"Čerchla Michal",0]
["2018-02-17","GP - Ostrava - Český pohár","KT","j","Freiwald","Richard","bez","starší žáci","50",0,0,1,0,0,"Freiwald Richard",0]
["2018-02-17","GP - Ostrava - Český pohár","KT","j","Křížek","Šimon",5,"starší žáci","50",4,0,2,3,4,"Křížek Šimon",7]
["2018-02-17","GP - Ostrava - Český pohár","KT","j","Kolář","Daniel","bez","starší žáci","55",1,0,1,0,1,"Kolář Daniel",1]
["2018-02-17","GP - Ostrava - Český pohár","KT","j","Lindovský","Jiří",3,"starší žáci","55",6,0,1,5,6,"Lindovský Jiří",11]
["2018-02-17","GP - Ostrava - Český pohár","KT","j","Čech","Jiří","bez","starší žáci","55",0,0,1,0,0,"Čech Jiří",0]
["2018-02-17","GP - Ostrava - Český pohár","KT","j","Kršňák","Filip","bez","starší žáci","60",2,0,2,0,2,"Kršňák Filip",2]
["2018-02-17","GP - Ostrava - Český pohár","KT","j","Turčínek","Tomáš","bez","starší žáci","66",1,0,1,0,1,"Turčínek Tomáš",1]
["2018-02-17","GP - Ostrava - Český pohár","KT","j","Motyka","Dominik",2,"starší žáci","73",3,0,1,7,3,"Motyka Dominik",10]
["2018-02-17","GP - Ostrava - Český pohár","KT","j","Mikendová","Tereza","bez","starší žákyně","48",0,0,1,0,0,"Mikendová Tereza",0]
["2018-02-17","GP - Ostrava - Český pohár","KT","j","Rodryčová","Adéla",7,"starší žákyně","48",1,0,2,2,1,"Rodryčová Adéla",3]
["2018-02-17","GP - Ostrava - Český pohár","KT","j","Otáhalová","Magdaléna","bez","starší žákyně","52",0,0,2,0,0,"Otáhalová Magdaléna",0]
["2018-02-17","GP - Ostrava - Český pohár","KT","j","Kuželová","Dominika","bez","starší žákyně","57",1,0,2,0,1,"Kuželová Dominika",1]
["2018-02-24","Slezský pohár Opava","VC","j","Kocmanová","Lucie",2,"mláďata","27",1,0,1,5,1,"Kocmanová Lucie",6]
["2018-02-24","Slezský pohár Opava","VC","j","Macháček","Tomáš","bez","mláďata","30",0,0,2,0,0,"Macháček Tomáš",0]
["2018-02-24","Slezský pohár Opava","VC","j","Bartošic","Sebastian",5,"mláďata","30",1,0,2,0,1,"Bartošic Sebastian",1]
["2018-02-24","Slezský pohár Opava","VC","j","Kanclíř","Šimon","bez","mláďata","34",0,0,1,0,0,"Kanclíř Šimon",0]
["2018-02-24","Slezský pohár Opava","VC","j","Vjaclovský","David",3,"mláďata","34",2,0,1,3,2,"Vjaclovský David",5]
["2018-02-24","Slezský pohár Opava","VC","j","Bukovjanová","Charlotte","bez","mladší žákyně","40",0,0,2,0,0,"Bukovjanová Charlotte",0]
["2018-02-24","Slezský pohár Opava","VC","j","To","Adam","bez","mladší žáci","34",0,0,1,0,0,"To Adam",0]
["2018-02-24","Slezský pohár Opava","VC","j","Mikenda","Ondřej","bez","mladší žáci","42",1,0,2,0,1,"Mikenda Ondřej",1]
["2018-02-24","Slezský pohár Opava","VC","j","Buček","Daniel","bez","mladší žáci","46",0,0,3,0,0,"Buček Daniel",0]
["2018-02-24","Slezský pohár Opava","VC","j","Štverka","Matyáš","bez","mladší žáci","46",1,0,2,0,1,"Štverka Matyáš",1]
["2018-02-24","Slezský pohár Opava","VC","j","Vavřina","Viktor ",5,"mladší žáci","50",1,0,2,0,1,"Vavřina Viktor ",1]
["2018-02-24","Slezský pohár Opava","VC","j","Závodný","Matyáš","bez","starší žáci","55",0,0,3,0,0,"Závodný Matyáš",0]
["2018-02-24","Slezský pohár Opava","VC","j","Valošek","Jakub",7,"mláďata","30",1,0,1,0,1,"Valošek Jakub",1]
["2018-02-24","Slezský pohár Opava","VC","j","Stark","Vojtěch",2,"mláďata","38",3,0,2,5,3,"Stark Vojtěch",8]
["2018-02-24","Slezský pohár Opava","VC","j","Matušek","Jakub","bez","mladší žáci","38",0,0,1,0,0,"Matušek Jakub",0]
["2018-02-24","Slezský pohár Opava","VC","j","Pospíšil","Jan",7,"mladší žáci","42",1,0,2,0,1,"Pospíšil Jan",1]
["2018-02-24","Slezský pohár Opava","VC","j","Kolář","Vojtěch","bez","mladší žáci","42",0,0,1,0,0,"Kolář Vojtěch",0]
["2018-02-24","Slezský pohár Opava","VC","j","Čelůstka","Eduard",7,"mladší žáci","42",2,0,2,0,2,"Čelůstka Eduard",2]
["2018-02-24","Slezský pohár Opava","VC","j","Hegner","Leoš",5,"mladší žáci","50",2,0,2,0,2,"Hegner Leoš",2]
["2018-02-24","Slezský pohár Opava","VC","j","Baudiš","Michal",3,"mladší žáci","50",2,0,2,3,2,"Baudiš Michal",5]
["2018-02-24","Slezský pohár Opava","VC","j","Krischke","Fabien",7,"mladší žáci","50",0,0,2,0,0,"Krischke Fabien",0]
["2018-02-24","Slezský pohár Opava","VC","j","Horák","Adam",2,"mladší žáci","+60",1,0,1,5,1,"Horák Adam",6]
["2018-02-24","Slezský pohár Opava","VC","j","Rapčanová","Silvie",1,"mladší žákyně","32",3,0,0,6,3,"Rapčanová Silvie",9]
["2018-02-24","Slezský pohár Opava","VC","j","Rapčanová","Alice",3,"mladší žákyně","40",1,0,2,3,1,"Rapčanová Alice",4]
["2018-02-24","Slezský pohár Opava","VC","j","Vavřínová","Pavla",1,"mladší žákyně","57",2,0,0,6,2,"Vavřínová Pavla",8]
["2018-02-24","Slezský pohár Opava","VC","j","Fulneček","Šimon","bez","starší žáci","73",1,0,2,0,1,"Fulneček Šimon",1]
["2018-02-24","Slezský pohár Opava","VC","j","Beutel","David",4,"starší žáci","38",0,0,3,0,0,"Beutel David",0]
["2018-02-24","Slezský pohár Opava","VC","j","Benáčková","Denisa","bez","starší žákyně","52",0,0,2,0,0,"Benáčková Denisa",0]
["2018-02-24","Slezský pohár Opava","VC","j","Skácel","Antonín","bez","mladší žáci","55",0,0,3,{"$f":"IF(ISNA(VLOOKUP(C194&G194,$V$3:$W$92,2,FALSE)),0,VLOOKUP(C194&G194,$V$3:$W$92,2,FALSE))","v":0},0,{"$f":"E194&\" \"&F194","v":"Skácel Antonín"},0]
["2018-02-24","Slezský pohár Opava","VC","j","Mikendová","Tereza",4,"starší žákyně","48",0,0,3,0,{"$f":"IF(D195=\"d\",SUM(J195*2,K195),J195)","v":0},"Mikendová Tereza",{"$f":"SUM(M195,N195)","v":0}]
["2018-02-24","Slezský pohár Opava","VC","j","Otáhalová","Magdaléna","bez","starší žákyně","52",0,0,2,0,0,"Otáhalová Magdaléna",0]
["2018-02-24","Slezský pohár Opava","VC","j","Rodryčová","Adéla",2,"starší žákyně","48",2,0,1,5,2,"Rodryčová Adéla",7]
["2018-02-24","Slezský pohár Opava","VC","j","Kuželová","Dominika",2,"starší žákyně","57",4,0,1,5,4,"Kuželová Dominika",9]
["2018-02-24","Slezský pohár Opava","VC","j","Huvar","Jakub",1,"mladší žáci","46",4,0,0,6,4,"Huvar Jakub",10]
["2018-02-24","Slezský pohár Opava","VC","j","Meixner","Michal",1,"mladší žáci","42",4,0,0,6,4,"Meixner Michal",10]
["2018-02-24","Slezský pohár Opava","VC","j","Lindovský","Jiří",2,"starší žáci","55",4,0,1,5,4,"Lindovský Jiří",9]
["2018-02-24","Slezský pohár Opava","VC","j","Kršňák","Filip",2,"starší žáci","60",1,0,1,5,1,"Kršňák Filip",6]
["2018-02-24","Slezský pohár Opava","VC","j","Caletka","Petr","bez","starší žáci","50",0,0,3,0,0,"Caletka Petr",0]
["2018-02-24","Slezský pohár Opava","VC","j","Matýsek","Jan",5,"starší žáci","42",2,0,2,0,2,"Matýsek Jan",2]
["2018-02-24","Slezský pohár Opava","VC","j","Čebík","Filip",2,"starší žáci","42",3,0,1,5,3,"Čebík Filip",8]
["2018-02-24","Slezský pohár Opava","VC","j","Čerchla","Michal",2,"starší žáci","50",4,0,1,5,4,"Čerchla Michal",9]
["2018-02-24","Slezský pohár Opava","VC","j","Motyka","Dominik",1,"starší žáci","73",5,0,0,6,5,"Motyka Dominik",11]
["2018-02-24","Slezský pohár Opava","VC","j","Freiwald","Richard",3,"starší žáci","50",1,0,2,3,1,"Freiwald Richard",4]
["2018-02-24","Slezský pohár Opava","VC","j","Fráňa","Patrik",3,"starší žáci","42",2,0,1,3,2,"Fráňa Patrik",5]
["2018-02-24","Slezský pohár Opava","VC","j","Buranyč","Filip",1,"starší žáci","34",3,0,0,6,3,"Buranyč Filip",9]
["2018-02-24","Slezský pohár Opava","VC","j","Kolář","Daniel","bez","starší žáci","55",1,0,2,0,1,"Kolář Daniel",1]
["2018-02-24","Slezský pohár Opava","VC","j","Turčínek","Tomáš",2,"starší žáci","66",2,0,1,5,2,"Turčínek Tomáš",7]
["2018-03-03","Euroregion Beskydy - Raškovice","VC","j","Sládek","Maxmilián",1,"mláďata","38",5,0,0,6,5,"Sládek Maxmilián",11]
["2018-03-03","Euroregion Beskydy - Raškovice","VC","j","Malinovský","Jiří",2,"mláďata","38",3,0,2,5,3,"Malinovský Jiří",8]
["2018-03-03","Euroregion Beskydy - Raškovice","VC","j","Ryška","Filip",2,"mláďata","34",2,0,1,5,2,"Ryška Filip",7]
["2018-03-03","Euroregion Beskydy - Raškovice","VC","j","Stark","Vojtěch","bez","mláďata","38",0,0,3,0,0,"Stark Vojtěch",0]
["2018-03-03","Euroregion Beskydy - Raškovice","VC","j","Seibert","Marian",2,"mladší žáci","42",2,0,1,5,2,"Seibert Marian",7]
["2018-03-03","Euroregion Beskydy - Raškovice","VC","j","Kožušník","Vojtěch",1,"mladší žáci","46",2,0,0,6,2,"Kožušník Vojtěch",8]
["2018-03-03","Euroregion Beskydy - Raškovice","VC","j","Bechný","Martin","bez","mladší žáci","34",0,0,1,0,0,"Bechný Martin",0]
["2018-03-03","Euroregion Beskydy - Raškovice","VC","j","Hegner","Leoš",3,"mladší žáci","50",1,0,2,3,1,"Hegner Leoš",4]
["2018-03-03","Euroregion Beskydy - Raškovice","VC","j","Kolář","Vojtěch","bez","mladší žáci","42",0,0,1,0,0,"Kolář Vojtěch",0]
["2018-03-03","Euroregion Beskydy - Raškovice","VC","j","Křenek","Jakub","bez","mladší žáci","50",0,0,2,0,0,"Křenek Jakub",0]
["2018-03-03","Euroregion Beskydy - Raškovice","VC","j","Krischke","Fabien",2,"mladší žáci","50",4,0,1,5,4,"Krischke Fabien",9]
["2018-03-03","Euroregion Beskydy - Raškovice","VC","j","Kulhánek","Adam","bez","mladší žáci","42",1,0,2,0,1,"Kulhánek Adam",1]
["2018-03-03","Euroregion Beskydy - Raškovice","VC","j","Chmela","Tomáš","bez","mladší žáci","42",2,0,2,0,2,"Chmela Tomáš",2]
["2018-03-03","Euroregion Beskydy - Raškovice","VC","j","Mikenda","Ondřej","bez","mladší žáci","38",2,0,2,0,2,"Mikenda Ondřej",2]
["2018-03-03","Euroregion Beskydy - Raškovice","VC","j","Štverka","Matyáš",2,"mladší žáci","46",1,0,1,5,1,"Štverka Matyáš",6]
["2018-03-03","Euroregion Beskydy - Raškovice","VC","j","Matušek","Jakub","bez","mladší žáci","38",0,0,1,0,0,"Matušek Jakub",0]
["2018-03-03","Euroregion Beskydy - Raškovice","VC","j","Tomek","David",3,"starší žáci","55",3,0,1,3,3,"Tomek David",6]
["2018-03-03","Euroregion Beskydy - Raškovice","VC","j","Kolář","Daniel",1,"starší žáci","50",3,0,1,6,3,"Kolář Daniel",9]
["2018-03-03","Euroregion Beskydy - Raškovice","VC","j","Caletka","Michal","bez","starší žáci","42",0,0,2,0,0,"Caletka Michal",0]
["2018-03-03","Euroregion Beskydy - Raškovice","VC","j","Caletka","Petr","bez","starší žáci","50",0,0,2,0,0,"Caletka Petr",0]
["2018-03-04","MT  Salzkammergut - Rakousko","MT","j","To","Adam","bez","mladší žáci","34",1,0,2,0,1,"To Adam",1]
["2018-03-04","MT  Salzkammergut - Rakousko","MT","j","Meixner","Michal","bez","mladší žáci","42",0,0,1,0,0,"Meixner Michal",0]
["2018-03-04","MT  Salzkammergut - Rakousko","MT","j","Huvar","Jakub",5,"mladší žáci","46",3,0,2,3,3,"Huvar Jakub",6]
["2018-03-04","MT  Salzkammergut - Rakousko","MT","j","Rapčanová","Silvie",3,"mladší žákyně","32",1,0,2,5,1,"Rapčanová Silvie",6]
["2018-03-04","MT  Salzkammergut - Rakousko","MT","j","Rapčanová","Alice","bez","mladší žákyně","40",0,0,2,0,0,"Rapčanová Alice",0]
["2018-03-04","MT  Salzkammergut - Rakousko","MT","j","Vavřínová","Pavla","bez","mladší žákyně","52",1,0,2,0,1,"Vavřínová Pavla",1]
["2018-03-04","MT  Salzkammergut - Rakousko","MT","j","Huvar","Matyáš",1,"mláďata","34",5,0,0,10,5,"Huvar Matyáš",15]
["2018-03-04","MT  Salzkammergut - Rakousko","MT","j","Kuluris","Manolis",5,"mláďata","30",3,0,2,3,3,"Kuluris Manolis",6]
["2018-03-04","MT  Salzkammergut - Rakousko","MT","j","Přichystal","Leon","bez","mláďata","27",0,0,1,0,0,"Přichystal Leon",0]
["2018-03-04","MT  Salzkammergut - Rakousko","MT","j","Fojtík","Jiří Václav","bez","mláďata","27",1,0,2,0,1,"Fojtík Jiří Václav",1]
["2018-03-04","MT  Salzkammergut - Rakousko","MT","j","Ciora","Jakub",7,"mláďata","27",2,0,2,2,2,"Ciora Jakub",4]
["2018-03-04","MT  Salzkammergut - Rakousko","MT","j","Mařec","Tomáš","bez","mláďata","30",0,0,2,0,0,"Mařec Tomáš",0]
["2018-03-04","MT  Salzkammergut - Rakousko","MT","j","Zwilling","Šimon",7,"mláďata","42",2,0,2,2,2,"Zwilling Šimon",4]
["2018-03-18","Český pohár Jablonec nad Nisou","KT","j","Polášková","Kristýna",1,"juniorky","63",5,0,0,10,5,"Polášková Kristýna",15]
["2018-03-18","Český pohár Jablonec nad Nisou","KT","j","Martínková","Adéla",1,"juniorky","78",2,0,0,10,2,"Martínková Adéla",12]
["2018-03-18","Český pohár Jablonec nad Nisou","KT","j","Silvestr","Matěj",1,"junioři","81",4,0,0,10,4,"Silvestr Matěj",14]
["2018-03-18","Český pohár Jablonec nad Nisou","KT","j","Šmatelka","Ondřej","bez","junioři","73",0,0,1,0,{"$f":"IF(D249=\"d\",SUM(J249*2,K249),J249)","v":0},{"$f":"E249&\" \"&F249","v":"Šmatelka Ondřej"},0]
["2018-03-18","Český pohár Jablonec nad Nisou","KT","j","Huvar","Jan","bez","junioři","66",0,0,1,0,0,"Huvar Jan",0]
["2018-03-17","Český pohár Jablonec nad Nisou","KT","j","Vontor","Tomáš",3,"starší žáci","34",3,0,1,5,3,"Vontor Tomáš",8]
["2018-03-17","Český pohár Jablonec nad Nisou","KT","j","Buranyč","Filip",5,"starší žáci","34",2,0,1,3,2,"Buranyč Filip",5]
["2018-03-17","Český pohár Jablonec nad Nisou","KT","j","Čebík","Filip",5,"starší žáci","42",3,0,2,3,3,"Čebík Filip",6]
["2018-03-17","Český pohár Jablonec nad Nisou","KT","j","Kunc","Matěj",3,"starší žáci","46",5,0,1,5,5,"Kunc Matěj",10]
["2018-03-17","Český pohár Jablonec nad Nisou","KT","j","Čerchla","Michal","bez","starší žáci","50",0,0,1,0,0,"Čerchla Michal",0]
["2018-03-17","Český pohár Jablonec nad Nisou","KT","j","Křížek","Šimon",3,"starší žáci","50",5,0,1,5,5,"Křížek Šimon",10]
["2018-03-17","Český pohár Jablonec nad Nisou","KT","j","Lindovský","Jiří",1,"starší žáci","55",5,0,0,10,5,"Lindovský Jiří",15]
["2018-03-17","Český pohár Jablonec nad Nisou","KT","j","Turčínek","Tomáš","bez","starší žáci","66",0,0,1,{"$f":"IF(ISNA(VLOOKUP(C258&G258,$V$3:$W$92,2,FALSE)),0,VLOOKUP(C258&G258,$V$3:$W$92,2,FALSE))","v":0},0,"Turčínek Tomáš",0]
["2018-03-17","Český pohár Jablonec nad Nisou","KT","j","Fulneček","Šimon","bez","starší žáci","73",0,0,1,0,0,"Fulneček Šimon",{"$f":"SUM(M259,N259)","v":0}]
["2018-03-17","Český pohár Jablonec nad Nisou","KT","j","Motyka","Dominik",3,"starší žáci","73",3,0,1,5,3,"Motyka Dominik",8]
["2018-03-17","Český pohár Jablonec nad Nisou","KT","j","Rodryčová","Adéla",3,"starší žákyně","48",3,0,1,5,3,"Rodryčová Adéla",8]
["2018-03-17","Český pohár Jablonec nad Nisou","KT","j","Otáhalová","Magdaléna",5,"starší žákyně","52",2,0,2,3,2,"Otáhalová Magdaléna",5]
["2018-03-17","Český pohár Jablonec nad Nisou","KT","j","Kuželová","Dominika",5,"starší žákyně","57",1,0,2,3,1,"Kuželová Dominika",4]
["2018-03-24","Thuringia Cup - Bad Blankenburg, GER","MT","j","Martínková","Adéla","bez","juniorky","70",0,0,1,0,0,"Martínková Adéla",0]
["2018-03-24","Thuringia Cup - Bad Blankenburg, GER","MT","j","Polášková","Kristýna","bez","juniorky","63",0,0,1,0,0,"Polášková Kristýna",0]
["2018-03-24","Thuringia Cup - Bad Blankenburg, GER","MT","j","Václavková","Tereza","bez","dorostenky","52",0,0,1,0,0,"Václavková Tereza",0]
["2018-03-24","Thuringia Cup - Bad Blankenburg, GER","MT","j","Čerchlová","Markéta","bez","dorostenky","+70",0,0,2,0,0,"Čerchlová Markéta",0]
["2018-03-31","Copenhagen Open Dánsko","MT","j","Martínková","Adéla",2,"juniorky","70",2,0,1,7,2,"Martínková Adéla",9]
["2018-03-31","Copenhagen Open Dánsko","MT","j","Polášková","Kristýna",3,"juniorky","63",3,0,2,5,3,"Polášková Kristýna",8]
["2018-03-31","Copenhagen Open Dánsko","MT","j","Silvestr","Matěj",1,"junioři","81",6,0,0,10,6,"Silvestr Matěj",16]
["2018-03-31","Copenhagen Open Dánsko","MT","j","Pustějovský","Tomáš",2,"junioři","90",3,0,1,7,3,"Pustějovský Tomáš",10]
["2018-03-25","Mistrovství Maďarska v Szazhalombatta  ","MT","j","Černota","Jiří",4,"veteráni","81",2,0,1,3,2,"Černota Jiří",5]
["2018-03-24","MT U16 POL - výběr ČR U15","MT","j","Lindovský","Jiří",7,"starší žáci","55",3,0,2,2,3,"Lindovský Jiří",5]
["2018-03-24","MT U16 POL - výběr ČR U15","MT","j","Motyka","Dominik","bez","starší žáci","73",2,0,2,0,2,"Motyka Dominik",2]
["2018-03-18","Český pohár Jablonec nad Nisou","KT","j","Kuncová","Viktorie","bez","dorostenky","48",0,0,2,0,0,"Kuncová Viktorie",0]
["2018-03-18","Český pohár Jablonec nad Nisou","KT","j","Václavková","Tereza",2,"dorostenky","52",2,0,1,7,2,"Václavková Tereza",9]
["2018-03-18","Český pohár Jablonec nad Nisou","KT","j","Čerchlová","Markéta",2,"dorostenky","+70",1,0,1,7,1,"Čerchlová Markéta",8]
["2018-03-18","Český pohár Jablonec nad Nisou","KT","j","Meixner","Tomáš",3,"dorostenci","46",2,0,1,5,2,"Meixner Tomáš",7]
["2018-03-18","Český pohár Jablonec nad Nisou","KT","j","Bulka","Vojtěch",3,"dorostenci","46",2,0,1,5,2,"Bulka Vojtěch",7]
["2018-03-18","Český pohár Jablonec nad Nisou","KT","j","Malaczynski","Filip",3,"dorostenci","50",3,0,1,5,3,"Malaczynski Filip",8]
["2018-03-18","Český pohár Jablonec nad Nisou","KT","j","Tycar","Štěpán",7,"dorostenci","55",3,0,2,2,{"$f":"IF(D281=\"d\",SUM(J281*2,K281),J281)","v":3},{"$f":"E281&\" \"&F281","v":"Tycar Štěpán"},5]
["2018-03-18","Český pohár Jablonec nad Nisou","KT","j","Kršňák","Filip","bez","dorostenci","60",0,0,1,0,0,"Kršňák Filip",0]
["2018-03-18","Český pohár Jablonec nad Nisou","KT","j","Šimek","Daniel",7,"dorostenci","60",2,0,2,2,2,"Šimek Daniel",4]
["2018-03-18","Český pohár Jablonec nad Nisou","KT","j","Motyka","Dominik","bez","dorostenci","73",0,0,1,0,0,"Motyka Dominik",0]
["2018-03-18","Český pohár Jablonec nad Nisou","KT","j","Mojžíšek","Lukáš","bez","dorostenci","81",1,0,1,0,1,"Mojžíšek Lukáš",1]
["2018-03-18","Český pohár Jablonec nad Nisou","KT","j","Pavlica","Tomáš",2,"dorostenci","+90",4,0,1,7,4,"Pavlica Tomáš",11]
["2018-03-18","Český pohár Jablonec nad Nisou","KT","j","Lindovský","Jiří","bez","dorostenci","55",0,0,1,0,0,"Lindovský Jiří",0]
["2018-03-30","Copenhagen Open Dánsko","MT","j","Kuncová","Viktorie","bez","dorostenky","48",1,0,3,0,1,"Kuncová Viktorie",1]
["2018-03-30","Copenhagen Open Dánsko","MT","j","Václavková","Tereza",1,"dorostenky","52",5,0,1,10,5,"Václavková Tereza",15]
["2018-03-30","Copenhagen Open Dánsko","MT","j","Čerchlová","Markéta",1,"dorostenky","+70",2,0,1,10,2,"Čerchlová Markéta",12]
["2018-03-30","Copenhagen Open Dánsko","MT","j","Meixner","Tomáš","bez","dorostenci","46",0,0,4,0,0,"Meixner Tomáš",0]
["2018-03-30","Copenhagen Open Dánsko","MT","j","Bulka","Vojtěch",3,"dorostenci","50",3,0,1,5,3,"Bulka Vojtěch",8]
["2018-03-30","Copenhagen Open Dánsko","MT","j","Malaczynski","Filip",5,"dorostenci","50",3,0,2,3,3,"Malaczynski Filip",6]
["2018-03-30","Copenhagen Open Dánsko","MT","j","Tycar","Štěpán","bez","dorostenci","55",0,0,2,0,0,"Tycar Štěpán",0]
["2018-03-30","Copenhagen Open Dánsko","MT","j","Šimek","Daniel",1,"dorostenci","60",4,0,0,10,4,"Šimek Daniel",14]
["2018-03-30","Copenhagen Open Dánsko","MT","j","Mojžíšek","Lukáš",3,"dorostenci","81",3,0,2,5,3,"Mojžíšek Lukáš",8]
["2018-03-30","Copenhagen Open Dánsko","MT","j","Pavlica","Tomáš",1,"dorostenci","+90",2,0,0,10,2,"Pavlica Tomáš",12]
["2018-03-30","Copenhagen Open Dánsko","MT","j","Pavlica","Lukáš","bez","dorostenci","81",1,0,3,0,1,"Pavlica Lukáš",1]
["2018-04-07","Moravská liga 2. kolo Brno","PSO","d","Šimek","Daniel",null,"muži",null,2,0,2,0,4,"Šimek Daniel",4]
["2018-04-07","Moravská liga 2. kolo Brno","PSO","d","Kohn","Pavel",null,"muži",null,2,0,2,0,4,"Kohn Pavel",4]
["2018-04-07","Moravská liga 2. kolo Brno","PSO","d","Silvestr","Matěj",null,"muži",null,3,0,1,0,6,"Silvestr Matěj",6]
["2018-04-07","Moravská liga 2. kolo Brno","PSO","d","Pustějovský","Tomáš",null,"muži",null,4,0,0,0,8,"Pustějovský Tomáš",8]
["2018-04-07","Moravská liga 2. kolo Brno","PSO","d","Král","Jakub",null,"muži",null,3,0,1,0,6,"Král Jakub",6]
["2018-02-24","Moravská liga 1. kolo Brno","PSO","d","Šimek","Daniel",null,"muži",null,4,0,1,0,8,"Šimek Daniel",8]
["2018-02-24","Moravská liga 1. kolo Brno","PSO","d","Šmatelka","Ondřej",null,"muži",null,2,0,3,0,4,"Šmatelka Ondřej",4]
["2018-02-24","Moravská liga 1. kolo Brno","PSO","d","Silvestr","Matěj",null,"muži",null,5,0,0,0,10,"Silvestr Matěj",10]
["2018-02-24","Moravská liga 1. kolo Brno","PSO","d","Pustějovský","Tomáš",null,"muži",null,5,0,0,0,10,"Pustějovský Tomáš",10]
["2018-02-24","Moravská liga 1. kolo Brno","PSO","d","Svoboda","Jiří",null,"muži",null,4,0,1,0,8,"Svoboda Jiří",8]
["2018-02-24","Moravská liga 1. kolo Brno","PSO","d","Raška","Michael",null,"muži",null,3,0,2,0,6,"Raška Michael",6]
["2018-04-07","Internacional Workshop Opole","MC","j","Křenek","Jakub",4,"mladší žáci","50",0,0,3,0,0,"Křenek Jakub",0]
["2018-04-07","Internacional Workshop Opole","MC","j","Seibert","Marian",1,"mladší žáci","42",4,0,0,4,4,"Seibert Marian",8]
["2018-04-07","Internacional Workshop Opole","MC","j","Kolář","Vojtěch",2,"mladší žáci","41",3,0,1,3,3,"Kolář Vojtěch",6]
["2018-04-07","Internacional Workshop Opole","MC","j","Rapčanová","Silvie",3,"mladší žákyně","35",2,0,2,2,{"$f":"IF(D313=\"d\",SUM(J313*2,K313),J313)","v":2},{"$f":"E313&\" \"&F313","v":"Rapčanová Silvie"},4]
["2018-04-07","Internacional Workshop Opole","MC","j","Bukovjanová","Charlotte",4,"mladší žákyně","41",1,0,3,0,1,"Bukovjanová Charlotte",1]
["2018-04-07","Internacional Workshop Opole","MC","j","To","Adam",2,"mladší žáci","35",3,0,1,3,3,"To Adam",6]
["2018-04-07","Internacional Workshop Opole","MC","j","Kulhánek","Adam",4,"mladší žáci","42",1,0,3,0,1,"Kulhánek Adam",1]
["2018-04-07","Internacional Workshop Opole","MC","j","Malinovský","Jiří",4,"mláďata","38",0,0,3,0,0,"Malinovský Jiří",0]
["2018-04-07","Internacional Workshop Opole","MC","j","Kaszperová","Kristýna",2,"mláďata","47",1,0,1,3,1,"Kaszperová Kristýna",4]
["2018-04-07","Internacional Workshop Opole","MC","j","Bartošic","Sebastian",2,"mláďata","30",3,0,1,3,3,"Bartošic Sebastian",6]
["2018-04-07","Internacional Workshop Opole","MC","j","Vjaclovský","David",4,"mláďata","33",0,0,3,0,0,"Vjaclovský David",0]
["2018-04-07","Internacional Workshop Opole","MC","j","Kanclíř","Šimon",4,"mláďata","35",1,0,3,0,1,"Kanclíř Šimon",1]
["2018-04-07","Internacional Workshop Opole","MC","j","Kocmanová","Lucie",2,"mláďata","27",3,0,1,{"$f":"IF(ISNA(VLOOKUP(C322&G322,$V$3:$W$92,2,FALSE)),0,VLOOKUP(C322&G322,$V$3:$W$92,2,FALSE))","v":3},3,"Kocmanová Lucie",6]
["2018-04-07","Internacional Workshop Opole","MC","j","Románek","Jabub",5,"mláďata","42",0,0,4,0,0,"Románek Jabub",{"$f":"SUM(M323,N323)","v":0}]
["2018-04-07","Internacional Workshop Opole","MC","j","Fojtík","Jiří Václav",4,"mláďata","30",1,0,3,0,1,"Fojtík Jiří Václav",1]
["2018-04-07","Internacional Workshop Opole","MC","j","Šumský","Miroslav",5,"starší žáci","42",0,0,4,0,0,"Šumský Miroslav",0]
["2018-04-07","Internacional Workshop Opole","MC","j","Fráňa","Patrik",1,"starší žáci","43",4,0,0,4,4,"Fráňa Patrik",8]
["2018-04-07","Internacional Workshop Opole","MC","j","Závodný","Matyáš",3,"starší žáci","55",3,0,1,2,{"$f":"IF(D327=\"d\",SUM(J327*2,K327),J327)","v":3},{"$f":"E327&\" \"&F327","v":"Závodný Matyáš"},5]
["2018-04-07","Internacional Workshop Opole","MC","j","Kolář","Daniel",1,"starší žáci","55",4,0,0,4,4,"Kolář Daniel",8]
["2018-04-07","Internacional Workshop Opole","MC","j","Tomek","David",4,"starší žáci","55",2,0,2,0,2,"Tomek David",2]
["2018-04-07","Internacional Workshop Opole","MC","j","Matýsek","Jan",3,"starší žáci","45",1,0,2,2,1,"Matýsek Jan",3]
["2018-04-07","Internacional Workshop Opole","MC","j","Caletka","Michal",5,"starší žáci","46",0,0,4,0,0,"Caletka Michal",0]
["2018-04-07","Internacional Workshop Opole","MC","j","Kuzník","Tadeáš",3,"starší žáci","42",2,0,2,2,2,"Kuzník Tadeáš",4]
["2018-04-14","MČR  - Hranice na Moravě","MCR","j","Kuncová","Viktorie",4,"juniorky","48",1,0,3,7,1,"Kuncová Viktorie",8]
["2018-04-14","MČR  - Hranice na Moravě","MCR","j","Martínková","Adéla",3,"juniorky","70",3,0,1,10,3,"Martínková Adéla",13]
["2018-04-14","MČR  - Hranice na Moravě","MCR","j","Polášková","Kristýna",2,"juniorky","63",2,0,1,15,2,"Polášková Kristýna",17]
["2018-04-14","MČR  - Hranice na Moravě","MCR","j","Šimek","Daniel",3,"junioři","60",3,0,1,10,3,"Šimek Daniel",13]
["2018-04-14","MČR  - Hranice na Moravě","MCR","j","Šmatelka","Ondřej","bez","junioři","73",0,0,1,0,0,"Šmatelka Ondřej",0]
["2018-04-14","MČR  - Hranice na Moravě","MCR","j","Silvestr","Matěj",3,"junioři","81",3,0,1,10,3,"Silvestr Matěj",13]
["2018-04-14","MČR  - Hranice na Moravě","MCR","j","Mojžíšek","Lukáš","bez","junioři","81",0,0,1,0,0,"Mojžíšek Lukáš",0]
["2018-04-14","MČR  - Hranice na Moravě","MCR","j","Pustějovský","Tomáš",7,"junioři","90",1,0,2,5,1,"Pustějovský Tomáš",6]
["2018-04-14","MČR  - Hranice na Moravě","MCR","j","Gřešek","Vít","bez","junioři","90",0,0,1,0,0,"Gřešek Vít",0]
["2018-04-14","MČR  - Hranice na Moravě","MCR","j","Pavlica","Tomáš","bez","junioři","100",0,0,4,0,0,"Pavlica Tomáš",0]
["2018-02-10","USK CUP Muži","KT","j","Kohn","Pavel",9,"muži","73",2,0,2,0,2,"Kohn Pavel",2]
["2018-02-10","USK CUP Muži","KT","j","Kohn","Tomáš","bez","muži","73",1,0,2,0,1,"Kohn Tomáš",1]
["2018-04-14","Krajský přebor - Ostrava","PK","j","To","Adam",3,"mladší žáci","34",3,0,1,3,3,"To Adam",6]
["2018-04-14","Krajský přebor - Ostrava","PK","j","Mikenda","Ondřej","bez","mladší žáci","42",0,0,1,0,0,"Mikenda Ondřej",0]
["2018-04-14","Krajský přebor - Ostrava","PK","j","Buček","Daniel",6,"mladší žáci","50",0,0,5,0,0,"Buček Daniel",0]
["2018-04-14","Krajský přebor - Ostrava","PK","j","Štverka","Matyáš",5,"mladší žáci","50",1,0,4,0,1,"Štverka Matyáš",1]
["2018-04-14","Krajský přebor - Ostrava","PK","j","Bukovjanová","Charlotte",2,"mladší žákyně","44",0,0,2,5,0,"Bukovjanová Charlotte",5]
["2018-04-14","Krajský přebor - Ostrava","PK","j","Závodný","Matyáš",5,"starší žáci","55",2,0,2,0,2,"Závodný Matyáš",2]
["2018-04-14","Krajský přebor - Ostrava","PK","j","Brož","Ondřej","bez","starší žáci","55",0,0,2,0,0,"Brož Ondřej",0]
["2018-04-14","Krajský přebor - Ostrava","PK","j","Náplava","Richard",5,"starší žáci","73",1,0,2,0,1,"Náplava Richard",1]
["2018-04-28","OPEN MASTERS Púchov","MT","j","Černota","Jiří",2,"veteráni","81",2,0,1,7,2,"Černota Jiří",9]
["2018-04-28","OPEN MASTERS Púchov","MT","j","Chlebový","Arnold",2,"veteráni","100",3,0,1,7,3,"Chlebový Arnold",10]
["2018-04-28","OPEN MASTERS Púchov","MT","j","Badura","Martin",3,"veteráni","+100",0,0,2,5,0,"Badura Martin",5]
["2018-04-28","OPEN MASTERS Púchov","MT","j","Pravda","Pavel",5,"veteráni","90",0,0,2,3,0,"Pravda Pavel",3]
["2018-04-28","1. liga - muži - 1.kolo Ostrava","1.liga","d","Kohn","Pavel",null,"muži","66",3,0,0,0,6,"Kohn Pavel",6]
["2018-04-28","1. liga - muži - 1.kolo Ostrava","1.liga","d","Kohn","Tomáš",null,"muži","73",1,0,1,0,2,"Kohn Tomáš",2]
["2018-04-28","1. liga - muži - 1.kolo Ostrava","1.liga","d","Silvestr","Matěj",null,"muži","81",1,0,3,0,2,"Silvestr Matěj",2]
["2018-04-28","1. liga - muži - 1.kolo Ostrava","1.liga","d","Svoboda","Jiří",null,"muži","90",4,0,0,0,8,"Svoboda Jiří",8]
["2018-04-28","1. liga - muži - 1.kolo Ostrava","1.liga","d","Pustějovský","Tomáš",null,"muži","100",2,0,1,0,4,"Pustějovský Tomáš",4]
["2018-04-28","1. liga - muži - 1.kolo Ostrava","1.liga","d","Raška","Michael",null,"muži","+100",0,0,2,0,0,"Raška Michael",0]
["2018-04-28","1. liga - muži - 1.kolo Ostrava","1.liga","d","Král","Jakub",null,"muži","+100",0,0,2,0,0,"Král Jakub",0]
["2018-04-21","Evropský pohár dorostenců Teplice","EJU","j","Václavková","Tereza","bez","dorostenky","52",0,0,1,0,0,"Václavková Tereza",0]
["2018-04-21","Evropský pohár dorostenců Teplice","EJU","j","Tycar","Štěpán","bez","dorostenci","55",0,0,1,0,0,"Tycar Štěpán",0]
["2018-04-21","Evropský pohár dorostenců Teplice","EJU","j","Šimek","Daniel","bez","dorostenci","60",0,0,2,0,0,"Šimek Daniel",0]
["2018-04-21","Evropský pohár dorostenců Teplice","EJU","j","Pavlica","Tomáš","bez","dorostenci","+90",0,0,1,0,0,"Pavlica Tomáš",0]
["2018-03-03","Velká cena Hradce Králové","VC","j","Boháček","Jan",2,"mladší žáci","42",3,0,1,5,3,"Boháček Jan",8]
["2018-04-07","Mezinárodní mistrovství Galanta","MVC","j","Boháček","Jan",1,"mladší žáci","42",3,0,0,6,3,"Boháček Jan",9]
["2018-04-14","Krajský přebor - Ostrava","PK","j","Vavřínová","Pavla",1,"mladší žákyně","52",2,0,0,6,2,"Vavřínová Pavla",8]
["2018-04-14","Krajský přebor - Ostrava","PK","j","Suchan","Jan",7,"mladší žáci","38",0,0,2,0,0,"Suchan Jan",0]
["2018-04-14","Krajský přebor - Ostrava","PK","j","Šotola","Kryštof","bez","mladší žáci","46",0,0,2,0,0,"Šotola Kryštof",0]
["2018-04-14","Krajský přebor - Ostrava","PK","j","Válek","Matěj",7,"mladší žáci","38",0,0,2,0,0,"Válek Matěj",0]
["2018-04-14","Krajský přebor - Ostrava","PK","j","Pospíšil","Jan",2,"mladší žáci","42",2,0,1,5,2,"Pospíšil Jan",7]
["2018-04-14","Krajský přebor - Ostrava","PK","j","Kožušník","Vojtěch",5,"mladší žáci","46",1,0,2,0,1,"Kožušník Vojtěch",1]
["2018-04-14","Krajský přebor - Ostrava","PK","j","Benáčková","Denisa",3,"starší žákyně","52",0,0,2,3,0,"Benáčková Denisa",3]
["2018-04-28","31. Budapešť Cup 2018","MT","j","Meixner","Michal","bez","mladší žáci","41",0,0,1,0,0,"Meixner Michal",0]
["2018-04-28","31. Budapešť Cup 2018","MT","j","Huvar","Jakub","bez","mladší žáci","45",2,0,1,0,2,"Huvar Jakub",2]
["2018-04-28","31. Budapešť Cup 2018","MT","j","Rapčanová","Alice","bez","mladší žákyně","41",0,0,2,0,0,"Rapčanová Alice",0]
["2018-04-28","31. Budapešť Cup 2018","MT","j","Vavřínová","Pavla",3,"mladší žákyně","56",2,0,1,5,2,"Vavřínová Pavla",7]
["2018-04-28","31. Budapešť Cup 2018","MT","j","Boháček","Jan","bez","mladší žáci","41",2,0,2,0,2,"Boháček Jan",2]
["2018-04-28","31. Budapešť Cup 2018","MT","j","Horák","Adam","bez","mladší žáci","+66",0,0,2,0,0,"Horák Adam",0]
["2018-05-04","Extraliga mužů - 1. kolo, Olomouc","EXL","d","Gřešek","Vít",null,"muži","90",0,0,2,0,0,"Gřešek Vít",0]
["2018-05-04","Extraliga mužů - 1. kolo, Olomouc","EXL","d","Martínek","Roman",null,"muži","+90",0,0,2,0,0,"Martínek Roman",0]
["2018-05-05","MVC Bardejov","MVC","j","Kaszperová","Kristýna",1,"mláďata","46",2,0,0,6,2,"Kaszperová Kristýna",8]
["2018-05-05","MVC Bardejov","MVC","j","Přichystal","Leon","bez","mláďata","26",1,0,2,{"$f":"IF(ISNA(VLOOKUP(C386&G386,$V$3:$W$92,2,FALSE)),0,VLOOKUP(C386&G386,$V$3:$W$92,2,FALSE))","v":0},1,{"$f":"E386&\" \"&F386","v":"Přichystal Leon"},1]
["2018-05-05","MVC Bardejov","MVC","j","Ciora","Jakub","bez","mláďata","28",1,0,2,0,{"$f":"IF(D387=\"d\",SUM(J387*2,K387),J387)","v":1},"Ciora Jakub",{"$f":"SUM(M387,N387)","v":1}]
["2018-05-05","MVC Bardejov","MVC","j","Kuluris","Manolis","bez","mláďata","34",0,0,1,0,0,"Kuluris Manolis",0]
["2018-05-05","MVC Bardejov","MVC","j","Mařec","Tomáš",5,"mláďata","34",4,0,2,0,4,"Mařec Tomáš",4]
["2018-05-05","MVC Bardejov","MVC","j","Fojtík","Jiří Václav","bez","mláďata","34",0,0,1,0,0,"Fojtík Jiří Václav",0]
["2018-05-05","MVC Bardejov","MVC","j","Malinovský","Jiří","bez","mláďata","38",1,0,2,0,1,"Malinovský Jiří",1]
["2018-05-05","MVC Bardejov","MVC","j","Sládek","Maxmilián","bez","mláďata","38",0,0,2,0,0,"Sládek Maxmilián",0]
["2018-05-05","MVC Bardejov","MVC","j","Huvar","Matyáš","bez","mláďata","38",0,0,2,0,0,"Huvar Matyáš",0]
["2018-05-05","MVC Bardejov","MVC","j","Vlk","František",5,"mláďata","46",2,0,2,0,2,"Vlk František",2]
["2018-05-12","Velká cena Ostravy","VC","j","Kocmanová","Lucie",1,"mláďata","30",3,0,1,6,3,"Kocmanová Lucie",9]
["2018-05-12","Velká cena Ostravy","VC","j","Kaszperová","Kristýna",1,"mláďata","42",2,0,0,6,2,"Kaszperová Kristýna",8]
["2018-05-12","Velká cena Ostravy","VC","j","Ciora","Jakub",2,"mláďata","27",2,0,2,5,2,"Ciora Jakub",7]
["2018-05-12","Velká cena Ostravy","VC","j","Šelong","Tadeáš",3,"mláďata","27",1,0,2,3,1,"Šelong Tadeáš",4]
["2018-05-12","Velká cena Ostravy","VC","j","Přichystal","Leon","bez","mláďata","27",0,0,2,0,0,"Přichystal Leon",0]
["2018-05-12","Velká cena Ostravy","VC","j","Huvar","Matyáš",1,"mláďata","34",4,0,1,6,4,"Huvar Matyáš",10]
["2018-05-12","Velká cena Ostravy","VC","j","Bartošic","Sebastian",3,"mláďata","34",1,0,3,3,1,"Bartošic Sebastian",4]
["2018-05-12","Velká cena Ostravy","VC","j","Ryška","Filip","bez","mláďata","38",0,0,3,0,0,"Ryška Filip",0]
["2018-05-12","Velká cena Ostravy","VC","j","Sládek","Maxmilián",3,"mláďata","38",2,0,2,3,2,"Sládek Maxmilián",5]
["2018-05-12","Velká cena Ostravy","VC","j","Stark","Vojtěch","bez","mláďata","38",1,0,1,0,1,"Stark Vojtěch",1]
["2018-05-12","Velká cena Ostravy","VC","j","Malinovský","Jiří","bez","mláďata","42",1,0,3,0,1,"Malinovský Jiří",1]
["2018-05-12","Velká cena Ostravy","VC","j","Kožušník","Václav","bez","mláďata","42",0,0,4,0,{"$f":"IF(D406=\"d\",SUM(J406*2,K406),J406)","v":0},{"$f":"E406&\" \"&F406","v":"Kožušník Václav"},0]
["2018-05-12","Velká cena Ostravy","VC","j","Vlk","František",2,"mláďata","50",2,0,1,5,{"$f":"IF(D407=\"d\",SUM(J407*2,K407),J407)","v":2},{"$f":"E407&\" \"&F407","v":"Vlk František"},7]
["2018-05-12","Velká cena Ostravy - kvalifikační turnaj","VC","j","Rapčanová","Silvie",2,"mladší žákyně","36",1,0,1,5,{"$f":"IF(D408=\"d\",SUM(J408*2,K408),J408)","v":1},{"$f":"E408&\" \"&F408","v":"Rapčanová Silvie"},6]
["2018-05-12","Velká cena Ostravy - kvalifikační turnaj","VC","j","Rapčanová","Alice",2,"mladší žákyně","40",3,0,2,5,{"$f":"IF(D409=\"d\",SUM(J409*2,K409),J409)","v":3},{"$f":"E409&\" \"&F409","v":"Rapčanová Alice"},8]
["2018-05-12","Velká cena Ostravy - kvalifikační turnaj","VC","j","Bukovjanová","Charlotte",3,"mladší žákyně","40",1,0,2,3,1,"Bukovjanová Charlotte",4]
["2018-05-12","Velká cena Ostravy - kvalifikační turnaj","VC","j","Vavřínová","Pavla",1,"mladší žákyně","57",2,0,0,6,2,"Vavřínová Pavla",8]
["2018-05-12","Velká cena Ostravy - kvalifikační turnaj","VC","j","Neuwirt","Petr",3,"mladší žáci","34",2,0,1,3,2,"Neuwirt Petr",5]
["2018-05-12","Velká cena Ostravy - kvalifikační turnaj","VC","j","Bechný","Martin",5,"mladší žáci","34",2,0,2,0,2,"Bechný Martin",2]
["2018-05-12","Velká cena Ostravy - kvalifikační turnaj","VC","j","Válek","Matěj","bez","mladší žáci","38",0,0,2,0,0,"Válek Matěj",0]
["2018-05-12","Velká cena Ostravy - kvalifikační turnaj","VC","j","Vrbas","Alexandr",7,"mladší žáci","38",1,0,2,0,1,"Vrbas Alexandr",1]
["2018-05-12","Velká cena Ostravy - kvalifikační turnaj","VC","j","Suchan","Jan","bez","mladší žáci","38",0,0,1,0,0,"Suchan Jan",0]
["2018-05-12","Velká cena Ostravy - kvalifikační turnaj","VC","j","Meixner","Michal",3,"mladší žáci","38",3,0,1,3,3,"Meixner Michal",6]
["2018-05-12","Velká cena Ostravy - kvalifikační turnaj","VC","j","Mikenda","Ondřej",5,"mladší žáci","38",2,0,1,0,2,"Mikenda Ondřej",2]
["2018-05-12","Velká cena Ostravy - kvalifikační turnaj","VC","j","Matušek","Jakub","bez","mladší žáci","38",0,0,1,0,0,"Matušek Jakub",0]
["2018-05-12","Velká cena Ostravy - kvalifikační turnaj","VC","j","Seibert","Marian","bez","mladší žáci","38",0,0,2,0,0,"Seibert Marian",0]
["2018-05-12","Velká cena Ostravy - kvalifikační turnaj","VC","j","Boháček","Jan",1,"mladší žáci","42",4,0,0,6,4,"Boháček Jan",10]
["2018-05-12","Velká cena Ostravy - kvalifikační turnaj","VC","j","Pospíšil","Jan",5,"mladší žáci","42",2,0,2,0,2,"Pospíšil Jan",2]
["2018-05-12","Velká cena Ostravy - kvalifikační turnaj","VC","j","Huvar","Jakub",1,"mladší žáci","46",5,0,0,6,5,"Huvar Jakub",11]
["2018-05-12","Velká cena Ostravy - kvalifikační turnaj","VC","j","Kolář","Vojtěch",3,"mladší žáci","46",2,0,2,3,2,"Kolář Vojtěch",5]
["2018-05-12","Velká cena Ostravy - kvalifikační turnaj","VC","j","Kulhánek","Adam","bez","mladší žáci","46",0,0,3,0,0,"Kulhánek Adam",0]
["2018-05-12","Velká cena Ostravy - kvalifikační turnaj","VC","j","Kožušník","Vojtěch",2,"mladší žáci","50",2,0,1,5,2,"Kožušník Vojtěch",7]
["2018-05-12","Velká cena Ostravy - kvalifikační turnaj","VC","j","Křenek","Jakub",3,"mladší žáci","50",1,0,2,3,1,"Křenek Jakub",4]
["2018-05-12","Velká cena Ostravy - kvalifikační turnaj","VC","j","Baudiš","Michal",5,"mladší žáci","55",1,0,2,0,1,"Baudiš Michal",1]
["2018-05-12","Velká cena Ostravy - kvalifikační turnaj","VC","j","Krischke","Fabien",3,"mladší žáci","55",2,0,1,3,2,"Krischke Fabien",5]
["2018-05-12","Velká cena Ostravy - kvalifikační turnaj","VC","j","Hegner","Leoš","bez","mladší žáci","55",0,0,2,0,0,"Hegner Leoš",0]
["2018-05-12","Velká cena Ostravy - kvalifikační turnaj","VC","j","Zakaryan","Erik","bez","mladší žáci","+60",0,0,2,0,0,"Zakaryan Erik",0]
["2018-05-12","Velká cena Ostravy - kvalifikační turnaj","VC","j","Horák","Adam",2,"mladší žáci","+60",2,0,1,5,2,"Horák Adam",7]
["2018-05-12","Velká cena Ostravy","VC","j","Šumský","Miroslav",3,"starší žáci","46",2,0,1,3,2,"Šumský Miroslav",5]
["2018-05-12","Velká cena Ostravy","VC","j","Caletka","Michal",2,"starší žáci","46",2,0,1,5,2,"Caletka Michal",7]
["2018-05-12","Velká cena Ostravy","VC","j","Caletka","Petr",3,"starší žáci","50",1,0,2,3,1,"Caletka Petr",4]
["2018-05-12","Velká cena Ostravy","VC","j","Čech","Jiří",3,"starší žáci","55",1,0,2,3,1,"Čech Jiří",4]
["2018-05-12","Velká cena Ostravy","VC","j","Kolář","Daniel",2,"starší žáci","55",3,0,1,5,3,"Kolář Daniel",8]
["2018-05-12","Velká cena Ostravy","VC","j","Bernacký","Mikuláš",3,"starší žáci","+73",0,0,2,3,0,"Bernacký Mikuláš",3]
["2018-03-31","Copenhagen Open Dánsko","MT","j","Vontor","Tomáš",2,"starší žáci","34",3,0,1,7,3,"Vontor Tomáš",10]
["2018-03-31","Copenhagen Open Dánsko","MT","j","Motyka","Dominik",2,"starší žáci","+60",5,0,1,7,5,"Motyka Dominik",12]
["2018-03-31","Copenhagen Open Dánsko","MT","j","Čebík","Filip",5,"starší žáci","42",3,0,2,3,3,"Čebík Filip",6]
["2018-03-31","Copenhagen Open Dánsko","MT","j","Kunc","Matěj",3,"starší žáci","46",5,0,1,5,5,"Kunc Matěj",10]
["2018-03-31","Copenhagen Open Dánsko","MT","j","Čerchla","Michal","bez","starší žáci","55",1,0,2,0,1,"Čerchla Michal",1]
["2018-03-31","Copenhagen Open Dánsko","MT","j","Křížek","Šimon",5,"starší žáci","55",2,0,2,3,2,"Křížek Šimon",5]
["2018-03-31","Copenhagen Open Dánsko","MT","j","Lindovský","Jiří",2,"starší žáci","55",3,0,1,7,3,"Lindovský Jiří",10]
["2018-03-31","Copenhagen Open Dánsko","MT","j","Fráňa","Patrik",7,"starší žáci","42",2,0,2,2,2,"Fráňa Patrik",4]
["2018-03-31","Copenhagen Open Dánsko","MT","j","Kršňák","Filip","bez","starší žáci","60",1,0,4,0,1,"Kršňák Filip",1]
["2018-03-31","Copenhagen Open Dánsko","MT","j","Kuželová","Dominika",3,"starší žákyně","57",2,0,2,5,2,"Kuželová Dominika",7]
["2018-03-31","Copenhagen Open Dánsko","MT","j","Otáhalová","Magdaléna",3,"starší žákyně","52",2,0,2,5,2,"Otáhalová Magdaléna",7]
["2018-04-29","31. Budapešť Cup 2018","MT","j","Lindovský","Jiří","bez","starší žáci","55",1,0,1,{"$f":"IF(ISNA(VLOOKUP(C450&G450,$V$3:$W$92,2,FALSE)),0,VLOOKUP(C450&G450,$V$3:$W$92,2,FALSE))","v":0},1,{"$f":"E450&\" \"&F450","v":"Lindovský Jiří"},1]
["2018-04-29","31. Budapešť Cup 2018","MT","j","Čebík","Filip","bez","starší žáci","42",1,0,1,0,{"$f":"IF(D451=\"d\",SUM(J451*2,K451),J451)","v":1},"Čebík Filip",{"$f":"SUM(M451,N451)","v":1}]
["2018-04-29","31. Budapešť Cup 2018","MT","j","Turčínek","Tomáš","bez","starší žáci","50",0,0,1,0,0,"Turčínek Tomáš",0]
["2018-04-29","31. Budapešť Cup 2018","MT","j","Kuželová","Dominika","bez","starší žákyně","57",0,0,1,0,0,"Kuželová Dominika",0]
["2018-04-29","31. Budapešť Cup 2018","MT","j","Rodryčová","Adéla","bez","starší žákyně","48",0,0,2,0,0,"Rodryčová Adéla",0]
["2018-04-29","31. Budapešť Cup 2018","MT","j","Otáhalová","Magdaléna","bez","starší žákyně","52",0,0,2,0,0,"Otáhalová Magdaléna",0]
["2018-05-12","MČR - družstva - dorostenky - Jablonec","MCR","d","Čerchlová","Markéta",null,"dorostenky","+70",1,0,2,0,2,"Čerchlová Markéta",2]
["2018-05-12","MČR - družstva - dorostenky - Jablonec","MCR","d","Václavková","Tereza",null,"dorostenky","52",2,0,2,0,4,"Václavková Tereza",4]
["2018-05-12","MČR - družstva - dorostenky - Jablonec","MCR","d","Kuncová","Viktorie",null,"dorostenky","48",1,0,1,0,2,"Kuncová Viktorie",2]
["2018-04-14","Krajský přebor - Ostrava","PK","j","Kolář","Daniel",2,"starší žáci","55",2,0,1,5,{"$f":"IF(D459=\"d\",SUM(J459*2,K459),J459)","v":2},{"$f":"E459&\" \"&F459","v":"Kolář Daniel"},7]
["2018-04-14","Krajský přebor - Ostrava","PK","j","Tomek","David",2,"starší žáci","60",3,0,1,5,3,"Tomek David",8]
["2018-04-14","Krajský přebor - Ostrava","PK","j","Kršňák","Filip",1,"starší žáci","60",3,0,0,6,3,"Kršňák Filip",9]
["2018-04-14","Krajský přebor - Ostrava","PK","j","Meixner","Michal",2,"mladší žáci","46",3,0,1,5,3,"Meixner Michal",8]
["2018-04-14","Krajský přebor - Ostrava","PK","j","Huvar","Jakub",1,"mladší žáci","46",4,0,0,6,4,"Huvar Jakub",10]
["2018-04-14","Krajský přebor - Ostrava","PK","j","Kolář","Vojtěch",3,"mladší žáci","46",2,0,1,3,2,"Kolář Vojtěch",5]
["2018-04-14","Krajský přebor - Ostrava","PK","j","Boháček","Jan",1,"mladší žáci","42",4,0,0,6,4,"Boháček Jan",10]
["2018-04-14","Krajský přebor - Ostrava","PK","j","Kulhánek","Adam",3,"mladší žáci","42",2,0,1,3,2,"Kulhánek Adam",5]
["2018-04-14","Krajský přebor - Ostrava","PK","j","Křenek","Jakub",3,"mladší žáci","50",3,0,2,3,3,"Křenek Jakub",6]
["2018-04-14","Krajský přebor - Ostrava","PK","j","Hegner","Leoš",4,"mladší žáci","50",2,0,3,0,2,"Hegner Leoš",2]
["2018-04-14","Krajský přebor - Ostrava","PK","j","Čerchla","Michal",3,"starší žáci","55",3,0,1,3,3,"Čerchla Michal",6]
["2018-04-14","Krajský přebor - Ostrava","PK","j","Horák","Adam",1,"mladší žáci","+60",4,0,0,6,4,"Horák Adam",10]
["2018-04-14","Krajský přebor - Ostrava","PK","j","Rapčanová","Silvie",2,"mladší žákyně","40",2,0,1,5,2,"Rapčanová Silvie",7]
["2018-04-14","Krajský přebor - Ostrava","PK","j","Rapčanová","Alice",1,"mladší žákyně","36",5,0,0,6,{"$f":"IF(D472=\"d\",SUM(J472*2,K472),J472)","v":5},{"$f":"E472&\" \"&F472","v":"Rapčanová Alice"},11]
["2018-04-14","Krajský přebor - Ostrava","PK","j","Martináková","Stela",5,"mladší žákyně","36",1,0,4,0,1,"Martináková Stela",1]
["2018-04-14","Krajský přebor - Ostrava","PK","j","Neuwirt","Petr",3,"mladší žáci","30",3,0,2,3,3,"Neuwirt Petr",6]
["2018-04-14","Krajský přebor - Ostrava","PK","j","Kuželová","Dominika",1,"starší žákyně","57",2,0,0,6,2,"Kuželová Dominika",8]
["2018-04-14","Krajský přebor - Ostrava","PK","j","Otáhalová","Magdaléna",2,"starší žákyně","52",1,0,1,5,1,"Otáhalová Magdaléna",6]
["2018-04-14","Krajský přebor - Ostrava","PK","j","Kunc","Matěj",1,"starší žáci","50",5,0,0,6,5,"Kunc Matěj",11]
["2018-04-14","Krajský přebor - Ostrava","PK","j","Caletka","Michal",4,"starší žáci","46",0,0,3,0,0,"Caletka Michal",0]
["2018-04-14","Krajský přebor - Ostrava","PK","j","Caletka","Petr",5,"starší žáci","50",1,0,4,0,1,"Caletka Petr",1]
["2018-04-14","Krajský přebor - Ostrava","PK","j","Wilkus","Richard",6,"starší žáci","50",0,0,5,0,0,"Wilkus Richard",0]
["2018-04-14","Krajský přebor - Ostrava","PK","j","Čech","Jiří",7,"starší žáci","55",1,0,2,0,1,"Čech Jiří",1]
["2018-04-14","Krajský přebor - Ostrava","PK","j","Matýsek","Jan",3,"starší žáci","42",2,0,1,3,2,"Matýsek Jan",5]
["2018-04-14","Krajský přebor - Ostrava","PK","j","Fráňa","Patrik",2,"starší žáci","42",2,0,1,5,2,"Fráňa Patrik",7]
["2018-04-14","Krajský přebor - Ostrava","PK","j","Čebík","Filip",1,"starší žáci","42",3,0,0,6,3,"Čebík Filip",9]
["2018-04-14","Krajský přebor - Ostrava","PK","j","Kuzník","Tadeáš",5,"starší žáci","42",2,0,2,0,2,"Kuzník Tadeáš",2]
["2018-04-14","Krajský přebor - Ostrava","PK","j","Vontor","Tomáš",1,"starší žáci","34",3,0,0,6,3,"Vontor Tomáš",9]
["2018-04-14","Krajský přebor - Ostrava","PK","j","Turčínek","Tomáš",2,"starší žáci","66",1,0,1,5,1,"Turčínek Tomáš",6]
["2018-04-14","Krajský přebor - Ostrava","PK","j","Křížek","Šimon",1,"starší žáci","55",3,0,1,6,3,"Křížek Šimon",9]
["2018-04-21","Těšínský aprílový majáček","MC","j","Kulhánek","Adam",3,"mladší žáci","42",2,0,1,2,2,"Kulhánek Adam",4]
["2018-04-21","Těšínský aprílový majáček","MC","j","Stark","Vojtěch",3,"mláďata","50",1,0,2,2,1,"Stark Vojtěch",3]
["2018-04-21","Těšínský aprílový majáček","MC","j","Kaszperová","Kristýna",1,"mláďata","50",4,0,1,4,4,"Kaszperová Kristýna",8]
["2018-04-21","Těšínský aprílový majáček","MC","j","Kolář","Vojtěch","bez","mladší žáci","42",0,0,1,0,0,"Kolář Vojtěch",0]
["2018-04-21","Těšínský aprílový majáček","MC","j","Křenek","Jakub",2,"mladší žáci","48",1,0,1,3,1,"Křenek Jakub",4]
["2018-04-21","Těšínský aprílový majáček","MC","j","Zakaryan","Erik",2,"mladší žáci","+50",0,0,2,3,0,"Zakaryan Erik",3]
["2018-04-21","Těšínský aprílový majáček","MC","j","Seibert","Marian",2,"mladší žáci","42",3,0,1,3,3,"Seibert Marian",6]
["2018-05-13","Extraliga mužů - 2. kolo, Ostrava","EXL","d","Gřešek","Vít",null,"muži","90",0,0,2,0,0,"Gřešek Vít",0]
["2018-05-13","Extraliga mužů - 2. kolo, Ostrava","EXL","d","Kohn","Tomáš",null,"muži","73",0,0,2,0,0,"Kohn Tomáš",0]
["2018-05-12","MČR - družstva - ženy - Jablonec","MCR","d","Martínková","Adéla",4,"ženy","70",2,0,2,7,4,"Martínková Adéla",11]
["2018-05-12","MČR - družstva - ženy - Jablonec","MCR","d","Kuncová","Viktorie",4,"ženy","52",0,0,2,7,0,"Kuncová Viktorie",7]
["2018-05-12","MČR - družstva - ženy - Jablonec","MCR","d","Polášková","Kristýna",4,"ženy","63",2,0,2,7,4,"Polášková Kristýna",11]
["2018-05-12","MČR - družstva - starší žáci - Jablonec","MCR","d","Kunc","Matěj",2,"starší žáci","46",1,0,3,15,2,"Kunc Matěj",17]
["2018-05-12","MČR - družstva - starší žáci - Jablonec","MCR","d","Motyka","Dominik",2,"starší žáci","73",4,0,0,15,8,"Motyka Dominik",23]
["2018-05-12","MČR - družstva - starší žáci - Jablonec","MCR","d","Lindovský","Jiří",2,"starší žáci","50",4,0,0,15,8,"Lindovský Jiří",23]
["2018-05-12","MČR - družstva - starší žáci - Jablonec","MCR","d","Vontor","Tomáš",2,"starší žáci","38",3,0,1,15,6,"Vontor Tomáš",21]
["2018-05-12","MČR - družstva - starší žáci - Jablonec","MCR","d","Čebík","Filip",2,"starší žáci","42",2,0,2,15,4,"Čebík Filip",19]
["2018-05-12","MČR - družstva - starší žáci - Jablonec","MCR","d","Křížek","Šimon",2,"starší žáci","55",2,0,2,15,4,"Křížek Šimon",19]
["2018-05-12","MČR - družstva - starší žáci - Jablonec","MCR","d","Kršňák","Filip",2,"starší žáci","60",2,0,2,15,4,"Kršňák Filip",19]
["2018-05-12","MČR - družstva - starší žáci - Jablonec","MCR","d","Fulneček","Šimon",2,"starší žáci","+73",2,0,2,15,4,"Fulneček Šimon",19]
["2018-05-19","MT - Lvov - Ukrajina","MT","j","Kaszperová","Kristýna",7,"mláďata","42",1,0,2,2,1,"Kaszperová Kristýna",3]
["2018-05-19","MT - Lvov - Ukrajina","MT","j","Ciora","Jakub",7,"mláďata","29",2,0,1,2,2,"Ciora Jakub",4]
["2018-05-19","MT - Lvov - Ukrajina","MT","j","Kuluris","Manolis",7,"mláďata","29",2,0,1,2,2,"Kuluris Manolis",4]
["2018-05-19","MT - Lvov - Ukrajina","MT","j","Mařec","Tomáš","bez","mláďata","32",1,0,1,0,1,"Mařec Tomáš",1]
["2018-05-19","MT - Lvov - Ukrajina","MT","j","Vlk","František",7,"mláďata","+42",1,0,2,2,1,"Vlk František",3]
["2018-05-26","Krajský přebor U18, U21, M - Ostrava","MK","j","Meixner","Tomáš",1,"dorostenci","50",2,0,0,{"$f":"IF(ISNA(VLOOKUP(C514&G514,$V$3:$W$92,2,FALSE)),0,VLOOKUP(C514&G514,$V$3:$W$92,2,FALSE))","v":7},2,{"$f":"E514&\" \"&F514","v":"Meixner Tomáš"},9]
["2018-05-26","Krajský přebor U18, U21, M - Ostrava","MK","j","Freiwald","Richard",2,"dorostenci","50",1,0,1,5,{"$f":"IF(D515=\"d\",SUM(J515*2,K515),J515)","v":1},"Freiwald Richard",{"$f":"SUM(M515,N515)","v":6}]
["2018-05-26","Krajský přebor U18, U21, M - Ostrava","MK","j","Malaczynski","Filip",2,"dorostenci","55",1,0,1,5,1,"Malaczynski Filip",6]
["2018-05-26","Krajský přebor U18, U21, M - Ostrava","MK","j","Lindovský","Jiří",3,"dorostenci","55",1,0,1,4,1,"Lindovský Jiří",5]
["2018-05-26","Krajský přebor U18, U21, M - Ostrava","MK","j","Mojžíšek","Lukáš",2,"dorostenci","81",3,0,1,5,3,"Mojžíšek Lukáš",8]
["2018-05-26","Krajský přebor U18, U21, M - Ostrava","MK","j","Motyka","Dominik",2,"dorostenci","73",3,0,2,5,3,"Motyka Dominik",8]
["2018-05-26","Krajský přebor U18, U21, M - Ostrava","MK","j","Janoš","Marek",2,"junioři","81",1,0,1,5,1,"Janoš Marek",6]
["2018-05-26","Krajský přebor U18, U21, M - Ostrava","MK","j","Mojžíšek","Lukáš",1,"junioři","81",2,0,0,7,2,"Mojžíšek Lukáš",9]
["2018-05-26","Krajský přebor U18, U21, M - Ostrava","MK","j","Kohn","Pavel",3,"muži","73",1,0,2,4,1,"Kohn Pavel",5]
["2018-05-26","Krajský přebor U18, U21, M - Ostrava","MK","j","Mojžíšek","Lukáš",2,"muži","81",0,0,2,5,0,"Mojžíšek Lukáš",5]
["2018-05-21","Evropský pohár dorostenců Bielsko Biala","EJU","j","Václavková","Tereza","bez","dorostenky","52",0,0,1,0,0,"Václavková Tereza",0]
["2018-05-21","Evropský pohár dorostenců Bielsko Biala","EJU","j","Tycar","Štěpán","bez","dorostenci","55",0,0,1,0,0,"Tycar Štěpán",0]
["2018-05-21","Evropský pohár dorostenců Bielsko Biala","EJU","j","Šimek","Daniel","bez","dorostenci","60",0,0,1,0,0,"Šimek Daniel",0]
["2018-05-21","Evropský pohár dorostenců Bielsko Biala","EJU","j","Pavlica","Tomáš",9,"dorostenci","+90",1,0,2,10,1,"Pavlica Tomáš",11]
["2018-05-26","Moravská liga 3. kolo Brno","PSO","d","Šimek","Daniel",null,"muži","66",4,0,3,0,8,"Šimek Daniel",8]
["2018-05-26","Moravská liga 3. kolo Brno","PSO","d","Šmatelka","Ondřej",null,"muži","73",1,0,6,0,2,"Šmatelka Ondřej",2]
["2018-05-26","Moravská liga 3. kolo Brno","PSO","d","Silvestr","Matěj",null,"muži","81",5,0,2,0,10,"Silvestr Matěj",10]
["2018-05-26","Moravská liga 3. kolo Brno","PSO","d","Gřešek","Vít",null,"muži","90",1,0,6,0,2,"Gřešek Vít",2]
["2018-05-26","Moravská liga 3. kolo Brno","PSO","d","Pustějovský","Tomáš",null,"muži","100",2,0,3,0,4,"Pustějovský Tomáš",4]
["2018-05-26","Moravská liga 3. kolo Brno","PSO","d","Král","Jakub",null,"muži","+100",2,0,3,0,4,"Král Jakub",4]
["2018-05-26","Moravská liga 3. kolo Brno","PSO","d","Raška","Michael",null,"muži","+100",2,0,1,0,4,"Raška Michael",4]
["2018-06-02","Mezinárodní velká cena Nový Bydžov","VC","j","Boháček","Jan",2,"mladší žáci","46",3,0,1,5,3,"Boháček Jan",8]
["2018-06-02","MT U15 HUN, Györ - výběr ČR","MT","j","Lindovský","Jiří",7,"starší žáci","55",3,0,2,2,3,"Lindovský Jiří",5]
["2018-06-02","MT U15 HUN, Györ - výběr ČR","MT","j","Motyka","Dominik",2,"starší žáci","73",2,0,1,7,2,"Motyka Dominik",9]
["2018-06-09","Český pohár Chomutov","KT","j","Rodryčová","Adéla",7,"starší žákyně","52",2,0,2,2,2,"Rodryčová Adéla",4]
["2018-06-09","Český pohár Chomutov","KT","j","Otáhalová","Magdaléna","bez","starší žákyně","52",0,0,1,0,0,"Otáhalová Magdaléna",0]
["2018-06-09","Český pohár Chomutov","KT","j","Kuželová","Dominika",5,"starší žákyně","57",2,0,2,3,2,"Kuželová Dominika",5]
["2018-06-09","Český pohár Chomutov","KT","j","Vontor","Tomáš",3,"starší žáci","38",2,0,1,5,2,"Vontor Tomáš",7]
["2018-06-09","Český pohár Chomutov","KT","j","Kuzník","Tadeáš",7,"starší žáci","42",2,0,2,2,2,"Kuzník Tadeáš",4]
["2018-06-09","Český pohár Chomutov","KT","j","Fráňa","Patrik",5,"starší žáci","42",3,0,2,3,3,"Fráňa Patrik",6]
["2018-06-09","Český pohár Chomutov","KT","j","Matýsek","Jan","bez","starší žáci","46",1,0,2,0,1,"Matýsek Jan",1]
["2018-06-09","Český pohár Chomutov","KT","j","Čebík","Filip","bez","starší žáci","46",1,0,2,0,1,"Čebík Filip",1]
["2018-06-09","Český pohár Chomutov","KT","j","Freiwald","Richard","bez","starší žáci","50",0,0,1,0,0,"Freiwald Richard",0]
["2018-06-09","Český pohár Chomutov","KT","j","Kolář","Daniel","bez","starší žáci","55",1,0,1,0,1,"Kolář Daniel",1]
["2018-06-09","Český pohár Chomutov","KT","j","Kunc","Matěj",7,"starší žáci","46",3,0,2,2,3,"Kunc Matěj",5]
["2018-06-09","Český pohár Chomutov","KT","j","Křížek","Šimon",7,"starší žáci","55",3,0,2,2,3,"Křížek Šimon",5]
["2018-06-09","Český pohár Chomutov","KT","j","Lindovský","Jiří",1,"starší žáci","55",4,0,0,10,4,"Lindovský Jiří",14]
["2018-06-09","Český pohár Chomutov","KT","j","Tomek","David","bez","starší žáci","60",1,0,2,0,1,"Tomek David",1]
["2018-06-09","Český pohár Chomutov","KT","j","Kršňák","Filip",3,"starší žáci","60",3,0,1,5,3,"Kršňák Filip",8]
["2018-06-09","Český pohár Chomutov","KT","j","Turčínek","Tomáš","bez","starší žáci","66",0,0,2,0,0,"Turčínek Tomáš",0]
["2018-06-09","Český pohár Chomutov","KT","j","Fulneček","Šimon","bez","starší žáci","73",1,0,2,{"$f":"IF(ISNA(VLOOKUP(C554&G554,$V$3:$W$92,2,FALSE)),0,VLOOKUP(C554&G554,$V$3:$W$92,2,FALSE))","v":0},{"$f":"IF(D554=\"d\",SUM(J554*2,K554),J554)","v":1},{"$f":"E554&\" \"&F554","v":"Fulneček Šimon"},1]
["2018-06-09","Český pohár Chomutov","KT","j","Motyka","Dominik",1,"starší žáci","73",4,0,0,10,4,"Motyka Dominik",14]
["2018-06-09","Český pohár Chomutov","KT","j","Václavková","Tereza",3,"dorostenky","52",2,0,1,5,2,"Václavková Tereza",7]
["2018-06-09","Český pohár Chomutov","KT","j","Čerchlová","Markéta",2,"dorostenky","+70",3,0,1,7,3,"Čerchlová Markéta",10]
["2018-06-09","Český pohár Chomutov","KT","j","Meixner","Tomáš",1,"dorostenci","46",3,0,0,10,3,"Meixner Tomáš",13]
["2018-06-09","Český pohár Chomutov","KT","j","Bulka","Vojtěch",3,"dorostenci","50",2,0,1,5,2,"Bulka Vojtěch",7]
["2018-06-09","Český pohár Chomutov","KT","j","Malaczynski","Filip","bez","dorostenci","55",1,0,1,0,1,"Malaczynski Filip",1]
["2018-06-02","Dorostenecká liga - 2. kolo Čáslav","DL","d","Mojžíšek","Lukáš",null,"dorostenci","81",3,0,2,0,6,"Mojžíšek Lukáš",6]
["2018-06-02","Dorostenecká liga - 2. kolo Čáslav","DL","d","Pavlica","Tomáš",null,"dorostenci","+90",4,0,1,0,8,"Pavlica Tomáš",8]
["2018-06-02","Dorostenecká liga - 2. kolo Čáslav","DL","d","Malaczynski","Filip",null,"dorostenci","55",3,0,0,0,6,"Malaczynski Filip",6]
["2018-06-02","Dorostenecká liga - 2. kolo Čáslav","DL","d","Kresta","Matěj",null,"dorostenci","73",3,0,2,0,6,"Kresta Matěj",6]
["2018-06-02","Dorostenecká liga - 2. kolo Čáslav","DL","d","Bulka","Vojtěch",null,"dorostenci","50",2,0,1,0,4,"Bulka Vojtěch",4]
["2018-06-02","Dorostenecká liga - 2. kolo Čáslav","DL","d","Kršňák","Filip",null,"dorostenci","60",0,0,2,0,0,"Kršňák Filip",0]
["2018-06-02","Dorostenecká liga - 2. kolo Čáslav","DL","d","Meixner","Tomáš",null,"dorostenci","50",1,0,1,0,2,"Meixner Tomáš",2]
["2018-06-02","Dorostenecká liga - 2. kolo Čáslav","DL","d","Tycar","Štěpán",null,"dorostenci","55",0,0,1,0,0,"Tycar Štěpán",0]
["2018-06-02","Dorostenecká liga - 2. kolo Čáslav","DL","d","Šimek","Daniel",null,"dorostenci","66",0,0,4,0,0,"Šimek Daniel",0]
["2018-06-16","1. liga - muži - 2.kolo Ostrava","1.liga","d","Kohn","Pavel",null,"muži","66",1,0,1,0,2,"Kohn Pavel",2]
["2018-06-16","1. liga - muži - 2.kolo Ostrava","1.liga","d","Šimek","Daniel",null,"muži","66",1,0,1,0,2,"Šimek Daniel",2]
["2018-06-16","1. liga - muži - 2.kolo Ostrava","1.liga","d","Šmatelka","Ondřej",null,"muži","73",0,0,2,0,0,"Šmatelka Ondřej",0]
["2018-06-16","1. liga - muži - 2.kolo Ostrava","1.liga","d","Holý","Martin",null,"muži","90",0,0,4,0,0,"Holý Martin",0]
["2018-06-16","1. liga - muži - 2.kolo Ostrava","1.liga","d","Svoboda","Jiří",null,"muži","100",3,0,1,0,6,"Svoboda Jiří",6]
["2018-06-16","1. liga - muži - 2.kolo Ostrava","1.liga","d","Raška","Michael",null,"muži","+100",2,0,0,0,4,"Raška Michael",4]
["2018-06-16","1. liga - muži - 2.kolo Ostrava","1.liga","d","Král","Jakub",null,"muži","+100",0,0,2,0,0,"Král Jakub",0]
["2018-07-13","Evropský pohár PAKS, HUN","EJU","j","Polášková","Kristýna","bez","juniorky","63",1,0,1,0,1,"Polášková Kristýna",1]
["2018-07-13","Evropský pohár PAKS, HUN","EJU","j","Martínková","Adéla","bez","juniorky","70",0,0,1,{"$f":"IF(ISNA(VLOOKUP(C578&G578,$V$3:$W$92,2,FALSE)),0,VLOOKUP(C578&G578,$V$3:$W$92,2,FALSE))","v":0},0,{"$f":"E578&\" \"&F578","v":"Martínková Adéla"},0]
["2018-07-13","Evropský pohár PAKS, HUN","EJU","j","Silvestr","Matěj","bez","junioři","81",0,0,1,0,{"$f":"IF(D579=\"d\",SUM(J579*2,K579),J579)","v":0},"Silvestr Matěj",{"$f":"SUM(M579,N579)","v":0}]
["2018-07-20","Evropský pohár juniorů Praha","EJU","j","Polášková","Kristýna",12,"juniorky","63",1,0,1,0,1,"Polášková Kristýna",1]
["2018-07-20","Evropský pohár juniorů Praha","EJU","j","Martínková","Adéla","bez","juniorky","70",0,0,1,0,0,"Martínková Adéla",0]
["2018-07-20","Evropský pohár juniorů Praha","EJU","j","Silvestr","Matěj","bez","junioři","81",0,0,1,0,0,"Silvestr Matěj",0]
["2018-07-28","ECJ Berlin 2018 (GER)","EJU","j","Polášková","Kristýna","bez","juniorky","63",1,0,1,0,1,"Polášková Kristýna",1]
["2018-09-15","Kvalifikační tunaj - ČP Brno","KT","j","Kohn","Tomáš",5,"muži","73",3,0,2,3,3,"Kohn Tomáš",6]
["2018-09-15","Kvalifikační tunaj - ČP Brno","KT","j","Martínková","Adéla",1,"ženy","70",3,0,0,10,3,"Martínková Adéla",13]
["2018-09-15","Kvalifikační tunaj - ČP Brno","KT","j","Polášková","Kristýna",5,"ženy","63",2,0,2,3,2,"Polášková Kristýna",5]
["2018-09-15","Kvalifikační tunaj - ČP Brno","KT","j","Šmatelka","Ondřej","bez","muži","73",0,0,1,0,0,"Šmatelka Ondřej",0]
["2018-09-15","Kvalifikační tunaj - ČP Brno","KT","j","Pavlica","Tomáš",1,"dorostenci","+90",3,0,0,10,3,"Pavlica Tomáš",13]
["2018-09-15","Kvalifikační tunaj - ČP Brno","KT","j","Meixner","Tomáš",2,"dorostenci","50",2,0,1,7,2,"Meixner Tomáš",9]
["2018-09-15","Kvalifikační tunaj - ČP Brno","KT","j","Šimek","Daniel",7,"dorostenci","66",3,0,2,2,3,"Šimek Daniel",5]
["2018-09-15","Kvalifikační tunaj - ČP Brno","KT","j","Bulka","Vojtěch","bez","dorostenci","55",1,0,1,0,1,"Bulka Vojtěch",1]
["2018-09-15","Kvalifikační tunaj - ČP Brno","KT","j","Malaczynski","Filip",9,"dorostenci","55",2,0,2,0,2,"Malaczynski Filip",2]
["2018-09-15","Kvalifikační tunaj - ČP Brno","KT","j","Tycar","Štěpán","bez","dorostenci","55",1,0,1,0,1,"Tycar Štěpán",1]
["2018-09-15","Kvalifikační tunaj - ČP Brno","KT","j","Mojžíšek","Lukáš","bez","dorostenci","83",0,0,1,0,0,"Mojžíšek Lukáš",0]
["2018-09-15","Kvalifikační tunaj - ČP Brno","KT","j","Václavková","Tereza",7,"dorostenky","52",2,0,2,2,2,"Václavková Tereza",4]
["2018-09-15","Kvalifikační tunaj - ČP Brno","KT","j","Čerchlová","Markéta",4,"dorostenky","+70",1,0,3,3,1,"Čerchlová Markéta",4]
["2018-09-16","Kvalifikační tunaj - ČP Brno","KT","j","To","Adam","bez","mladší žáci","38",0,0,1,0,0,"To Adam",0]
["2018-09-16","Kvalifikační tunaj - ČP Brno","KT","j","Turek","Jakub","bez","mladší žáci","38",0,0,1,0,0,"Turek Jakub",0]
["2018-09-16","Kvalifikační tunaj - ČP Brno","KT","j","Meixner","Michal","bez","mladší žáci","42",3,0,2,0,3,"Meixner Michal",3]
["2018-09-16","Kvalifikační tunaj - ČP Brno","KT","j","Seibert","Marian","bez","mladší žáci","42",0,0,1,0,0,"Seibert Marian",0]
["2018-09-16","Kvalifikační tunaj - ČP Brno","KT","j","Huvar","Jakub","bez","mladší žáci","46",0,0,0,0,0,"Huvar Jakub",0]
["2018-09-16","Kvalifikační tunaj - ČP Brno","KT","j","Boháček","Jan","bez","mladší žáci","46",0,0,1,0,0,"Boháček Jan",0]
["2018-09-16","Kvalifikační tunaj - ČP Brno","KT","j","Křenek","Jakub","bez","mladší žáci","50",0,0,1,0,0,"Křenek Jakub",0]
["2018-09-16","Kvalifikační tunaj - ČP Brno","KT","j","Kolář","Vojtěch","bez","mladší žáci","50",0,0,1,0,0,"Kolář Vojtěch",0]
["2018-09-16","Kvalifikační tunaj - ČP Brno","KT","j","Horák","Adam",3,"mladší žáci","+60",4,0,1,5,4,"Horák Adam",9]
["2018-09-16","Kvalifikační tunaj - ČP Brno","KT","j","Vavřínová","Pavla",3,"mladší žákyně","52",2,0,1,5,2,"Vavřínová Pavla",7]
["2018-09-23","1. liga - muži - 3.kolo Mohelnice","1.liga","d","Kohn","Pavel",null,"muži","66",2,0,1,0,4,"Kohn Pavel",4]
["2018-09-23","1. liga - muži - 3.kolo Mohelnice","1.liga","d","Šimek","Daniel",null,"muži","66",1,0,1,0,2,"Šimek Daniel",2]
["2018-09-23","1. liga - muži - 3.kolo Mohelnice","1.liga","d","Šmatelka","Ondřej",null,"muži","73",0,0,2,0,0,"Šmatelka Ondřej",0]
["2018-09-23","1. liga - muži - 3.kolo Mohelnice","1.liga","d","Silvestr","Matěj",null,"muži","81",3,0,1,0,6,{"$f":"E610&\" \"&F610","v":"Silvestr Matěj"},6]
["2018-09-23","1. liga - muži - 3.kolo Mohelnice","1.liga","d","Šeděnka","Richard",null,"muži","81",0,0,1,0,0,"Šeděnka Richard",0]
["2018-09-23","1. liga - muži - 3.kolo Mohelnice","1.liga","d","Svoboda","Jiří",null,"muži","90",3,0,1,0,6,"Svoboda Jiří",6]
["2018-09-23","1. liga - muži - 3.kolo Mohelnice","1.liga","d","Pustějovský","Tomáš",null,"muži","100",2,0,3,0,4,"Pustějovský Tomáš",4]
["2018-09-23","1. liga - muži - 3.kolo Mohelnice","1.liga","d","Raška","Michael",null,"muži","+100",2,0,0,0,{"$f":"IF(D614=\"d\",SUM(J614*2,K614),J614)","v":4},"Raška Michael",4]
["2018-09-23","1. liga - muži - 3.kolo Mohelnice","1.liga","d","Král","Jakub",null,"muži","+100",0,0,2,0,0,"Král Jakub",0]
["2018-09-16","Kvalifikační tunaj - ČP Brno","KT","j","Vontor","Tomáš",2,"starší žáci","38",4,0,1,7,4,"Vontor Tomáš",11]
["2018-09-16","Kvalifikační tunaj - ČP Brno","KT","j","Buranyč","Filip",3,"starší žáci","34",2,0,2,5,2,"Buranyč Filip",7]
["2018-09-16","Kvalifikační tunaj - ČP Brno","KT","j","Čebík","Filip","bez","starší žáci","46",0,0,1,0,0,"Čebík Filip",0]
["2018-09-16","Kvalifikační tunaj - ČP Brno","KT","j","Kunc","Matěj","bez","starší žáci","50",2,0,2,0,2,"Kunc Matěj",2]
["2018-09-16","Kvalifikační tunaj - ČP Brno","KT","j","Caletka","Michal","bez","starší žáci","50",0,0,1,0,0,"Caletka Michal",0]
["2018-09-16","Kvalifikační tunaj - ČP Brno","KT","j","Caletka","Petr","bez","starší žáci","50",0,0,1,0,0,"Caletka Petr",0]
["2018-09-16","Kvalifikační tunaj - ČP Brno","KT","j","Lindovský","Jiří",1,"starší žáci","55",5,0,0,10,5,"Lindovský Jiří",15]
["2018-09-16","Kvalifikační tunaj - ČP Brno","KT","j","Fráňa","Patrik","bez","starší žáci","46",0,0,1,0,0,"Fráňa Patrik",0]
["2018-09-16","Kvalifikační tunaj - ČP Brno","KT","j","Kršňák","Filip","bez","starší žáci","60",1,0,2,0,1,"Kršňák Filip",1]
["2018-09-16","Kvalifikační tunaj - ČP Brno","KT","j","Motyka","Dominik",1,"starší žáci","73",4,0,0,10,4,"Motyka Dominik",14]
["2018-09-16","Kvalifikační tunaj - ČP Brno","KT","j","Rodryčová","Adéla","bez","starší žákyně","52",1,0,2,0,1,"Rodryčová Adéla",1]
["2018-09-16","Kvalifikační tunaj - ČP Brno","KT","j","Otáhalová","Magdaléna","bez","starší žákyně","52",0,0,1,0,0,"Otáhalová Magdaléna",0]
["2018-09-16","Kvalifikační tunaj - ČP Brno","KT","j","Kuželová","Dominika",7,"starší žákyně","57",2,0,2,2,2,"Kuželová Dominika",4]
["2018-09-16","Kvalifikační tunaj - ČP Brno","KT","j","Matýsek","Jan","bez","starší žáci","50",0,0,1,0,0,"Matýsek Jan",0]
["2018-09-16","Kvalifikační tunaj - ČP Brno","KT","j","Turčínek","Tomáš","bez","starší žáci","66",0,0,1,0,0,"Turčínek Tomáš",0]
["2018-09-16","Kvalifikační tunaj - ČP Brno","KT","j","Fulneček","Šimon","bez","starší žáci","73",1,0,1,0,1,"Fulneček Šimon",1]
["2018-09-16","Kvalifikační tunaj - ČP Brno","KT","j","Kuzník","Tadeáš","bez","starší žáci","46",1,0,1,0,1,"Kuzník Tadeáš",1]
["2018-09-16","Kvalifikační tunaj - ČP Brno","KT","j","Kolář","Daniel","bez","starší žáci","50",0,0,2,0,0,"Kolář Daniel",0]
["2018-09-16","Kvalifikační tunaj - ČP Brno","KT","j","Tomek","David","bez","starší žáci","55",1,0,1,0,1,"Tomek David",1]
["2018-09-22","Krajský přebor benjamínků","MC","j","Kanclíř","Šimon",3,"mláďata","38",2,0,1,2,2,"Kanclíř Šimon",4]
["2018-09-22","Krajský přebor benjamínků","MC","j","Bartošic","Sebastián",3,"mláďata","34",1,0,2,2,1,"Bartošic Sebastián",3]
["2018-09-22","Krajský přebor benjamínků","MC","j","Šelong","Tadeáš","bez","mláďata","30",0,0,2,0,0,"Šelong Tadeáš",0]
["2018-09-22","Krajský přebor benjamínků","MC","j","Kocmanová","Lucie",1,"mláďata","30",2,0,0,4,2,"Kocmanová Lucie",6]
["2018-09-22","Krajský přebor benjamínků","MC","j","Románek","Jakub",3,"mláďata","46",1,0,2,2,1,"Románek Jakub",3]
["2018-09-22","Krajský přebor benjamínků","MC","j","Škoda","Melichar",3,"mláďata","50",0,0,2,2,0,"Škoda Melichar",2]
["2018-09-22","Krajský přebor benjamínků","MC","j","To","Vojtěch",4,"mláďata","27",1,0,3,0,1,"To Vojtěch",1]
["2018-09-22","Krajský přebor benjamínků","MC","j","Nuhlíček","Michal",2,"mláďata","30",2,0,1,{"$f":"IF(ISNA(VLOOKUP(C642&G642,$V$3:$W$92,2,FALSE)),0,VLOOKUP(C642&G642,$V$3:$W$92,2,FALSE))","v":3},2,{"$f":"E642&\" \"&F642","v":"Nuhlíček Michal"},5]
["2018-09-22","Krajský přebor benjamínků","MC","j","Mařec","Tomáš",2,"mláďata","34",4,0,1,3,{"$f":"IF(D643=\"d\",SUM(J643*2,K643),J643)","v":4},"Mařec Tomáš",{"$f":"SUM(M643,N643)","v":7}]
["2018-09-22","Krajský přebor benjamínků","MC","j","Huvar","Matyáš",2,"mláďata","38",3,0,1,3,3,"Huvar Matyáš",6]
["2018-09-22","Krajský přebor benjamínků","MC","j","Fojtík","Jiří Václav",5,"mláďata","30",1,0,2,0,1,"Fojtík Jiří Václav",1]
["2018-09-22","Krajský přebor benjamínků","MC","j","Zwilling","Šimon",1,"mláďata","42",3,0,0,4,3,"Zwilling Šimon",7]
["2018-09-22","Krajský přebor benjamínků","MC","j","Ryška","Filip",7,"mláďata","38",1,0,2,0,1,"Ryška Filip",1]
["2018-09-22","Krajský přebor benjamínků","MC","j","Malinovský","Jiří",3,"mláďata","42",1,0,3,2,1,"Malinovský Jiří",3]
["2018-09-22","Krajský přebor benjamínků","MC","j","Kožušník","Václav",4,"mláďata","42",0,0,3,0,0,"Kožušník Václav",0]
["2018-09-22","Krajský přebor benjamínků","MC","j","Vlk","František",2,"mláďata","46",2,0,1,3,2,"Vlk František",5]
["2018-09-22","Krajský přebor benjamínků","MC","j","Kaszperová","Kristýna",1,"mláďata","46",3,0,0,4,3,"Kaszperová Kristýna",7]
["2018-09-22","Krajský přebor benjamínků","MC","j","Jančata","Daniel","bez","mláďata","30",0,0,1,0,0,"Jančata Daniel",0]
["2018-09-22","Krajský přebor benjamínků","MC","j","Slováková","Tereza",4,"mláďata","34",0,0,3,0,0,"Slováková Tereza",0]
["2018-09-22","Krajský přebor benjamínků","MC","j","Murin","Jan","bez","mláďata","34",0,0,3,0,0,"Murin Jan",0]
["2018-09-22","Krajský přebor benjamínků","MC","j","Stark","Vojtěch","bez","mláďata","38",0,0,1,0,0,"Stark Vojtěch",0]
["2018-09-22","Dorostenecká liga - 3. kolo Jablonec nad Nisou","DL","d","Pavlica","Tomáš",null,"dorostenci","+90",5,0,0,0,10,"Pavlica Tomáš",10]
["2018-09-22","Dorostenecká liga - 3. kolo Jablonec nad Nisou","DL","d","Kresta","Matěj",null,"dorostenci","73",3,0,2,0,6,"Kresta Matěj",6]
["2018-09-22","Dorostenecká liga - 3. kolo Jablonec nad Nisou","DL","d","Malaczynski","Filip",null,"dorostenci","55",2,0,0,0,4,"Malaczynski Filip",4]
["2018-09-22","Dorostenecká liga - 3. kolo Jablonec nad Nisou","DL","d","Bulka","Vojtěch",null,"dorostenci","50",2,0,0,0,4,"Bulka Vojtěch",4]
["2018-09-22","Dorostenecká liga - 3. kolo Jablonec nad Nisou","DL","d","Meixner","Tomáš",null,"dorostenci","50",3,0,0,0,6,"Meixner Tomáš",6]
["2018-09-22","Dorostenecká liga - 3. kolo Jablonec nad Nisou","DL","d","Šimek","Daniel",null,"dorostenci","66",3,0,0,0,6,"Šimek Daniel",6]
["2018-09-22","Dorostenecká liga - 3. kolo Jablonec nad Nisou","DL","d","Kršňák","Filip",null,"dorostenci","60",2,0,1,0,4,"Kršňák Filip",4]
["2018-09-22","Dorostenecká liga - 3. kolo Jablonec nad Nisou","DL","d","Lindovský","Jiří",null,"dorostenci","60",2,0,0,0,4,"Lindovský Jiří",4]
["2018-09-22","Dorostenecká liga - 3. kolo Jablonec nad Nisou","DL","d","Pavlica","Lukáš",null,"dorostenci","90",2,0,3,0,4,"Pavlica Lukáš",4]
["2018-09-22","Dorostenecká liga - 3. kolo Jablonec nad Nisou","DL","d","Motyka","Dominik",null,"dorostenci","73",1,0,4,0,2,"Motyka Dominik",2]
["2018-09-22","Dorostenecká liga - 3. kolo Jablonec nad Nisou","DL","d","Tycar","Štěpán",null,"dorostenci","60",1,0,1,0,2,"Tycar Štěpán",2]
["2018-09-29","XX. Warszawa Open - 2018","MT","j","Lindovský","Jiří ",7,"starší žáci","55",4,0,2,2,4,"Lindovský Jiří ",6]
["2018-09-29","XX. Warszawa Open - 2018","MT","j","Motyka","Dominik",7,"starší žáci","73",4,0,2,2,4,"Motyka Dominik",6]
["2018-09-29","XX. Warszawa Open - 2018","MT","j","Křížek","Šimon",9,"starší žáci","55",2,0,2,0,2,"Křížek Šimon",2]
["2018-09-29","XX. Warszawa Open - 2018","MT","j","Kršňák","Filip","bez","starší žáci","60",1,0,3,0,1,"Kršňák Filip",1]
["2018-09-29","XX. Warszawa Open - 2018","MT","j","Čebík","Filip","bez","starší žáci","46",1,0,1,0,1,"Čebík Filip",1]
["2018-09-29","XX. Warszawa Open - 2018","MT","j","Fráňa","Patrik","bez","starší žáci","46",0,0,1,0,0,"Fráňa Patrik",0]
["2018-09-30","XX. Warszawa Open - 2018","MT","j","Tycar","Štěpán","bez","dorostenci","60",0,0,1,0,0,"Tycar Štěpán",0]
["2018-09-30","XX. Warszawa Open - 2018","MT","j","Malaczynski","Filip",9,"dorostenci","55",3,0,2,0,3,"Malaczynski Filip",3]
["2018-09-30","XX. Warszawa Open - 2018","MT","j","Meixner","Tomáš","bez","dorostenci","50",1,0,1,0,1,"Meixner Tomáš",1]
["2018-09-30","XX. Warszawa Open - 2018","MT","j","Pavlica","Tomáš",1,"dorostenci","+90",3,0,0,10,3,"Pavlica Tomáš",13]
["2018-09-30","XX. Warszawa Open - 2018","MT","j","Václavková","Tereza","bez","dorostenky","52",0,0,1,0,0,"Václavková Tereza",0]
["2018-09-30","XX. Warszawa Open - 2018","MT","j","Čerchlová","Markéta",2,"dorostenky","+70",3,0,1,7,3,"Čerchlová Markéta",10]
["2018-09-30","XX. Warszawa Open - 2018","MT","j","Silvestr","Matěj","bez","junioři","81",0,0,1,0,0,"Silvestr Matěj",0]
["2018-09-30","XX. Warszawa Open - 2018","MT","j","Martínková","Adéla",5,"juniorky","70",2,0,2,3,2,"Martínková Adéla",5]
["2018-09-30","XX. Warszawa Open - 2018","MT","j","Polášková","Kristýna","bez","juniorky","63",1,0,1,0,1,"Polášková Kristýna",1]
["2018-10-06","Grand Prix - Považská Bystrica","MVC","j","Kaszperová","Kristýna",3,"mláďata","46",3,0,1,3,3,"Kaszperová Kristýna",6]
["2018-10-06","Grand Prix - Považská Bystrica","MVC","j","Přichystal","Leon","bez","mláďata","27",0,0,1,0,0,"Přichystal Leon",0]
["2018-10-06","Grand Prix - Považská Bystrica","MVC","j","Ciora","Jakub","bez","mláďata","30",1,0,2,0,1,"Ciora Jakub",1]
["2018-10-06","Grand Prix - Považská Bystrica","MVC","j","Kuluris","Manolis","bez","mláďata","34",0,0,1,0,0,"Kuluris Manolis",0]
["2018-10-06","Grand Prix - Považská Bystrica","MVC","j","Mařec","Tomáš","bez","mláďata","0",0,0,1,0,0,"Mařec Tomáš",0]
["2018-10-06","Grand Prix - Považská Bystrica","MVC","j","Fojtík","Jiří Václav",7,"mláďata","30",2,0,2,0,2,"Fojtík Jiří Václav",2]
["2018-10-06","Grand Prix - Považská Bystrica","MVC","j","Zwilling","Šimon",3,"mláďata","42",3,0,1,3,3,"Zwilling Šimon",6]
["2018-10-06","Grand Prix - Považská Bystrica","MVC","j","Bechný","Adam","bez","mláďata","30",0,0,1,0,0,"Bechný Adam",0]
["2018-10-06","Grand Prix - Považská Bystrica","MVC","j","Huvar","Matyáš",3,"mláďata","38",4,0,1,3,4,"Huvar Matyáš",7]
["2018-10-06","Grand Prix - Považská Bystrica","MVC","j","Vlk","František",2,"mláďata","50",1,0,1,5,1,"Vlk František",6]
["2018-10-06","Grand Prix - Považská Bystrica","MVC","j","Rapčanová","Silvie",3,"mladší žákyně","36",1,0,1,3,1,"Rapčanová Silvie",4]
["2018-10-06","Grand Prix - Považská Bystrica","MVC","j","Rapčanová","Alice",3,"mladší žákyně","44",2,0,2,3,2,"Rapčanová Alice",5]
["2018-10-06","Grand Prix - Považská Bystrica","MVC","j","Vavřínová","Pavla",2,"mladší žákyně","52",2,0,1,5,2,"Vavřínová Pavla",7]
["2018-10-06","Grand Prix - Považská Bystrica","MVC","j","Seibert","Marian",5,"mladší žáci","42",2,0,2,0,2,"Seibert Marian",2]
["2018-10-06","Grand Prix - Považská Bystrica","MVC","j","Meixner","Michal",2,"mladší žáci","42",3,0,1,5,3,"Meixner Michal",8]
["2018-10-06","Grand Prix - Považská Bystrica","MVC","j","Suchan","Jan",7,"mladší žáci","42",1,0,2,0,1,"Suchan Jan",1]
["2018-10-06","Grand Prix - Považská Bystrica","MVC","j","Huvar","Jakub",1,"mladší žáci","46",4,0,0,6,4,"Huvar Jakub",10]
["2018-10-06","Grand Prix - Považská Bystrica","MVC","j","Křenek","Jakub","bez","mladší žáci","50",0,0,2,0,0,"Křenek Jakub",0]
["2018-10-06","Grand Prix - Považská Bystrica","MVC","j","Kolář","Vojtěch",5,"mladší žáci","50",1,0,2,0,1,"Kolář Vojtěch",1]
["2018-10-06","Grand Prix - Považská Bystrica","MVC","j","Horák","Adam",3,"mladší žáci","+60",1,0,2,3,1,"Horák Adam",4]
["2018-09-29","Mistrovství ČR Veteránů","MCR","j","Chlebový","Arnold",3,"veteráni","100",1,0,2,10,1,"Chlebový Arnold",11]
["2018-09-29","Mistrovství ČR Veteránů","MCR","j","Černota","Jiří",3,"veteráni","81",0,0,2,10,0,"Černota Jiří",10]
["2018-09-29","VC Ostravy","VC","j","Bechný","Adam",3,"mláďata","27",2,0,1,3,2,"Bechný Adam",5]
["2018-09-29","VC Ostravy","VC","j","Kaszperová","Kristýna",1,"mláďata","42",2,0,0,6,2,"Kaszperová Kristýna",8]
["2018-09-29","VC Ostravy","VC","j","Přichystal","Leon",3,"mláďata","27",1,0,2,{"$f":"IF(ISNA(VLOOKUP(C706&G706,$V$3:$W$92,2,FALSE)),0,VLOOKUP(C706&G706,$V$3:$W$92,2,FALSE))","v":3},1,{"$f":"E706&\" \"&F706","v":"Přichystal Leon"},4]
["2018-09-29","VC Ostravy","VC","j","Fojtík","Jiří Václav",7,"mláďata","30",1,0,2,0,{"$f":"IF(D707=\"d\",SUM(J707*2,K707),J707)","v":1},"Fojtík Jiří Václav",{"$f":"SUM(M707,N707)","v":1}]
["2018-09-29","VC Ostravy","VC","j","Ciora","Jakub",3,"mláďata","30",3,0,1,3,3,"Ciora Jakub",6]
["2018-09-29","VC Ostravy","VC","j","Šelong","Tadeáš","bez","mláďata","30",0,0,1,0,0,"Šelong Tadeáš",0]
["2018-09-29","VC Ostravy","VC","j","Mařec","Tomáš",5,"mláďata","34",1,0,2,0,1,"Mařec Tomáš",1]
["2018-09-29","VC Ostravy","VC","j","Valošek","Jakub","bez","mláďata","34",0,0,1,0,0,"Valošek Jakub",0]
["2018-09-29","VC Ostravy","VC","j","Kuluris","Manolis",3,"mláďata","34",4,0,1,3,4,"Kuluris Manolis",7]
["2018-09-29","VC Ostravy","VC","j","Kanclíř","Šimon",3,"mláďata","38",0,0,2,3,0,"Kanclíř Šimon",3]
["2018-09-29","VC Ostravy","VC","j","Kožušník","Václav","bez","mláďata","42",1,0,2,0,1,"Kožušník Václav",1]
["2018-09-29","VC Ostravy","VC","j","Zwilling","Šimon",1,"mláďata","42",5,0,0,6,5,"Zwilling Šimon",11]
["2018-09-29","VC Ostravy","VC","j","Malinovský","Jiří","bez","mláďata","42",0,0,2,0,0,"Malinovský Jiří",0]
["2018-09-29","VC Ostravy","VC","j","Vlk","František",2,"mláďata","46",2,0,1,5,2,"Vlk František",7]
["2018-09-29","VC Ostravy","VC","j","Rapčanová","Silvie",1,"mladší žákyně","36",4,0,0,6,4,"Rapčanová Silvie",10]
["2018-09-29","VC Ostravy","VC","j","Rapčanová","Alice",2,"mladší žákyně","44",2,0,1,5,2,"Rapčanová Alice",7]
["2018-09-29","VC Ostravy","VC","j","Vavřínová","Pavla",1,"mladší žákyně","57",2,0,0,6,2,"Vavřínová Pavla",8]
["2018-09-29","VC Ostravy","VC","j","To","Adam",5,"mladší žáci","38",2,0,2,0,2,"To Adam",2]
["2018-09-29","VC Ostravy","VC","j","Turek","Jakub",7,"mladší žáci","38",2,0,1,0,2,"Turek Jakub",2]
["2018-09-29","VC Ostravy","VC","j","Bechný","Martin","bez","mladší žáci","38",1,0,2,0,1,"Bechný Martin",1]
["2018-09-29","VC Ostravy","VC","j","Suchan","Jan","bez","mladší žáci","42",0,0,2,0,0,"Suchan Jan",0]
["2018-09-29","VC Ostravy","VC","j","Meixner","Michal",1,"mladší žáci","42",4,0,0,6,4,"Meixner Michal",10]
["2018-09-29","VC Ostravy","VC","j","Pospíšil","Jan",7,"mladší žáci","42",0,0,2,0,0,"Pospíšil Jan",0]
["2018-09-29","VC Ostravy","VC","j","Seibert","Marian",3,"mladší žáci","42",3,0,1,3,3,"Seibert Marian",6]
["2018-09-29","VC Ostravy","VC","j","Válek","Matěj",7,"mladší žáci","42",0,0,2,0,0,"Válek Matěj",0]
["2018-09-29","VC Ostravy","VC","j","Huvar","Jakub",1,"mladší žáci","46",5,0,0,6,5,"Huvar Jakub",11]
["2018-09-29","VC Ostravy","VC","j","Kulhánek","Adam",3,"mladší žáci","46",2,0,2,3,2,"Kulhánek Adam",5]
["2018-09-29","VC Ostravy","VC","j","Horák","Richard","bez","mladší žáci","46",1,0,2,0,1,"Horák Richard",1]
["2018-09-29","VC Ostravy","VC","j","Křenek","Jakub",7,"mladší žáci","50",0,0,2,0,0,"Křenek Jakub",0]
["2018-09-29","VC Ostravy","VC","j","Šimkovič","Ondřej","bez","mladší žáci","50",0,0,2,0,0,"Šimkovič Ondřej",0]
["2018-09-29","VC Ostravy","VC","j","Kobiernicki","Marek",3,"mladší žáci","50",2,0,1,3,2,"Kobiernicki Marek",5]
["2018-09-29","VC Ostravy","VC","j","Kolář","Vojtěch",3,"mladší žáci","50",2,0,1,3,2,"Kolář Vojtěch",5]
["2018-09-29","VC Ostravy","VC","j","Žáček","Radim",7,"mladší žáci","50",0,0,2,0,0,"Žáček Radim",0]
["2018-09-29","VC Ostravy","VC","j","Dryšl","Adam",5,"mladší žáci","50",2,0,2,0,2,"Dryšl Adam",2]
["2018-09-29","VC Ostravy","VC","j","Kožušník","Vojtěch","bez","mladší žáci","50",0,0,1,0,0,"Kožušník Vojtěch",0]
["2018-09-29","VC Ostravy","VC","j","Buček","Daniel",7,"mladší žáci","55",0,0,2,0,0,"Buček Daniel",0]
["2018-09-29","VC Ostravy","VC","j","Štverka","Matyáš",7,"mladší žáci","55",0,0,2,0,0,"Štverka Matyáš",0]
["2018-09-29","VC Ostravy","VC","j","Baudiš","Michal",5,"mladší žáci","55",2,0,2,0,2,"Baudiš Michal",2]
["2018-09-29","VC Ostravy","VC","j","Schwarz","Šimon",3,"mladší žáci","55",2,0,1,3,2,"Schwarz Šimon",5]
["2018-09-29","VC Ostravy","VC","j","Pavlík","Lukáš","bez","mladší žáci","60",0,0,4,0,0,"Pavlík Lukáš",0]
["2018-09-29","VC Ostravy","VC","j","Horák","Adam",2,"mladší žáci","+60",2,0,1,5,2,"Horák Adam",7]
["2018-09-29","VC Ostravy","VC","j","Kuželová","Dominika",3,"starší žákyně","57",1,0,1,3,1,"Kuželová Dominika",4]
["2018-09-29","VC Ostravy","VC","j","Matýsek","Jan",3,"starší žáci","46",1,0,2,3,1,"Matýsek Jan",4]
["2018-09-29","VC Ostravy","VC","j","Caletka","Petr",4,"starší žáci","50",0,0,3,0,0,"Caletka Petr",0]
["2018-09-29","VC Ostravy","VC","j","Tomek","David",1,"starší žáci","55",2,0,0,6,2,"Tomek David",8]
["2018-09-29","VC Ostravy","VC","j","Kaliský","Tomáš",4,"starší žáci","60",1,0,3,0,1,"Kaliský Tomáš",1]
["2018-09-29","VC Ostravy","VC","j","Čerchla","Michal",2,"starší žáci","66",2,0,1,5,2,"Čerchla Michal",7]
["2018-10-27","Mistrovství ČR - Jičín","MCR","j","Polášková","Kristýna",3,"ženy","60",2,0,1,10,2,"Polášková Kristýna",12]
["2018-10-27","Mistrovství ČR - Jičín","MCR","j","Martínková","Adéla",3,"ženy","70",2,0,1,10,2,"Martínková Adéla",12]
["2018-10-27","Mistrovství ČR - Jičín","MCR","j","Svoboda","Jiří",5,"muži","81",4,0,2,7,4,"Svoboda Jiří",11]
["2018-10-27","Mistrovství ČR - Jičín","MCR","j","Chlopčík","Ondřej","bez","muži","81",1,0,2,0,1,"Chlopčík Ondřej",1]
["2018-10-27","Mistrovství ČR - Jičín","MCR","j","Silvestr","Matěj","bez","muži","81",1,0,2,0,1,"Silvestr Matěj",1]
["2018-10-27","Mistrovství ČR - Jičín","MCR","j","Kohn","Tomáš","bez","muži","66",0,0,1,0,0,"Kohn Tomáš",0]
["2018-10-27","Mistrovství ČR - Jičín","MCR","j","Pustějovský","Tomáš","bez","muži","90",0,0,2,0,0,"Pustějovský Tomáš",0]
["2018-10-27","Mistrovství ČR - Jičín","MCR","j","Šmatelka","Ondřej","bez","muži","73",0,0,1,0,0,"Šmatelka Ondřej",0]
["2018-10-20","PČR mladší žáci","PCR","j","Neuwirt","Petr","bez","mladší žáci","34",0,0,1,0,0,"Neuwirt Petr",0]
["2018-10-20","PČR mladší žáci","PCR","j","Meixner","Michal",11,"mladší žáci","42",2,0,2,0,2,"Meixner Michal",2]
["2018-10-20","PČR mladší žáci","PCR","j","Huvar","Jakub",1,"mladší žáci","46",5,0,0,10,5,"Huvar Jakub",15]
["2018-10-20","PČR mladší žáci","PCR","j","Kolář","Vojtěch","bez","mladší žáci","50",0,0,1,0,0,"Kolář Vojtěch",0]
["2018-10-20","PČR mladší žáci","PCR","j","Křenek","Jakub","bez","mladší žáci","50",0,0,2,0,0,"Křenek Jakub",0]
["2018-10-20","PČR mladší žáci","PCR","j","Horák","Adam","bez","mladší žáci","+60",1,0,2,0,1,"Horák Adam",1]
["2018-10-20","PČR mladší žáci","PCR","j","Rapčanová","Silvie",3,"mladší žákyně","36",4,0,1,5,4,"Rapčanová Silvie",9]
["2018-10-20","PČR mladší žáci","PCR","j","Bukovjanová","Charlotte",9,"mladší žákyně","40",1,0,2,0,1,"Bukovjanová Charlotte",1]
["2018-10-20","PČR mladší žáci","PCR","j","Rapčanová","Alice","bez","mladší žákyně","44",0,0,2,0,0,"Rapčanová Alice",0]
["2018-10-20","PČR mladší žáci","PCR","j","Vavřínová","Pavla",3,"mladší žákyně","52",2,0,1,5,2,"Vavřínová Pavla",7]
["2018-10-21","PČR starší žáci","PCR","j","Vontor","Tomáš",2,"starší žáci","38",2,0,1,7,2,"Vontor Tomáš",9]
["2018-10-21","PČR starší žáci","PCR","j","Buranyč","Filip",5,"starší žáci","34",1,0,4,{"$f":"IF(ISNA(VLOOKUP(C770&G770,$V$3:$W$92,2,FALSE)),0,VLOOKUP(C770&G770,$V$3:$W$92,2,FALSE))","v":3},1,{"$f":"E770&\" \"&F770","v":"Buranyč Filip"},4]
["2018-10-21","PČR starší žáci","PCR","j","Čebík","Filip",7,"starší žáci","46",1,0,2,2,{"$f":"IF(D771=\"d\",SUM(J771*2,K771),J771)","v":1},"Čebík Filip",{"$f":"SUM(M771,N771)","v":3}]
["2018-10-21","PČR starší žáci","PCR","j","Kunc","Matěj",5,"starší žáci","50",2,0,2,3,2,"Kunc Matěj",5]
["2018-10-21","PČR starší žáci","PCR","j","Křížek","Šimon",7,"starší žáci","55",3,0,2,2,3,"Křížek Šimon",5]
["2018-10-21","PČR starší žáci","PCR","j","Lindovský","Jiří",2,"starší žáci","55",3,0,1,7,3,"Lindovský Jiří",10]
["2018-10-21","PČR starší žáci","PCR","j","Fráňa","Patrik","bez","starší žáci","46",1,0,1,0,1,"Fráňa Patrik",1]
["2018-10-21","PČR starší žáci","PCR","j","Motyka","Dominik",1,"starší žáci","73",3,0,0,10,3,"Motyka Dominik",13]
["2018-10-21","PČR starší žáci","PCR","j","Otáhalová","Magdaléna",7,"starší žákyně","52",2,0,2,2,2,"Otáhalová Magdaléna",4]
["2018-10-21","PČR starší žáci","PCR","j","Kuželová","Dominika",7,"starší žákyně","57",2,0,2,2,2,"Kuželová Dominika",4]
["2018-10-21","PČR starší žáci","PCR","j","Kolář","Daniel","bez","starší žáci","60",0,0,1,0,0,"Kolář Daniel",0]
["2018-10-21","PČR starší žáci","PCR","j","Tomek","David","bez","starší žáci","60",0,0,1,0,0,"Tomek David",0]
["2018-10-20","10.turnaj benjamínků Štramberk","MC","j","Macháček","Tomáš",5,"mláďata",null,0,0,4,0,0,"Macháček Tomáš",0]
["2018-10-20","10.turnaj benjamínků Štramberk","MC","j","Kanclíř","Šimon",1,"mláďata",null,4,0,0,4,4,"Kanclíř Šimon",8]
["2018-10-20","10.turnaj benjamínků Štramberk","MC","j","Bartošic","Sebastián",3,"mláďata",null,2,0,1,2,2,"Bartošic Sebastián",4]
["2018-10-20","10.turnaj benjamínků Štramberk","MC","j","Šelong","Tadeáš",5,"mláďata",null,0,0,4,0,0,"Šelong Tadeáš",0]
["2018-10-20","10.turnaj benjamínků Štramberk","MC","j","Nuhlíček","Michal",4,"mláďata",null,1,0,3,0,1,"Nuhlíček Michal",1]
["2018-10-20","10.turnaj benjamínků Štramberk","MC","j","Plaček","Viktor",3,"mláďata",null,3,0,2,2,3,"Plaček Viktor",5]
["2018-10-20","10.turnaj benjamínků Štramberk","MC","j","Kocmanová","Lucie",2,"mláďata",null,2,0,1,3,2,"Kocmanová Lucie",5]
["2018-10-20","10.turnaj benjamínků Štramberk","MC","j","Stark","Vojtěch",1,"mláďata",null,3,0,0,4,3,"Stark Vojtěch",7]
["2018-10-20","10.turnaj benjamínků Štramberk","MC","j","Vlk","František",3,"mláďata",null,3,0,2,2,3,"Vlk František",5]
["2018-10-20","10.turnaj benjamínků Štramberk","MC","j","Kožušník","Václav",1,"mláďata",null,2,0,1,4,2,"Kožušník Václav",6]
["2018-10-20","10.turnaj benjamínků Štramberk","MC","j","Bechný","Adam",1,"mláďata",null,2,0,1,4,2,"Bechný Adam",6]
["2018-10-20","10.turnaj benjamínků Štramberk","MC","j","Fojtík","Jiří Václav",3,"mláďata",null,3,0,1,2,3,"Fojtík Jiří Václav",5]
["2018-10-20","10.turnaj benjamínků Štramberk","MC","j","Ciora","Jakub",5,"mláďata",null,1,0,4,0,1,"Ciora Jakub",1]
["2018-10-20","10.turnaj benjamínků Štramberk","MC","j","Přichystal","Leon",4,"mláďata",null,1,0,4,0,1,"Přichystal Leon",1]
["2018-10-20","10.turnaj benjamínků Štramberk","MC","j","Mařec","Tomáš",2,"mláďata",null,3,0,1,3,3,"Mařec Tomáš",6]
["2018-10-20","10.turnaj benjamínků Štramberk","MC","j","Zwilling","Šimon",1,"mláďata",null,4,0,1,4,4,"Zwilling Šimon",8]
["2018-10-20","10.turnaj benjamínků Štramberk","MC","j","Kuluris","Manolis",2,"mláďata",null,3,0,1,3,3,"Kuluris Manolis",6]
["2018-10-27","ECC Koper","EJU","j","Václavková","Tereza","bez","dorostenky","52",0,0,1,0,0,"Václavková Tereza",0]
["2018-11-03","MČR dorost","MCR","j","Bulka","Vojtěch",1,"dorostenci","50",4,0,0,20,4,"Bulka Vojtěch",24]
["2018-11-03","MČR dorost","MCR","j","Meixner","Tomáš",2,"dorostenci","50",2,0,1,15,2,"Meixner Tomáš",17]
["2018-11-03","MČR dorost","MCR","j","Malaczynski","Filip",5,"dorostenci","55",3,0,2,7,3,"Malaczynski Filip",10]
["2018-11-03","MČR dorost","MCR","j","Tycar","Štěpán",7,"dorostenci","55",3,0,2,5,3,"Tycar Štěpán",8]
["2018-11-03","MČR dorost","MCR","j","Lindovský","Jiří",7,"dorostenci","55",3,0,2,5,3,"Lindovský Jiří",8]
["2018-11-03","MČR dorost","MCR","j","Šimek","Daniel",5,"dorostenci","60",3,0,2,7,3,"Šimek Daniel",10]
["2018-11-03","MČR dorost","MCR","j","Motyka","Dominik","bez","dorostenci","73",0,0,2,0,0,"Motyka Dominik",0]
["2018-11-03","MČR dorost","MCR","j","Pavlica","Tomáš",1,"dorostenci","+90",3,0,0,20,3,"Pavlica Tomáš",23]
["2018-11-03","MČR dorost","MCR","j","Václavková","Tereza","bez","dorostenky","52",0,0,2,0,0,"Václavková Tereza",0]
["2018-11-03","MČR dorost","MCR","j","Čerchlová","Markéta",5,"dorostenky","+70",1,0,2,7,1,"Čerchlová Markéta",8]
["2018-10-06","Český pohár Teplice","KT","j","Vontor","Tomáš",3,"starší žáci","38",4,0,1,5,4,"Vontor Tomáš",9]
["2018-10-06","Český pohár Teplice","KT","j","Matýsek","Jan","bez","starší žáci","46",0,0,1,0,0,"Matýsek Jan",0]
["2018-10-06","Český pohár Teplice","KT","j","Čebík","Filip","bez","starší žáci","46",1,0,1,0,1,"Čebík Filip",1]
["2018-10-06","Český pohár Teplice","KT","j","Křížek","Šimon","bez","starší žáci","55",2,0,2,0,2,"Křížek Šimon",2]
["2018-10-06","Český pohár Teplice","KT","j","Čerchla","Michal","bez","starší žáci","66",0,0,2,0,0,"Čerchla Michal",0]
["2018-10-06","Český pohár Teplice","KT","j","Caletka","Petr","bez","starší žáci","50",0,0,1,0,0,"Caletka Petr",0]
["2018-10-06","Český pohár Teplice","KT","j","Lindovský","Jiří",3,"starší žáci","55",5,0,1,5,5,"Lindovský Jiří",10]
["2018-10-06","Český pohár Teplice","KT","j","Fráňa","Patrik",5,"starší žáci","46",2,0,2,3,2,"Fráňa Patrik",5]
["2018-10-06","Český pohár Teplice","KT","j","Kršňák","Filip",2,"starší žáci","60",3,0,1,7,3,"Kršňák Filip",10]
["2018-10-06","Český pohár Teplice","KT","j","Motyka","Dominik",1,"starší žáci","73",4,0,0,10,4,"Motyka Dominik",14]
["2018-10-06","Český pohár Teplice","KT","j","Otáhalová","Magdaléna",5,"starší žákyně","52",2,0,2,3,2,"Otáhalová Magdaléna",5]
["2018-10-06","Český pohár Teplice","KT","j","Kuželová","Dominika",2,"starší žákyně","57",3,0,1,7,3,"Kuželová Dominika",10]
["2018-10-06","Český pohár Teplice","KT","j","Tomek","David","bez","starší žáci","60",1,0,2,0,1,"Tomek David",1]
["2018-11-10","MT Bytom","MT","j","Tycar","Štěpán","bez","dorostenci","60",0,0,2,0,0,"Tycar Štěpán",0]
["2018-11-10","MT Bytom","MT","j","Malaczynski","Filip","bez","dorostenci","55",1,0,2,0,1,"Malaczynski Filip",1]
["2018-11-10","MT Bytom","MT","j","Mojžíšek","Lukáš","bez","dorostenci","90",0,0,1,0,0,"Mojžíšek Lukáš",0]
["2018-11-10","MT Bytom","MT","j","Bulka","Vojtěch","bez","dorostenci","55",0,0,1,0,0,"Bulka Vojtěch",0]
["2018-11-10","MT Bytom","MT","j","Václavková","Tereza",3,"dorostenky","52",3,0,1,5,3,"Václavková Tereza",8]
["2018-11-10","MT Bytom","MT","j","Čerchlová","Markéta","bez","dorostenky","+70",0,0,1,0,0,"Čerchlová Markéta",0]
["2018-11-10","MT Bytom","MT","j","Motyka","Dominik","bez","dorostenci","73",1,0,1,0,1,"Motyka Dominik",1]
["2018-11-10","MT Bytom","MT","j","Lindovský","Jiří","bez","dorostenci","55",1,0,1,0,1,"Lindovský Jiří",1]
["2018-11-17","Memoriál Alexandra Jurečky","VC","j","Neuwirt","Petr","bez","mladší žáci","34",0,0,1,0,0,"Neuwirt Petr",0]
["2018-11-17","Memoriál Alexandra Jurečky","VC","j","To","Adam",7,"mladší žáci","34",1,0,2,0,1,"To Adam",1]
["2018-11-17","Memoriál Alexandra Jurečky","VC","j","Turek","Jakub",7,"mladší žáci","38",0,0,2,0,0,"Turek Jakub",0]
["2018-11-17","Memoriál Alexandra Jurečky","VC","j","Suchan","Jan","bez","mladší žáci","42",0,0,2,0,0,"Suchan Jan",0]
["2018-11-17","Memoriál Alexandra Jurečky","VC","j","Seibert","Marian",1,"mladší žáci","42",3,0,1,{"$f":"IF(ISNA(VLOOKUP(C834&G834,$V$3:$W$92,2,FALSE)),0,VLOOKUP(C834&G834,$V$3:$W$92,2,FALSE))","v":6},3,{"$f":"E834&\" \"&F834","v":"Seibert Marian"},9]
["2018-11-17","Memoriál Alexandra Jurečky","VC","j","Matušek","Jakub",3,"mladší žáci","42",2,0,1,3,{"$f":"IF(D835=\"d\",SUM(J835*2,K835),J835)","v":2},"Matušek Jakub",{"$f":"SUM(M835,N835)","v":5}]
["2018-11-17","Memoriál Alexandra Jurečky","VC","j","Fojtík","Daniel",3,"mladší žáci","42",1,0,2,3,1,"Fojtík Daniel",4]
["2018-11-17","Memoriál Alexandra Jurečky","VC","j","Válek","Matěj","bez","mladší žáci","42",0,0,2,0,0,"Válek Matěj",0]
["2018-11-17","Memoriál Alexandra Jurečky","VC","j","King","Samuel",7,"mladší žáci","46",1,0,2,0,1,"King Samuel",1]
["2018-11-17","Memoriál Alexandra Jurečky","VC","j","Meixner","Michal",2,"mladší žáci","46",3,0,1,5,3,"Meixner Michal",8]
["2018-11-17","Memoriál Alexandra Jurečky","VC","j","Dryšl","Adam",7,"mladší žáci","50",1,0,2,0,1,"Dryšl Adam",1]
["2018-11-17","Memoriál Alexandra Jurečky","VC","j","Kobiernicki","Marek",5,"mladší žáci","50",2,0,2,0,2,"Kobiernicki Marek",2]
["2018-11-17","Memoriál Alexandra Jurečky","VC","j","Šotola","Kryštof","bez","mladší žáci","50",0,0,1,0,0,"Šotola Kryštof",0]
["2018-11-17","Memoriál Alexandra Jurečky","VC","j","Kolář","Vojtěch",3,"mladší žáci","50",3,0,1,3,3,"Kolář Vojtěch",6]
["2018-11-17","Memoriál Alexandra Jurečky","VC","j","Šimkovič","Ondřej","bez","mladší žáci","50",0,0,2,0,0,"Šimkovič Ondřej",0]
["2018-11-17","Memoriál Alexandra Jurečky","VC","j","Žáček","Radim","bez","mladší žáci","50",0,0,1,0,0,"Žáček Radim",0]
["2018-11-17","Memoriál Alexandra Jurečky","VC","j","Kožušník","Vojtěch",5,"mladší žáci","50",2,0,2,0,2,"Kožušník Vojtěch",2]
["2018-11-17","Memoriál Alexandra Jurečky","VC","j","Křenek","Jakub","bez","mladší žáci","50",0,0,2,0,0,"Křenek Jakub",0]
["2018-11-17","Memoriál Alexandra Jurečky","VC","j","Baudiš","Michal",3,"mladší žáci","55",2,0,2,3,2,"Baudiš Michal",5]
["2018-11-17","Memoriál Alexandra Jurečky","VC","j","Hegner","Leoš","bez","mladší žáci","60",0,0,3,0,0,"Hegner Leoš",0]
["2018-11-17","Memoriál Alexandra Jurečky","VC","j","Krischke","Fabien",3,"mladší žáci","60",2,0,1,3,2,"Krischke Fabien",5]
["2018-11-17","Memoriál Alexandra Jurečky","VC","j","Horák","Adam",3,"mladší žáci","+60",3,0,1,3,3,"Horák Adam",6]
["2018-11-17","Memoriál Alexandra Jurečky","VC","j","Zakaryan","Erik","bez","mladší žáci","+60",0,0,2,0,0,"Zakaryan Erik",0]
["2018-11-17","Memoriál Alexandra Jurečky","VC","j","Vontor","Tomáš",1,"starší žáci","38",2,0,0,6,2,"Vontor Tomáš",8]
["2018-11-17","Memoriál Alexandra Jurečky","VC","j","Čebík","Filip","bez","starší žáci","46",0,0,2,0,0,"Čebík Filip",0]
["2018-11-17","Memoriál Alexandra Jurečky","VC","j","Caletka","Michal",4,"starší žáci","50",1,0,3,0,1,"Caletka Michal",1]
["2018-11-17","Memoriál Alexandra Jurečky","VC","j","Caletka","Petr",3,"starší žáci","50",2,0,2,3,2,"Caletka Petr",5]
["2018-11-17","Memoriál Alexandra Jurečky","VC","j","Čech","Jiří",3,"starší žáci","55",1,0,3,3,1,"Čech Jiří",4]
["2018-11-17","Memoriál Alexandra Jurečky","VC","j","Tomek","David",1,"starší žáci","60",2,0,0,6,2,"Tomek David",8]
["2018-11-17","Memoriál Alexandra Jurečky","VC","j","Fulneček","Šimon",2,"starší žáci","73",1,0,1,5,1,"Fulneček Šimon",6]
["2018-11-17","Memoriál Alexandra Jurečky","VC","j","Meixner","Tomáš",1,"dorostenci","55",2,0,0,6,2,"Meixner Tomáš",8]
["2018-11-24","Dorostenecká liga - 4. kolo Hranice","DL","d","Pavlica","Tomáš",null,"dorostenci","+90",5,0,0,0,10,"Pavlica Tomáš",10]
["2018-11-24","Dorostenecká liga - 4. kolo Hranice","DL","d","Meixner","Tomáš",null,"dorostenci","50",5,0,0,0,10,"Meixner Tomáš",10]
["2018-11-24","Dorostenecká liga - 4. kolo Hranice","DL","d","Mojžíšek","Lukáš",null,"dorostenci","81",2,0,2,0,4,"Mojžíšek Lukáš",4]
["2018-11-24","Dorostenecká liga - 4. kolo Hranice","DL","d","Bulka","Vojtěch",null,"dorostenci","55",2,0,0,0,4,"Bulka Vojtěch",4]
["2018-11-24","Dorostenecká liga - 4. kolo Hranice","DL","d","Kresta","Matěj",null,"dorostenci","73",0,0,2,0,0,"Kresta Matěj",0]
["2018-11-24","Dorostenecká liga - 4. kolo Hranice","DL","d","Šimek","Daniel",null,"dorostenci","66",4,0,1,0,8,"Šimek Daniel",8]
["2018-11-24","Dorostenecká liga - 4. kolo Hranice","DL","d","Malaczynski","Filip",null,"dorostenci","60",0,0,3,0,0,"Malaczynski Filip",0]
["2018-11-24","Dorostenecká liga - 4. kolo Hranice","DL","d","Motyka","Dominik",null,"dorostenci","73",3,0,1,0,6,"Motyka Dominik",6]
["2018-11-24","Dorostenecká liga - 4. kolo Hranice","DL","d","Tycar","Štěpán",null,"dorostenci","60",2,0,0,0,4,"Tycar Štěpán",4]
["2018-11-24","Dorostenecká liga - 4. kolo Hranice","DL","d","Lindovský","Jiří",null,"dorostenci","55",1,0,0,0,2,"Lindovský Jiří",2]
["2018-11-24","Dorostenecká liga - 4. kolo Hranice","DL","d","Pavlica","Lukáš",null,"dorostenci","90",1,0,4,0,2,"Pavlica Lukáš",2]
["2018-11-24","Dorostenecká liga - 4. kolo Hranice","DL","d","Křížek","Šimon",null,"dorostenci","55",1,0,0,0,2,"Křížek Šimon",2]
["2018-11-24","Velká cena Karviné","VC","j","Dryšl","Adam","bez","mladší žáci","50",0,0,2,0,0,"Dryšl Adam",0]
["2018-11-24","Velká cena Karviné","VC","j","Kožušník","Vojtěch",5,"mladší žáci","50",2,0,2,0,2,"Kožušník Vojtěch",2]
["2018-11-24","Velká cena Karviné","VC","j","Pospíšil","Jan","bez","mladší žáci","46",0,0,2,0,0,"Pospíšil Jan",0]
["2018-11-24","Velká cena Karviné","VC","j","Válek","Matěj","bez","mladší žáci","42",0,0,4,0,0,"Válek Matěj",0]
["2018-11-24","Velká cena Karviné","VC","j","Kolář","Vojtěch",3,"mladší žáci","50",3,0,1,3,3,"Kolář Vojtěch",6]
["2018-11-24","Velká cena Karviné","VC","j","Baudiš","Michal",3,"mladší žáci","55",1,0,2,3,1,"Baudiš Michal",4]
["2018-11-24","Velká cena Karviné","VC","j","King","Samuel",3,"mladší žáci","46",1,0,2,3,1,"King Samuel",4]
["2018-11-24","Velká cena Karviné","VC","j","Šotola","Kryštof","bez","mladší žáci","50",0,0,2,0,0,"Šotola Kryštof",0]
["2018-11-24","Velká cena Karviné","VC","j","Pavlík","Lukáš","bez","mladší žáci","60",0,0,3,0,0,"Pavlík Lukáš",0]
["2018-11-24","Velká cena Karviné","VC","j","Caletka","Michal",3,"starší žáci","50",0,0,2,3,0,"Caletka Michal",3]
["2018-11-24","Velká cena Karviné","VC","j","Caletka","Petr",2,"starší žáci","50",1,0,1,5,1,"Caletka Petr",6]
["2018-11-25","MT Olešnice, Polsko","MT","j","Polášková","Kristýna",7,"juniorky","63",1,0,2,2,1,"Polášková Kristýna",3]
["2018-11-25","MT Olešnice, Polsko","MT","j","Silvestr","Matěj","bez","junioři","81",0,0,2,0,0,"Silvestr Matěj",0]
["2018-12-01","Memoriał Trenera Edwarda Faciejewa","MVC","j","Kuluris","Manolis","bez","mláďata","33",0,0,1,0,0,"Kuluris Manolis",0]
["2018-12-01","Memoriał Trenera Edwarda Faciejewa","MVC","j","Ciora","Jakub","bez","mláďata","30",0,0,2,0,0,"Ciora Jakub",0]
["2018-12-01","Memoriał Trenera Edwarda Faciejewa","MVC","j","Mařec","Tomáš",3,"mláďata","33",4,0,1,3,4,"Mařec Tomáš",7]
["2018-12-01","Memoriał Trenera Edwarda Faciejewa","MVC","j","Přichystal","Leon",3,"mláďata","27",3,0,1,3,3,"Přichystal Leon",6]
["2018-12-01","Memoriał Trenera Edwarda Faciejewa","MVC","j","Kaszperová","Kristýna",1,"mláďata","46",4,0,0,6,4,"Kaszperová Kristýna",10]
["2018-12-01","Memoriał Trenera Edwarda Faciejewa","MVC","j","Vlk","František","bez","mláďata","51",2,0,1,0,2,"Vlk František",2]
["2018-12-01","Memoriał Trenera Edwarda Faciejewa","MVC","j","Zwilling","Šimon",3,"mláďata","42",2,0,1,3,2,"Zwilling Šimon",5]
["2018-12-01","Memoriał Trenera Edwarda Faciejewa","MVC","j","Fojtík","Jiří Václav","bez","mláďata","30",0,0,2,0,0,"Fojtík Jiří Václav",0]
["2018-12-01","Memoriał Trenera Edwarda Faciejewa","MVC","j","Valošek","Jakub","bez","mláďata","33",1,0,2,0,1,"Valošek Jakub",1]
["2018-12-01","Memoriał Trenera Edwarda Faciejewa","MVC","j","To","Vojtěch","bez","mláďata","25",1,0,2,0,1,"To Vojtěch",1]
["2018-12-01","Memoriał Trenera Edwarda Faciejewa","MVC","j","Nuhlíček","Michal","bez","mláďata","30",1,0,2,0,1,"Nuhlíček Michal",1]
["2018-12-01","Memoriał Trenera Edwarda Faciejewa","MVC","j","Bechný","Adam","bez","mláďata","27",0,0,1,0,0,"Bechný Adam",0]
["2018-12-01","Memoriał Trenera Edwarda Faciejewa","MVC","j","Kanclíř","Šimon","bez","mláďata","36",1,0,2,{"$f":"IF(ISNA(VLOOKUP(C898&G898,$V$3:$W$92,2,FALSE)),0,VLOOKUP(C898&G898,$V$3:$W$92,2,FALSE))","v":0},1,{"$f":"E898&\" \"&F898","v":"Kanclíř Šimon"},1]
["2018-12-01","Memoriał Trenera Edwarda Faciejewa","MVC","j","Bechný","Martin","bez","mladší žáci","36",1,0,2,0,{"$f":"IF(D899=\"d\",SUM(J899*2,K899),J899)","v":1},"Bechný Martin",{"$f":"SUM(M899,N899)","v":1}]
["2018-12-01","Memoriał Trenera Edwarda Faciejewa","MVC","j","To","Adam","bez","mladší žáci","36",0,0,2,0,0,"To Adam",0]
["2018-12-01","Memoriał Trenera Edwarda Faciejewa","MVC","j","Šimkovič","Ondřej","bez","mladší žáci","50",0,0,2,0,0,"Šimkovič Ondřej",0]
["2018-12-01","Memoriał Trenera Edwarda Faciejewa","MVC","j","King","Samuel","bez","mladší žáci","46",2,0,2,0,2,"King Samuel",2]
["2018-12-01","Memoriał Trenera Edwarda Faciejewa","MVC","j","Nuhlíček","Jakub","bez","mladší žáci","36",0,0,2,0,0,"Nuhlíček Jakub",0]
["2018-12-01","Memoriał Trenera Edwarda Faciejewa","MVC","j","Rapčanová","Alice",7,"mladší žákyně","44",2,0,1,0,2,"Rapčanová Alice",2]
["2018-12-01","XII. Vánoční turnaj MěPol Ostrava","MC","j","Galamboš","Kristián",1,"mláďata","55",2,0,1,4,2,"Galamboš Kristián",6]
["2018-12-01","XII. Vánoční turnaj MěPol Ostrava","MC","j","Škoda","Melichar",2,"mláďata","55",1,0,2,3,1,"Škoda Melichar",4]
["2018-12-01","XII. Vánoční turnaj MěPol Ostrava","MC","j","Plaček","Viktor",2,"mláďata","40",0,0,2,3,0,"Plaček Viktor",3]
["2018-12-01","XII. Vánoční turnaj MěPol Ostrava","MC","j","Macháček","Tomáš",1,"mláďata","30",2,0,0,4,2,"Macháček Tomáš",6]
["2018-12-01","XII. Vánoční turnaj MěPol Ostrava","MC","j","Stark","Vojtěch",2,"mláďata","38",2,0,2,3,2,"Stark Vojtěch",5]
["2018-12-01","XII. Vánoční turnaj MěPol Ostrava","MC","j","Menzel","František",4,"mláďata","30",0,0,4,0,0,"Menzel František",0]
["2018-12-01","XII. Vánoční turnaj MěPol Ostrava","MC","j","Jančata","Daniel",3,"mláďata","30",0,0,2,2,0,"Jančata Daniel",2]
["2018-12-01","XII. Vánoční turnaj MěPol Ostrava","MC","j","Ryška","Filip",3,"mláďata","35",1,0,2,2,1,"Ryška Filip",3]
["2018-12-01","XII. Vánoční turnaj MěPol Ostrava","MC","j","Murin","Jan",3,"mláďata","33",0,0,2,2,0,"Murin Jan",2]
["2018-12-01","XII. Vánoční turnaj MěPol Ostrava","MC","j","Bravanský","Marek",3,"mláďata","32",1,0,2,2,1,"Bravanský Marek",3]
["2018-12-01","XII. Vánoční turnaj MěPol Ostrava","MC","j","Přidal","Ladislav",1,"mláďata","25",2,0,0,4,2,"Přidal Ladislav",6]
["2018-12-01","XII. Vánoční turnaj MěPol Ostrava","MC","j","Šotola","Kryštof",3,"mladší žáci","50",0,0,2,2,0,"Šotola Kryštof",2]
["2018-12-15","Pohár starosty obce Dobrá","MC","j","Valošek","Jakub",3,"mláďata","34",2,0,2,2,2,"Valošek Jakub",4]
["2018-12-15","Pohár starosty obce Dobrá","MC","j","Zwilling","Šimon",1,"mláďata","42",3,0,0,4,3,"Zwilling Šimon",7]
["2018-12-15","Pohár starosty obce Dobrá","MC","j","Kanclíř","Šimon",2,"mláďata","42",1,0,2,3,1,"Kanclíř Šimon",4]
["2018-12-15","Pohár starosty obce Dobrá","MC","j","Ryška","Filip",3,"mláďata","38",1,0,3,2,1,"Ryška Filip",3]
["2018-12-15","Pohár starosty obce Dobrá","MC","j","Seibert","Marian",2,"mladší žáci","42",3,0,1,3,3,"Seibert Marian",6]
["2018-12-15","Pohár starosty obce Dobrá","MC","j","Kožušník","Vojtěch",1,"mladší žáci","50",4,0,0,4,4,"Kožušník Vojtěch",8]
["2018-12-15","Pohár starosty obce Dobrá","MC","j","Šotola","Kryštof",5,"mladší žáci","50",0,0,4,0,0,"Šotola Kryštof",0]
["2018-12-15","Pohár starosty obce Dobrá","MC","j","Pospíšil","Jan",2,"mladší žáci","46",1,0,1,3,1,"Pospíšil Jan",4]
["2018-12-15","Pohár starosty obce Dobrá","MC","j","To","Adam",3,"mladší žáci","34",2,0,1,2,2,"To Adam",4]
["2018-12-15","Pohár starosty obce Dobrá","MC","j","Bernacký","Mikuláš",2,"starší žáci","+73",2,0,1,3,2,"Bernacký Mikuláš",5]
["2018-12-15","Pohár starosty obce Dobrá","MC","j","Caletka","Michal",4,"starší žáci","50",1,0,3,0,1,"Caletka Michal",1]
["2018-12-15","Pohár starosty obce Dobrá","MC","j","Caletka","Petr",3,"starší žáci","50",2,0,2,2,2,"Caletka Petr",4]
["2018-09-23","MT Judo Open  Harmonie Mutuelle ROUEN","MT","d","Rapčanová","Silvie",2,"mladší žákyně","40",5,0,0,7,10,"Rapčanová Silvie",17]
["2018-09-23","MT Judo Open  Harmonie Mutuelle ROUEN","MT","d","Rapčanová","Alice",2,"mladší žákyně","44",2,0,3,7,4,"Rapčanová Alice",11]
["2018-09-23","MT Judo Open  Harmonie Mutuelle ROUEN","MT","d","Vavřínová","Pavla",2,"mladší žákyně","57",4,0,1,7,8,"Vavřínová Pavla",15]
["2018-09-23","MT Judo Open  Harmonie Mutuelle ROUEN","MT","d","Vontor","Tomáš",6,"starší žáci","38",1,1,1,2,3,"Vontor Tomáš",5]
["2018-09-23","MT Judo Open  Harmonie Mutuelle ROUEN","MT","d","Meixner","Michal",6,"mladší žáci","42",1,1,1,2,3,"Meixner Michal",5]
["2018-09-23","MT Judo Open  Harmonie Mutuelle ROUEN","MT","d","Huvar","Jakub",6,"mladší žáci","46",2,0,1,2,4,"Huvar Jakub",6]
["2018-09-23","MT Judo Open  Harmonie Mutuelle ROUEN","MT","d","Caletka","Petr",6,"starší žáci","50",1,0,2,2,2,"Caletka Petr",4]
["2018-09-23","MT Judo Open  Harmonie Mutuelle ROUEN","MT","d","Tomek","David",6,"starší žáci","55",2,0,1,2,4,"Tomek David",6]
["2018-06-16","MT Bochnia - Polsko","MT","j","Kaszperová","Kristýna",2,"mláďata","42",1,0,2,7,1,"Kaszperová Kristýna",8]
["2018-06-16","MT Bochnia - Polsko","MT","j","Přichystal","Leon",1,"mláďata","27",3,0,0,10,3,"Přichystal Leon",13]
["2018-06-16","MT Bochnia - Polsko","MT","j","Ciora","Jakub",3,"mláďata","29",2,0,1,5,2,"Ciora Jakub",7]
["2018-06-16","MT Bochnia - Polsko","MT","j","Kuluris","Manolis",5,"mláďata","32",2,0,2,3,2,"Kuluris Manolis",5]
["2018-06-16","MT Bochnia - Polsko","MT","j","Mařec","Tomáš",7,"mláďata","32",2,0,2,2,2,"Mařec Tomáš",4]
["2018-06-16","MT Bochnia - Polsko","MT","j","Vlk","František","bez","mláďata","+42",0,0,2,0,0,"Vlk František",0]
["2018-06-16","MT Bochnia - Polsko","MT","j","Fojtík","Jiří",7,"mláďata","29",2,0,2,2,2,"Fojtík Jiří",4]
["2018-06-16","MT Bochnia - Polsko","MT","j","Zwilling","Šimon",7,"mláďata","42",2,0,2,2,2,"Zwilling Šimon",4]
["2018-06-16","MT Bochnia - Polsko","MT","j","Huvar","Matyáš",3,"mláďata","36",3,0,1,5,3,"Huvar Matyáš",8]
["2018-03-24","Memoriál Jana Stankoviče - ČP Ostrava ","KT","j","Huvar","Jan","bez","muži","66",0,0,2,0,0,"Huvar Jan",0]
["2018-03-24","Memoriál Jana Stankoviče - ČP Ostrava ","KT","j","Šmatelka","Ondřej","bez","muži","73",0,0,1,0,0,"Šmatelka Ondřej",0]
["2018-03-24","Memoriál Jana Stankoviče - ČP Ostrava ","KT","j","Kohn","Pavel",3,"muži","73",3,0,1,5,3,"Kohn Pavel",8]
["2018-03-24","Memoriál Jana Stankoviče - ČP Ostrava ","KT","j","Kohn","Tomáš","bez","muži","73",1,0,2,0,1,"Kohn Tomáš",1]
["2018-03-24","Memoriál Jana Stankoviče - ČP Ostrava ","KT","j","Svoboda","Jiří",1,"muži","81",2,0,0,10,2,"Svoboda Jiří",12]
["2018-03-24","Memoriál Jana Stankoviče - ČP Ostrava ","KT","j","Gřešek","Vít","bez","muži","90",0,0,2,0,0,"Gřešek Vít",0]
["2018-06-16","MT Bochnia - Polsko","MT","j","Seibert","Marian",3,"mladší žáci","42",3,0,1,5,3,"Seibert Marian",8]
["2018-06-16","MT Bochnia - Polsko","MT","j","Boháček","Jan",2,"mladší žáci","46",3,0,1,7,3,"Boháček Jan",10]
["2018-06-16","MT Bochnia - Polsko","MT","j","Meixner","Michal",3,"mladší žáci","42",2,0,1,5,2,"Meixner Michal",7]
[null,null,null,null,null,null,null,null,null,null,null,null,0,0," ",0]
[null,null,null,null,null,null,null,null,null,null,null,null,0,0," ",0]
[null,null,null,null,null,null,null,null,null,null,null,null,0,0," ",0]
[null,null,null,null,null,null,null,null,null,null,null,null,0,0," ",0]
[null,null,null,null,null,null,null,null,null,null,null,null,0,0," ",0]
[null,null,null,null,null,null,null,null,null,null,null,null,0,0," ",0]
[null,null,null,null,null,null,null,null,null,null,null,null,0,0," ",0]
[null,null,null,null,null,null,null,null,null,null,null,null,{"$f":"IF(ISNA(VLOOKUP(C962&G962,$V$3:$W$92,2,FALSE)),0,VLOOKUP(C962&G962,$V$3:$W$92,2,FALSE))","v":0},0,{"$f":"E962&\" \"&F962","v":" "},0]
[null,null,null,null,null,null,null,null,null,null,null,null,0,{"$f":"IF(D963=\"d\",SUM(J963*2,K963),J963)","v":0}," ",{"$f":"SUM(M963,N963)","v":0}]
[null,null,null,null,null,null,null,null,null,null,null,null,0,0," ",0]
[null,null,null,null,null,null,null,null,null,null,null,null,0,0," ",0]
[null,null,null,null,null,null,null,null,null,null,null,null,0,0," ",0]
[null,null,null,null,null,null,null,null,null,null,null,null,0,0," ",0]
[null,null,null,null,null,null,null,null,null,null,null,null,0,0," ",0]
[null,null,null,null,null,null,null,null,null,null,null,null,0,0," ",0]
[null,null,null,null,null,null,null,null,null,null,null,null,0,0," ",0]
[null,null,null,null,null,null,null,null,null,null,null,null,0,0," ",0]
[null,null,null,null,null,null,null,null,null,null,null,null,0,0," ",0]
[null,null,null,null,null,null,null,null,null,null,null,null,0,0," ",0]
[null,null,null,null,null,null,null,null,null,null,null,null,0,0," ",0]
[null,null,null,null,null,null,null,null,null,null,null,null,0,0," ",0]
[null,null,null,null,null,null,null,null,null,null,null,null,0,0," ",0]
[null,null,null,null,null,null,null,null,null,null,null,null,0,0," ",0]
[null,null,null,null,null,null,null,null,null,null,null,null,0,0," ",0]
[null,null,null,null,null,null,null,null,null,null,null,null,0,0," ",0]
[null,null,null,null,null,null,null,null,null,null,null,null,0,0," ",0]
[null,null,null,null,null,null,null,null,null,null,null,null,0,0," ",0]
[null,null,null,null,null,null,null,null,null,null,null,null,0,0," ",0]
[null,null,null,null,null,null,null,null,null,null,null,null,0,0," ",0]
[null,null,null,null,null,null,null,"mláďata",null,null,null,null,0,0," ",0]
[null,null,null,null,null,null,null,"mladší žákyně",null,null,null,null,0,0," ",0]
[null,null,null,null,null,null,null,"mladší žáci",null,null,null,null,0,0," ",0]
[null,null,null,null,null,null,null,"starší žákyně",null,null,null,null,0,0," ",0]
[null,null,null,null,null,null,null,"starší žáci",null,null,null,null,0,0," ",0]
[null,null,null,null,null,null,null,"dorostenky",null,null,null,null,0,0," ",0]
[null,null,null,null,null,null,null,"dorostenci",null,null,null,null,0,0," ",0]
[null,null,null,null,null,null,null,"juniorky",null,null,null,null,0,0," ",0]
[null,null,null,null,null,null,null,"junioři",null,null,null,null,0,0," ",0]
[null,null,null,null,null,null,null,"ženy",null,null,null,null,0,0," ",0]
[null,null,null,null,null,null,null,"muži",null,null,null,null,0,0," ",0]
[null,null,null,null,null,null,null,"veteráni",null,null,null,null,0,0," ",0]
[null,null,null,null,null,null,null,"kata",null,null,null,null,0,0," ",0]

{"sheet":"knt_tab","index":2,"n_rows":160,"n_cols":41,"rows_kept":160,"cut":false,"hidden":true,"merged":[]}
["kategorie","(Vše)",null,"kategorie","mláďata",null,"kategorie","mladší žáci",null,"kategorie","mladší žákyně",null,"kategorie","starší žáci",null,"kategorie","starší žákyně",null,"kategorie","dorostenci",null,"kategorie","dorostenky",null,"kategorie","junioři",null,"kategorie","juniorky",null,"kategorie","muži",null,"kategorie","ženy",null,"kategorie","veteráni",null,"kategorie","kata"]
[]
["Součet z body",null,null,"Součet z body",null,null,"Součet z body",null,null,"Součet z body",null,null,"Součet z body",null,null,"Součet z body",null,null,"Součet z body",null,null,"Součet z body",null,null,"Součet z body",null,null,"Součet z body",null,null,"Součet z body",null,null,"Součet z body",null,null,"Součet z body",null,null,"Součet z body"]
["zavodnik","Celkem",null,"zavodnik","Celkem",null,"zavodnik","Celkem",null,"zavodnik","Celkem",null,"zavodnik","Celkem",null,"zavodnik","Celkem",null,"zavodnik","Celkem",null,"zavodnik","Celkem",null,"zavodnik","Celkem",null,"zavodnik","Celkem",null,"zavodnik","Celkem",null,"zavodnik","Celkem",null,"zavodnik","Celkem",null,"zavodnik","Celkem"]
["Motyka Dominik",164,null,"Kaszperová Kristýna",72,null,"Huvar Jakub",88,null,"Vavřínová Pavla",102,null,"Motyka Dominik",145,null,"Kuželová Dominika",58,null,"Pavlica Tomáš",129,null,"Václavková Tereza",77,null,"Silvestr Matěj",57,null,"Polášková Kristýna",59,null,"Svoboda Jiří",51,null,"Martínková Adéla",36,null,"Černota Jiří",24,null," ",0]
["Lindovský Jiří",154,null,"Zwilling Šimon",70,null,"Meixner Michal",69,null,"Rapčanová Silvie",79,null,"Lindovský Jiří",134,null,"Otáhalová Magdaléna",27,null,"Bulka Vojtěch",83,null,"Čerchlová Markéta",69,null,"Pustějovský Tomáš",31,null,"Martínková Adéla",46,null,"Silvestr Matěj",35,null,"Polášková Kristýna",28,null,"Chlebový Arnold",21]
["Pavlica Tomáš",129,null,"Huvar Matyáš",61,null,"Boháček Jan",65,null,"Rapčanová Alice",49,null,"Vontor Tomáš",107,null,"Rodryčová Adéla",23,null,"Meixner Tomáš",82,null,"Kuncová Viktorie",9,null,"Šimek Daniel",13,null,"Kuncová Viktorie",8,null,"Kohn Pavel",31,null,"Kuncová Viktorie",7,null,"Badura Martin",5]
["Vavřínová Pavla",108,null,"Vlk František",39,null,"Horák Adam",65,null,"Bukovjanová Charlotte",12,null,"Křížek Šimon",72,null,"Vavřínová Pavla",6,null,"Malaczynski Filip",63,null," ",0,null,"Mojžíšek Lukáš",9,null,"Ondrašíková Eva",0,null,"Pustějovský Tomáš",30,null," ",0,null,"Pravda Pavel",3]
["Vontor Tomáš",107,null,"Kuluris Manolis",39,null,"Seibert Marian",55,null,"Martináková Stela",3,null,"Kunc Matěj",61,null,"Benáčková Denisa",3,null,"Šimek Daniel",58,null,null,null,null,"Janoš Marek",6,null," ",0,null,"Šimek Daniel",24,null,null,null,null," ",0]
["Šimek Daniel",95,null,"Ciora Jakub",37,null,"Kolář Vojtěch",34,null," ",0,null,"Kršňák Filip",59,null," ",0,null,"Mojžíšek Lukáš",36,null,null,null,null,"Gřešek Vít",0,null,null,null,null,"Raška Michael",18]
["Silvestr Matěj",92,null,"Kocmanová Lucie",34,null,"Kožušník Vojtěch",28,null,null,null,null,"Čebík Filip",55,null,"Mikendová Tereza",0,null,"Tycar Štěpán",30,null,null,null,null,"Šmatelka Ondřej",0,null,null,null,null,"Král Jakub",10]
["Huvar Jakub",88,null,"Mařec Tomáš",32,null,"To Adam",20,null,null,null,null,"Tomek David",42,null,null,null,null,"Lindovský Jiří",20,null,null,null,null," ",0,null,null,null,null,"Kohn Tomáš",10]
["Polášková Kristýna",87,null,"Přichystal Leon",27,null,"Krischke Fabien",19,null,null,null,null,"Fráňa Patrik",41,null,null,null,null,"Motyka Dominik",19,null,null,null,null,"Pavlica Tomáš",0,null,null,null,null,"Šmatelka Ondřej",6]
["Bulka Vojtěch",83,null,"Stark Vojtěch",24,null,"Kulhánek Adam",18,null,null,null,null,"Kolář Daniel",36,null,null,null,null,"Kresta Matěj",17,null,null,null,null,"Huvar Jan",0,null,null,null,null,"Mojžíšek Lukáš",5]
["Martínková Adéla",82,null,"Kanclíř Šimon",22,null,"Baudiš Michal",17,null,null,null,null,"Fulneček Šimon",33,null,null,null,null,"Pavlica Lukáš",7,null,null,null,null,null,null,null,null,null,null,"Gřešek Vít",2]
["Meixner Tomáš",82,null,"Sládek Maxmilián",16,null,"Pospíšil Jan",14,null,null,null,null,"Caletka Petr",26,null,null,null,null,"Freiwald Richard",6,null,null,null,null,null,null,null,null,null,null,"Chlopčík Ondřej",1]
["Rapčanová Silvie",79,null,"Nuhlíček Michal",15,null,"Křenek Jakub",14,null,null,null,null,"Čerchla Michal",25,null,null,null,null,"Kršňák Filip",6,null,null,null,null,null,null,null,null,null,null,"Huvar Jan",0]
["Václavková Tereza",77,null,"Ryška Filip",14,null,"Neuwirt Petr",13,null,null,null,null,"Buranyč Filip",25,null,null,null,null,"Křížek Šimon",2,null,null,null,null,null,null,null,null,null,null,"Šeděnka Richard",0]
["Křížek Šimon",74,null,"Malinovský Jiří",13,null,"Hegner Leoš",8,null,null,null,null,"Matýsek Jan",15,null,null,null,null," ",0,null,null,null,null,null,null,null,null,null,null," ",0]
["Kaszperová Kristýna",72,null,"Fojtík Jiří Václav",13,null,"Konvičný Dominik",8,null,null,null,null,"Turčínek Tomáš",14,null,null,null,null,null,null,null,null,null,null,null,null,null,null,null,null,"Martínek Roman",0]
["Zwilling Šimon",70,null,"Bartošic Sebastian",11,null,"Štverka Matyáš",8,null,null,null,null,"Caletka Michal",12,null,null,null,null,null,null,null,null,null,null,null,null,null,null,null,null,"Holý Martin",0]
["Meixner Michal",69,null,"Bechný Adam",11,null,"King Samuel",7,null,null,null,null,"Kuzník Tadeáš",11]
["Čerchlová Markéta",69,null,"Plaček Viktor",8,null,"Kobiernicki Marek",7,null,null,null,null,"Závodný Matyáš",9]
["Kršňák Filip",65,null,"Bartošic Sebastián",7,null,"Matušek Jakub",6,null,null,null,null,"Čech Jiří",9]
["Boháček Jan",65,null,"Kožušník Václav",7,null,"Schwarz Šimon",5,null,null,null,null,"Bernacký Mikuláš",8]
["Horák Adam",65,null,"To Vojtěch",7,null,"Mikenda Ondřej",5,null,null,null,null,"Lindovský Jiří ",6]
["Malaczynski Filip",63,null,"Škoda Melichar",6,null,"Turek Jakub",4,null,null,null,null,"Freiwald Richard",6]
["Pustějovský Tomáš",61,null,"Galamboš Kristián",6,null,"Bechný Martin",4,null,null,null,null,"Šumský Miroslav",5]
["Kunc Matěj",61,null,"Macháček Tomáš",6,null,"Fojtík Daniel",4,null,null,null,null,"Náplava Richard",3]
["Huvar Matyáš",61,null,"Přidal Ladislav",6,null,"Zakaryan Erik",3,null,null,null,null,"Kožušník Vojtěch",1]
["Kuželová Dominika",58,null,"Vjaclovský David",6,null,"Chmela Tomáš",3,null,null,null,null,"Kaliský Tomáš",1]
["Seibert Marian",55,null,"Valošek Jakub",6,null,"Dryšl Adam",3,null,null,null,null,"Wilkus Richard",0]
["Čebík Filip",55,null,"Fojtík Jiří",4,null,"Šotola Kryštof",2,null,null,null,null,"Brož Ondřej",0]
["Svoboda Jiří",51,null,"Šelong Tadeáš",4,null,"Nuhlíček Jakub",2,null,null,null,null,"Beutel David",0]
["Mojžíšek Lukáš",50,null,"Románek Jakub",3,null,"Čelůstka Eduard",2,null,null,null,null," ",0]
["Rapčanová Alice",49,null,"Bravanský Marek",3,null,"Suchan Jan",1,null,null,null,null,"Neckář Matěj",0]
["Tomek David",42,null,"Murin Jan",2,null,"Horák Richard",1]
["Fráňa Patrik",41,null,"Jančata Daniel",2,null,"Vavřina Viktor ",1]
["Kuluris Manolis",39,null,"Menzel František",0,null,"Vrbas Alexandr",1]
["Vlk František",39,null,"Slováková Tereza",0,null,"Novák Matyáš",0]
["Ciora Jakub",37,null," ",0,null,"Schotli Josef",0]
["Kolář Daniel",36,null,"Románek Jabub",0,null,"Skácel Antonín",0]
["Kolář Vojtěch",34,null,null,null,null,"Pavlík Lukáš",0]
["Kocmanová Lucie",34,null,null,null,null,"Šimkovič Ondřej",0]
["Fulneček Šimon",33,null,null,null,null,"Žáček Radim",0]
["Mařec Tomáš",32,null,null,null,null,"Válek Matěj",0]
["Kohn Pavel",31,null,null,null,null," ",0]
["Tycar Štěpán",30,null,null,null,null,"Blažek Daniel",0]
["Kožušník Vojtěch",29,null,null,null,null,"Buček Daniel",0]
["Přichystal Leon",27]
["Otáhalová Magdaléna",27]
["Caletka Petr",26]
["Buranyč Filip",25]
["Čerchla Michal",25]
["Černota Jiří",24]
["Kuncová Viktorie",24]
["Stark Vojtěch",24]
["Rodryčová Adéla",23]
["Kanclíř Šimon",22]
["Chlebový Arnold",21]
["To Adam",20]
["Krischke Fabien",19]
["Kulhánek Adam",18]
["Raška Michael",18]
["Kresta Matěj",17]
["Baudiš Michal",17]
["Sládek Maxmilián",16]
["Matýsek Jan",15]
["Nuhlíček Michal",15]
["Křenek Jakub",14]
["Turčínek Tomáš",14]
["Pospíšil Jan",14]
["Ryška Filip",14]
["Fojtík Jiří Václav",13]
["Neuwirt Petr",13]
["Malinovský Jiří",13]
["Caletka Michal",12]
["Bukovjanová Charlotte",12]
["Freiwald Richard",12]
["Bechný Adam",11]
["Bartošic Sebastian",11]
["Kuzník Tadeáš",11]
["Kohn Tomáš",10]
["Král Jakub",10]
["Závodný Matyáš",9]
["Čech Jiří",9]
["Bernacký Mikuláš",8]
["Hegner Leoš",8]
["Konvičný Dominik",8]
["Štverka Matyáš",8]
["Plaček Viktor",8]
["Kožušník Václav",7]
["King Samuel",7]
["Bartošic Sebastián",7]
["Kobiernicki Marek",7]
["To Vojtěch",7]
["Pavlica Lukáš",7]
["Přidal Ladislav",6]
["Škoda Melichar",6]
["Šmatelka Ondřej",6]
["Valošek Jakub",6]
["Lindovský Jiří ",6]
["Galamboš Kristián",6]
["Vjaclovský David",6]
["Janoš Marek",6]
["Macháček Tomáš",6]
["Matušek Jakub",6]
["Šumský Miroslav",5]
["Badura Martin",5]
["Schwarz Šimon",5]
["Mikenda Ondřej",5]
["Turek Jakub",4]
["Fojtík Jiří",4]
["Šelong Tadeáš",4]
["Fojtík Daniel",4]
["Bechný Martin",4]
["Náplava Richard",3]
["Benáčková Denisa",3]
["Bravanský Marek",3]
["Martináková Stela",3]
["Dryšl Adam",3]
["Zakaryan Erik",3]
["Chmela Tomáš",3]
["Románek Jakub",3]
["Pravda Pavel",3]
["Murin Jan",2]
["Jančata Daniel",2]
["Nuhlíček Jakub",2]
["Gřešek Vít",2]
["Šotola Kryštof",2]
["Čelůstka Eduard",2]
["Vavřina Viktor ",1]
["Kaliský Tomáš",1]
["Horák Richard",1]
["Chlopčík Ondřej",1]
["Suchan Jan",1]
["Vrbas Alexandr",1]
["Žáček Radim",0]
["Schotli Josef",0]
["Skácel Antonín",0]
["Slováková Tereza",0]
["Pavlík Lukáš",0]
["Šeděnka Richard",0]
["Huvar Jan",0]
["Holý Martin",0]
["Martínek Roman",0]
["Menzel František",0]
["Brož Ondřej",0]
["Beutel David",0]
["Válek Matěj",0]
["Románek Jabub",0]
["Novák Matyáš",0]
["Blažek Daniel",0]
[" ",0]
["Šimkovič Ondřej",0]
["Ondrašíková Eva",0]
["Mikendová Tereza",0]
["Buček Daniel",0]
["Wilkus Richard",0]
["Neckář Matěj",0]

{"sheet":"ranking","index":3,"n_rows":63,"n_cols":23,"rows_kept":63,"cut":false,"hidden":false,"merged":[[0,0,0,22]]}
["Pořadí úspěšnosti závodníků v r. 2018"]
["celkem oddíl",null,null,null,"celkem oddíl - pokračování",null,null,null,"celkem oddíl - pokračování",null,null,null,"kata",null,null,null,"starší žáci",null,null,null,"mladší žáci - pokračování"]
["Pořadí","Příjmení","body",null,{"$f":"IF(F3=\"\",\"\",IF(G3=C63,A63,61))","v":61},{"$f":"IF(ISERR(GETPIVOTDATA(\"body\",knt_tab!$A$3,\"zavodnik\",knt_tab!A65)),\"\",IF(GETPIVOTDATA(\"body\",knt_tab!$A$3,\"zavodnik\",knt_tab!A65)=0,\"\",knt_tab!A65))","v":"Kresta Matěj"},{"$f":"IF(F3=\"\",\"\",GETPIVOTDATA(\"body\",knt_tab!$A$3,\"zavodnik\",F3))","v":17},null,{"$f":"IF(J3=\"\",\"\",IF(K3=G62,E62,ROW(I3)-ROW($I$3)+122))","v":122},{"$f":"IF(ISERR(GETPIVOTDATA(\"body\",knt_tab!$A$3,\"zavodnik\",knt_tab!A126)),\"\",IF(GETPIVOTDATA(\"body\",knt_tab!$A$3,\"zavodnik\",knt_tab!A126)=0,\"\",knt_tab!A126))","v":"Murin Jan"},{"$f":"IF(J3=\"\",\"\",GETPIVOTDATA(\"body\",knt_tab!$A$3,\"zavodnik\",J3))","v":2},null,"Pořadí","Příjmení","body",null,"Pořadí","Příjmení","body",null,{"$f":"IF(V3=\"\",\"\",IF(W3=S63,Q63,ROW(U3)-ROW($U$2)+17))","v":18},{"$f":"IF(ISERR(GETPIVOTDATA(\"body\",knt_tab!$G$3,\"zavodnik\",knt_tab!G22)),\"\",IF(GETPIVOTDATA(\"body\",knt_tab!$G$3,\"zavodnik\",knt_tab!G22)=0,\"\",knt_tab!G22))","v":"King Samuel"},{"$f":"IF(V3=\"\",\"\",GETPIVOTDATA(\"body\",knt_tab!$G$3,\"zavodnik\",V3))","v":7}]
[1,{"$f":"IF(ISERR(GETPIVOTDATA(\"body\",knt_tab!$A$3,\"zavodnik\",knt_tab!A5)),\"\",IF(GETPIVOTDATA(\"body\",knt_tab!$A$3,\"zavodnik\",knt_tab!A5)=0,\"\",knt_tab!A5))","v":"Motyka Dominik"},{"$f":"IF(B4=\"\",\"\",GETPIVOTDATA(\"body\",knt_tab!$A$3,\"zavodnik\",B4))","v":164},null,{"$f":"IF(F4=\"\",\"\",IF(G4=G3,E3,ROW(E4)-ROW($E$3)+61))","v":61},{"$f":"IF(ISERR(GETPIVOTDATA(\"body\",knt_tab!$A$3,\"zavodnik\",knt_tab!A66)),\"\",IF(GETPIVOTDATA(\"body\",knt_tab!$A$3,\"zavodnik\",knt_tab!A66)=0,\"\",knt_tab!A66))","v":"Baudiš Michal"},{"$f":"IF(F4=\"\",\"\",GETPIVOTDATA(\"body\",knt_tab!$A$3,\"zavodnik\",F4))","v":17},null,{"$f":"IF(J4=\"\",\"\",IF(K4=K3,I3,ROW(I4)-ROW($I$3)+122))","v":122},{"$f":"IF(ISERR(GETPIVOTDATA(\"body\",knt_tab!$A$3,\"zavodnik\",knt_tab!A127)),\"\",IF(GETPIVOTDATA(\"body\",knt_tab!$A$3,\"zavodnik\",knt_tab!A127)=0,\"\",knt_tab!A127))","v":"Jančata Daniel"},{"$f":"IF(J4=\"\",\"\",GETPIVOTDATA(\"body\",knt_tab!$A$3,\"zavodnik\",J4))","v":2},null,1,{"$f":"IF(ISERR(GETPIVOTDATA(\"body\",knt_tab!$AN$3,\"zavodnik\",knt_tab!AN5)),\"\",IF(GETPIVOTDATA(\"body\",knt_tab!$AN$3,\"zavodnik\",knt_tab!AN5)=0,\"\",knt_tab!AN5))","v":""},{"$f":"IF(N4=\"\",\"\",GETPIVOTDATA(\"body\",knt_tab!$AN$3,\"zavodnik\",N4))","v":""},null,1,{"$f":"IF(ISERR(GETPIVOTDATA(\"body\",knt_tab!$M$3,\"zavodnik\",knt_tab!M5)),\"\",IF(GETPIVOTDATA(\"body\",knt_tab!$M$3,\"zavodnik\",knt_tab!M5)=0,\"\",knt_tab!M5))","v":"Motyka Dominik"},{"$f":"IF(R4=\"\",\"\",GETPIVOTDATA(\"body\",knt_tab!$M$3,\"zavodnik\",R4))","v":145},null,{"$f":"IF(V4=\"\",\"\",IF(W4=W3,U3,ROW(U4)-ROW($U$2)+17))","v":18},{"$f":"IF(ISERR(GETPIVOTDATA(\"body\",knt_tab!$G$3,\"zavodnik\",knt_tab!G23)),\"\",IF(GETPIVOTDATA(\"body\",knt_tab!$G$3,\"zavodnik\",knt_tab!G23)=0,\"\",knt_tab!G23))","v":"Kobiernicki Marek"},{"$f":"IF(V4=\"\",\"\",GETPIVOTDATA(\"body\",knt_tab!$G$3,\"zavodnik\",V4))","v":7}]
[{"$f":"IF(B5=\"\",\"\",IF(C5=C4,A4,ROW(A5)-ROW($A$3)))","v":2},{"$f":"IF(ISERR(GETPIVOTDATA(\"body\",knt_tab!$A$3,\"zavodnik\",knt_tab!A6)),\"\",IF(GETPIVOTDATA(\"body\",knt_tab!$A$3,\"zavodnik\",knt_tab!A6)=0,\"\",knt_tab!A6))","v":"Lindovský Jiří"},{"$f":"IF(B5=\"\",\"\",GETPIVOTDATA(\"body\",knt_tab!$A$3,\"zavodnik\",B5))","v":154},null,{"$f":"IF(F5=\"\",\"\",IF(G5=G4,E4,ROW(E5)-ROW($E$3)+61))","v":63},{"$f":"IF(ISERR(GETPIVOTDATA(\"body\",knt_tab!$A$3,\"zavodnik\",knt_tab!A67)),\"\",IF(GETPIVOTDATA(\"body\",knt_tab!$A$3,\"zavodnik\",knt_tab!A67)=0,\"\",knt_tab!A67))","v":"Sládek Maxmilián"},{"$f":"IF(F5=\"\",\"\",GETPIVOTDATA(\"body\",knt_tab!$A$3,\"zavodnik\",F5))","v":16},null,{"$f":"IF(J5=\"\",\"\",IF(K5=K4,I4,ROW(I5)-ROW($I$3)+122))","v":122},{"$f":"IF(ISERR(GETPIVOTDATA(\"body\",knt_tab!$A$3,\"zavodnik\",knt_tab!A128)),\"\",IF(GETPIVOTDATA(\"body\",knt_tab!$A$3,\"zavodnik\",knt_tab!A128)=0,\"\",knt_tab!A128))","v":"Nuhlíček Jakub"},{"$f":"IF(J5=\"\",\"\",GETPIVOTDATA(\"body\",knt_tab!$A$3,\"zavodnik\",J5))","v":2},null,{"$f":"IF(N5=\"\",\"\",IF(O5=O4,M4,ROW(M5)-ROW($M$3)))","v":""},{"$f":"IF(ISERR(GETPIVOTDATA(\"body\",knt_tab!$AN$3,\"zavodnik\",knt_tab!AN6)),\"\",IF(GETPIVOTDATA(\"body\",knt_tab!$AN$3,\"zavodnik\",knt_tab!AN6)=0,\"\",knt_tab!AN6))","v":""},{"$f":"IF(N5=\"\",\"\",GETPIVOTDATA(\"body\",knt_tab!$AN$3,\"zavodnik\",N5))","v":""},null,{"$f":"IF(R5=\"\",\"\",IF(S5=S4,Q4,ROW(Q5)-ROW($Q$3)))","v":2},{"$f":"IF(ISERR(GETPIVOTDATA(\"body\",knt_tab!$M$3,\"zavodnik\",knt_tab!M6)),\"\",IF(GETPIVOTDATA(\"body\",knt_tab!$M$3,\"zavodnik\",knt_tab!M6)=0,\"\",knt_tab!M6))","v":"Lindovský Jiří"},{"$f":"IF(R5=\"\",\"\",GETPIVOTDATA(\"body\",knt_tab!$M$3,\"zavodnik\",R5))","v":134},null,20,{"$f":"IF(ISERR(GETPIVOTDATA(\"body\",knt_tab!$G$3,\"zavodnik\",knt_tab!G24)),\"\",IF(GETPIVOTDATA(\"body\",knt_tab!$G$3,\"zavodnik\",knt_tab!G24)=0,\"\",knt_tab!G24))","v":"Matušek Jakub"},{"$f":"IF(V5=\"\",\"\",GETPIVOTDATA(\"body\",knt_tab!$G$3,\"zavodnik\",V5))","v":6}]
[3,{"$f":"IF(ISERR(GETPIVOTDATA(\"body\",knt_tab!$A$3,\"zavodnik\",knt_tab!A7)),\"\",IF(GETPIVOTDATA(\"body\",knt_tab!$A$3,\"zavodnik\",knt_tab!A7)=0,\"\",knt_tab!A7))","v":"Pavlica Tomáš"},{"$f":"IF(B6=\"\",\"\",GETPIVOTDATA(\"body\",knt_tab!$A$3,\"zavodnik\",B6))","v":129},null,64,{"$f":"IF(ISERR(GETPIVOTDATA(\"body\",knt_tab!$A$3,\"zavodnik\",knt_tab!A68)),\"\",IF(GETPIVOTDATA(\"body\",knt_tab!$A$3,\"zavodnik\",knt_tab!A68)=0,\"\",knt_tab!A68))","v":"Matýsek Jan"},{"$f":"IF(F6=\"\",\"\",GETPIVOTDATA(\"body\",knt_tab!$A$3,\"zavodnik\",F6))","v":15},null,122,{"$f":"IF(ISERR(GETPIVOTDATA(\"body\",knt_tab!$A$3,\"zavodnik\",knt_tab!A129)),\"\",IF(GETPIVOTDATA(\"body\",knt_tab!$A$3,\"zavodnik\",knt_tab!A129)=0,\"\",knt_tab!A129))","v":"Gřešek Vít"},{"$f":"IF(J6=\"\",\"\",GETPIVOTDATA(\"body\",knt_tab!$A$3,\"zavodnik\",J6))","v":2},null,{"$f":"IF(N6=\"\",\"\",IF(O6=O5,M5,ROW(M6)-ROW($M$3)))","v":""},{"$f":"IF(ISERR(GETPIVOTDATA(\"body\",knt_tab!$AN$3,\"zavodnik\",knt_tab!AN7)),\"\",IF(GETPIVOTDATA(\"body\",knt_tab!$AN$3,\"zavodnik\",knt_tab!AN7)=0,\"\",knt_tab!AN7))","v":""},{"$f":"IF(N6=\"\",\"\",GETPIVOTDATA(\"body\",knt_tab!$AN$3,\"zavodnik\",N6))","v":""},null,3,{"$f":"IF(ISERR(GETPIVOTDATA(\"body\",knt_tab!$M$3,\"zavodnik\",knt_tab!M7)),\"\",IF(GETPIVOTDATA(\"body\",knt_tab!$M$3,\"zavodnik\",knt_tab!M7)=0,\"\",knt_tab!M7))","v":"Vontor Tomáš"},{"$f":"IF(R6=\"\",\"\",GETPIVOTDATA(\"body\",knt_tab!$M$3,\"zavodnik\",R6))","v":107},null,21,{"$f":"IF(ISERR(GETPIVOTDATA(\"body\",knt_tab!$G$3,\"zavodnik\",knt_tab!G25)),\"\",IF(GETPIVOTDATA(\"body\",knt_tab!$G$3,\"zavodnik\",knt_tab!G25)=0,\"\",knt_tab!G25))","v":"Schwarz Šimon"},{"$f":"IF(V6=\"\",\"\",GETPIVOTDATA(\"body\",knt_tab!$G$3,\"zavodnik\",V6))","v":5}]
[4,{"$f":"IF(ISERR(GETPIVOTDATA(\"body\",knt_tab!$A$3,\"zavodnik\",knt_tab!A8)),\"\",IF(GETPIVOTDATA(\"body\",knt_tab!$A$3,\"zavodnik\",knt_tab!A8)=0,\"\",knt_tab!A8))","v":"Vavřínová Pavla"},{"$f":"IF(B7=\"\",\"\",GETPIVOTDATA(\"body\",knt_tab!$A$3,\"zavodnik\",B7))","v":108},null,64,{"$f":"IF(ISERR(GETPIVOTDATA(\"body\",knt_tab!$A$3,\"zavodnik\",knt_tab!A69)),\"\",IF(GETPIVOTDATA(\"body\",knt_tab!$A$3,\"zavodnik\",knt_tab!A69)=0,\"\",knt_tab!A69))","v":"Nuhlíček Michal"},{"$f":"IF(F7=\"\",\"\",GETPIVOTDATA(\"body\",knt_tab!$A$3,\"zavodnik\",F7))","v":15},null,{"$f":"IF(J7=\"\",\"\",IF(K7=K6,I6,ROW(I7)-ROW($I$3)+122))","v":122},{"$f":"IF(ISERR(GETPIVOTDATA(\"body\",knt_tab!$A$3,\"zavodnik\",knt_tab!A130)),\"\",IF(GETPIVOTDATA(\"body\",knt_tab!$A$3,\"zavodnik\",knt_tab!A130)=0,\"\",knt_tab!A130))","v":"Šotola Kryštof"},{"$f":"IF(J7=\"\",\"\",GETPIVOTDATA(\"body\",knt_tab!$A$3,\"zavodnik\",J7))","v":2},null,"",{"$f":"IF(ISERR(GETPIVOTDATA(\"body\",knt_tab!$AN$3,\"zavodnik\",knt_tab!AN8)),\"\",IF(GETPIVOTDATA(\"body\",knt_tab!$AN$3,\"zavodnik\",knt_tab!AN8)=0,\"\",knt_tab!AN8))","v":""},{"$f":"IF(N7=\"\",\"\",GETPIVOTDATA(\"body\",knt_tab!$AN$3,\"zavodnik\",N7))","v":""},null,4,{"$f":"IF(ISERR(GETPIVOTDATA(\"body\",knt_tab!$M$3,\"zavodnik\",knt_tab!M8)),\"\",IF(GETPIVOTDATA(\"body\",knt_tab!$M$3,\"zavodnik\",knt_tab!M8)=0,\"\",knt_tab!M8))","v":"Křížek Šimon"},{"$f":"IF(R7=\"\",\"\",GETPIVOTDATA(\"body\",knt_tab!$M$3,\"zavodnik\",R7))","v":72},null,21,{"$f":"IF(ISERR(GETPIVOTDATA(\"body\",knt_tab!$G$3,\"zavodnik\",knt_tab!G26)),\"\",IF(GETPIVOTDATA(\"body\",knt_tab!$G$3,\"zavodnik\",knt_tab!G26)=0,\"\",knt_tab!G26))","v":"Mikenda Ondřej"},{"$f":"IF(V7=\"\",\"\",GETPIVOTDATA(\"body\",knt_tab!$G$3,\"zavodnik\",V7))","v":5}]
[5,{"$f":"IF(ISERR(GETPIVOTDATA(\"body\",knt_tab!$A$3,\"zavodnik\",knt_tab!A9)),\"\",IF(GETPIVOTDATA(\"body\",knt_tab!$A$3,\"zavodnik\",knt_tab!A9)=0,\"\",knt_tab!A9))","v":"Vontor Tomáš"},{"$f":"IF(B8=\"\",\"\",GETPIVOTDATA(\"body\",knt_tab!$A$3,\"zavodnik\",B8))","v":107},null,66,{"$f":"IF(ISERR(GETPIVOTDATA(\"body\",knt_tab!$A$3,\"zavodnik\",knt_tab!A70)),\"\",IF(GETPIVOTDATA(\"body\",knt_tab!$A$3,\"zavodnik\",knt_tab!A70)=0,\"\",knt_tab!A70))","v":"Křenek Jakub"},{"$f":"IF(F8=\"\",\"\",GETPIVOTDATA(\"body\",knt_tab!$A$3,\"zavodnik\",F8))","v":14},null,{"$f":"IF(J8=\"\",\"\",IF(K8=K7,I7,ROW(I8)-ROW($I$3)+122))","v":122},{"$f":"IF(ISERR(GETPIVOTDATA(\"body\",knt_tab!$A$3,\"zavodnik\",knt_tab!A131)),\"\",IF(GETPIVOTDATA(\"body\",knt_tab!$A$3,\"zavodnik\",knt_tab!A131)=0,\"\",knt_tab!A131))","v":"Čelůstka Eduard"},{"$f":"IF(J8=\"\",\"\",GETPIVOTDATA(\"body\",knt_tab!$A$3,\"zavodnik\",J8))","v":2},null,"Junioři",null,null,null,5,{"$f":"IF(ISERR(GETPIVOTDATA(\"body\",knt_tab!$M$3,\"zavodnik\",knt_tab!M9)),\"\",IF(GETPIVOTDATA(\"body\",knt_tab!$M$3,\"zavodnik\",knt_tab!M9)=0,\"\",knt_tab!M9))","v":"Kunc Matěj"},{"$f":"IF(R8=\"\",\"\",GETPIVOTDATA(\"body\",knt_tab!$M$3,\"zavodnik\",R8))","v":61},null,23,{"$f":"IF(ISERR(GETPIVOTDATA(\"body\",knt_tab!$G$3,\"zavodnik\",knt_tab!G27)),\"\",IF(GETPIVOTDATA(\"body\",knt_tab!$G$3,\"zavodnik\",knt_tab!G27)=0,\"\",knt_tab!G27))","v":"Turek Jakub"},{"$f":"IF(V8=\"\",\"\",GETPIVOTDATA(\"body\",knt_tab!$G$3,\"zavodnik\",V8))","v":4}]
[6,{"$f":"IF(ISERR(GETPIVOTDATA(\"body\",knt_tab!$A$3,\"zavodnik\",knt_tab!A10)),\"\",IF(GETPIVOTDATA(\"body\",knt_tab!$A$3,\"zavodnik\",knt_tab!A10)=0,\"\",knt_tab!A10))","v":"Šimek Daniel"},{"$f":"IF(B9=\"\",\"\",GETPIVOTDATA(\"body\",knt_tab!$A$3,\"zavodnik\",B9))","v":95},null,66,{"$f":"IF(ISERR(GETPIVOTDATA(\"body\",knt_tab!$A$3,\"zavodnik\",knt_tab!A71)),\"\",IF(GETPIVOTDATA(\"body\",knt_tab!$A$3,\"zavodnik\",knt_tab!A71)=0,\"\",knt_tab!A71))","v":"Turčínek Tomáš"},{"$f":"IF(F9=\"\",\"\",GETPIVOTDATA(\"body\",knt_tab!$A$3,\"zavodnik\",F9))","v":14},null,128,{"$f":"IF(ISERR(GETPIVOTDATA(\"body\",knt_tab!$A$3,\"zavodnik\",knt_tab!A132)),\"\",IF(GETPIVOTDATA(\"body\",knt_tab!$A$3,\"zavodnik\",knt_tab!A132)=0,\"\",knt_tab!A132))","v":"Vavřina Viktor "},{"$f":"IF(J9=\"\",\"\",GETPIVOTDATA(\"body\",knt_tab!$A$3,\"zavodnik\",J9))","v":1},null,"Pořadí","Příjmení","body",null,6,{"$f":"IF(ISERR(GETPIVOTDATA(\"body\",knt_tab!$M$3,\"zavodnik\",knt_tab!M10)),\"\",IF(GETPIVOTDATA(\"body\",knt_tab!$M$3,\"zavodnik\",knt_tab!M10)=0,\"\",knt_tab!M10))","v":"Kršňák Filip"},{"$f":"IF(R9=\"\",\"\",GETPIVOTDATA(\"body\",knt_tab!$M$3,\"zavodnik\",R9))","v":59},null,23,{"$f":"IF(ISERR(GETPIVOTDATA(\"body\",knt_tab!$G$3,\"zavodnik\",knt_tab!G28)),\"\",IF(GETPIVOTDATA(\"body\",knt_tab!$G$3,\"zavodnik\",knt_tab!G28)=0,\"\",knt_tab!G28))","v":"Bechný Martin"},{"$f":"IF(V9=\"\",\"\",GETPIVOTDATA(\"body\",knt_tab!$G$3,\"zavodnik\",V9))","v":4}]
[7,{"$f":"IF(ISERR(GETPIVOTDATA(\"body\",knt_tab!$A$3,\"zavodnik\",knt_tab!A11)),\"\",IF(GETPIVOTDATA(\"body\",knt_tab!$A$3,\"zavodnik\",knt_tab!A11)=0,\"\",knt_tab!A11))","v":"Silvestr Matěj"},{"$f":"IF(B10=\"\",\"\",GETPIVOTDATA(\"body\",knt_tab!$A$3,\"zavodnik\",B10))","v":92},null,66,{"$f":"IF(ISERR(GETPIVOTDATA(\"body\",knt_tab!$A$3,\"zavodnik\",knt_tab!A72)),\"\",IF(GETPIVOTDATA(\"body\",knt_tab!$A$3,\"zavodnik\",knt_tab!A72)=0,\"\",knt_tab!A72))","v":"Pospíšil Jan"},{"$f":"IF(F10=\"\",\"\",GETPIVOTDATA(\"body\",knt_tab!$A$3,\"zavodnik\",F10))","v":14},null,128,{"$f":"IF(ISERR(GETPIVOTDATA(\"body\",knt_tab!$A$3,\"zavodnik\",knt_tab!A133)),\"\",IF(GETPIVOTDATA(\"body\",knt_tab!$A$3,\"zavodnik\",knt_tab!A133)=0,\"\",knt_tab!A133))","v":"Kaliský Tomáš"},{"$f":"IF(J10=\"\",\"\",GETPIVOTDATA(\"body\",knt_tab!$A$3,\"zavodnik\",J10))","v":1},null,1,{"$f":"IF(ISERR(GETPIVOTDATA(\"body\",knt_tab!$Y$3,\"zavodnik\",knt_tab!Y5)),\"\",IF(GETPIVOTDATA(\"body\",knt_tab!$Y$3,\"zavodnik\",knt_tab!Y5)=0,\"\",knt_tab!Y5))","v":"Silvestr Matěj"},{"$f":"IF(N10=\"\",\"\",GETPIVOTDATA(\"body\",knt_tab!$Y$3,\"zavodnik\",N10))","v":57},null,7,{"$f":"IF(ISERR(GETPIVOTDATA(\"body\",knt_tab!$M$3,\"zavodnik\",knt_tab!M11)),\"\",IF(GETPIVOTDATA(\"body\",knt_tab!$M$3,\"zavodnik\",knt_tab!M11)=0,\"\",knt_tab!M11))","v":"Čebík Filip"},{"$f":"IF(R10=\"\",\"\",GETPIVOTDATA(\"body\",knt_tab!$M$3,\"zavodnik\",R10))","v":55},null,23,{"$f":"IF(ISERR(GETPIVOTDATA(\"body\",knt_tab!$G$3,\"zavodnik\",knt_tab!G29)),\"\",IF(GETPIVOTDATA(\"body\",knt_tab!$G$3,\"zavodnik\",knt_tab!G29)=0,\"\",knt_tab!G29))","v":"Fojtík Daniel"},{"$f":"IF(V10=\"\",\"\",GETPIVOTDATA(\"body\",knt_tab!$G$3,\"zavodnik\",V10))","v":4}]
[8,{"$f":"IF(ISERR(GETPIVOTDATA(\"body\",knt_tab!$A$3,\"zavodnik\",knt_tab!A12)),\"\",IF(GETPIVOTDATA(\"body\",knt_tab!$A$3,\"zavodnik\",knt_tab!A12)=0,\"\",knt_tab!A12))","v":"Huvar Jakub"},{"$f":"IF(B11=\"\",\"\",GETPIVOTDATA(\"body\",knt_tab!$A$3,\"zavodnik\",B11))","v":88},null,66,{"$f":"IF(ISERR(GETPIVOTDATA(\"body\",knt_tab!$A$3,\"zavodnik\",knt_tab!A73)),\"\",IF(GETPIVOTDATA(\"body\",knt_tab!$A$3,\"zavodnik\",knt_tab!A73)=0,\"\",knt_tab!A73))","v":"Ryška Filip"},{"$f":"IF(F11=\"\",\"\",GETPIVOTDATA(\"body\",knt_tab!$A$3,\"zavodnik\",F11))","v":14},null,128,{"$f":"IF(ISERR(GETPIVOTDATA(\"body\",knt_tab!$A$3,\"zavodnik\",knt_tab!A134)),\"\",IF(GETPIVOTDATA(\"body\",knt_tab!$A$3,\"zavodnik\",knt_tab!A134)=0,\"\",knt_tab!A134))","v":"Horák Richard"},{"$f":"IF(J11=\"\",\"\",GETPIVOTDATA(\"body\",knt_tab!$A$3,\"zavodnik\",J11))","v":1},null,{"$f":"IF(N11=\"\",\"\",IF(O11=O10,M10,ROW(M11)-ROW($M$9)))","v":2},{"$f":"IF(ISERR(GETPIVOTDATA(\"body\",knt_tab!$Y$3,\"zavodnik\",knt_tab!Y6)),\"\",IF(GETPIVOTDATA(\"body\",knt_tab!$Y$3,\"zavodnik\",knt_tab!Y6)=0,\"\",knt_tab!Y6))","v":"Pustějovský Tomáš"},{"$f":"IF(N11=\"\",\"\",GETPIVOTDATA(\"body\",knt_tab!$Y$3,\"zavodnik\",N11))","v":31},null,8,{"$f":"IF(ISERR(GETPIVOTDATA(\"body\",knt_tab!$M$3,\"zavodnik\",knt_tab!M12)),\"\",IF(GETPIVOTDATA(\"body\",knt_tab!$M$3,\"zavodnik\",knt_tab!M12)=0,\"\",knt_tab!M12))","v":"Tomek David"},{"$f":"IF(R11=\"\",\"\",GETPIVOTDATA(\"body\",knt_tab!$M$3,\"zavodnik\",R11))","v":42},null,26,{"$f":"IF(ISERR(GETPIVOTDATA(\"body\",knt_tab!$G$3,\"zavodnik\",knt_tab!G30)),\"\",IF(GETPIVOTDATA(\"body\",knt_tab!$G$3,\"zavodnik\",knt_tab!G30)=0,\"\",knt_tab!G30))","v":"Zakaryan Erik"},{"$f":"IF(V11=\"\",\"\",GETPIVOTDATA(\"body\",knt_tab!$G$3,\"zavodnik\",V11))","v":3}]
[9,{"$f":"IF(ISERR(GETPIVOTDATA(\"body\",knt_tab!$A$3,\"zavodnik\",knt_tab!A13)),\"\",IF(GETPIVOTDATA(\"body\",knt_tab!$A$3,\"zavodnik\",knt_tab!A13)=0,\"\",knt_tab!A13))","v":"Polášková Kristýna"},{"$f":"IF(B12=\"\",\"\",GETPIVOTDATA(\"body\",knt_tab!$A$3,\"zavodnik\",B12))","v":87},null,70,{"$f":"IF(ISERR(GETPIVOTDATA(\"body\",knt_tab!$A$3,\"zavodnik\",knt_tab!A74)),\"\",IF(GETPIVOTDATA(\"body\",knt_tab!$A$3,\"zavodnik\",knt_tab!A74)=0,\"\",knt_tab!A74))","v":"Fojtík Jiří Václav"},{"$f":"IF(F12=\"\",\"\",GETPIVOTDATA(\"body\",knt_tab!$A$3,\"zavodnik\",F12))","v":13},null,128,{"$f":"IF(ISERR(GETPIVOTDATA(\"body\",knt_tab!$A$3,\"zavodnik\",knt_tab!A135)),\"\",IF(GETPIVOTDATA(\"body\",knt_tab!$A$3,\"zavodnik\",knt_tab!A135)=0,\"\",knt_tab!A135))","v":"Chlopčík Ondřej"},{"$f":"IF(J12=\"\",\"\",GETPIVOTDATA(\"body\",knt_tab!$A$3,\"zavodnik\",J12))","v":1},null,{"$f":"IF(N12=\"\",\"\",IF(O12=O11,M11,ROW(M12)-ROW($M$9)))","v":3},{"$f":"IF(ISERR(GETPIVOTDATA(\"body\",knt_tab!$Y$3,\"zavodnik\",knt_tab!Y7)),\"\",IF(GETPIVOTDATA(\"body\",knt_tab!$Y$3,\"zavodnik\",knt_tab!Y7)=0,\"\",knt_tab!Y7))","v":"Šimek Daniel"},{"$f":"IF(N12=\"\",\"\",GETPIVOTDATA(\"body\",knt_tab!$Y$3,\"zavodnik\",N12))","v":13},null,9,{"$f":"IF(ISERR(GETPIVOTDATA(\"body\",knt_tab!$M$3,\"zavodnik\",knt_tab!M13)),\"\",IF(GETPIVOTDATA(\"body\",knt_tab!$M$3,\"zavodnik\",knt_tab!M13)=0,\"\",knt_tab!M13))","v":"Fráňa Patrik"},{"$f":"IF(R12=\"\",\"\",GETPIVOTDATA(\"body\",knt_tab!$M$3,\"zavodnik\",R12))","v":41},null,26,{"$f":"IF(ISERR(GETPIVOTDATA(\"body\",knt_tab!$G$3,\"zavodnik\",knt_tab!G31)),\"\",IF(GETPIVOTDATA(\"body\",knt_tab!$G$3,\"zavodnik\",knt_tab!G31)=0,\"\",knt_tab!G31))","v":"Chmela Tomáš"},{"$f":"IF(V12=\"\",\"\",GETPIVOTDATA(\"body\",knt_tab!$G$3,\"zavodnik\",V12))","v":3}]
[10,{"$f":"IF(ISERR(GETPIVOTDATA(\"body\",knt_tab!$A$3,\"zavodnik\",knt_tab!A14)),\"\",IF(GETPIVOTDATA(\"body\",knt_tab!$A$3,\"zavodnik\",knt_tab!A14)=0,\"\",knt_tab!A14))","v":"Bulka Vojtěch"},{"$f":"IF(B13=\"\",\"\",GETPIVOTDATA(\"body\",knt_tab!$A$3,\"zavodnik\",B13))","v":83},null,70,{"$f":"IF(ISERR(GETPIVOTDATA(\"body\",knt_tab!$A$3,\"zavodnik\",knt_tab!A75)),\"\",IF(GETPIVOTDATA(\"body\",knt_tab!$A$3,\"zavodnik\",knt_tab!A75)=0,\"\",knt_tab!A75))","v":"Neuwirt Petr"},{"$f":"IF(F13=\"\",\"\",GETPIVOTDATA(\"body\",knt_tab!$A$3,\"zavodnik\",F13))","v":13},null,{"$f":"IF(J13=\"\",\"\",IF(K13=K12,I12,ROW(I13)-ROW($I$3)+122))","v":128},{"$f":"IF(ISERR(GETPIVOTDATA(\"body\",knt_tab!$A$3,\"zavodnik\",knt_tab!A136)),\"\",IF(GETPIVOTDATA(\"body\",knt_tab!$A$3,\"zavodnik\",knt_tab!A136)=0,\"\",knt_tab!A136))","v":"Suchan Jan"},{"$f":"IF(J13=\"\",\"\",GETPIVOTDATA(\"body\",knt_tab!$A$3,\"zavodnik\",J13))","v":1},null,{"$f":"IF(N13=\"\",\"\",IF(O13=O12,M12,ROW(M13)-ROW($M$9)))","v":4},{"$f":"IF(ISERR(GETPIVOTDATA(\"body\",knt_tab!$Y$3,\"zavodnik\",knt_tab!Y8)),\"\",IF(GETPIVOTDATA(\"body\",knt_tab!$Y$3,\"zavodnik\",knt_tab!Y8)=0,\"\",knt_tab!Y8))","v":"Mojžíšek Lukáš"},{"$f":"IF(N13=\"\",\"\",GETPIVOTDATA(\"body\",knt_tab!$Y$3,\"zavodnik\",N13))","v":9},null,10,{"$f":"IF(ISERR(GETPIVOTDATA(\"body\",knt_tab!$M$3,\"zavodnik\",knt_tab!M14)),\"\",IF(GETPIVOTDATA(\"body\",knt_tab!$M$3,\"zavodnik\",knt_tab!M14)=0,\"\",knt_tab!M14))","v":"Kolář Daniel"},{"$f":"IF(R13=\"\",\"\",GETPIVOTDATA(\"body\",knt_tab!$M$3,\"zavodnik\",R13))","v":36},null,26,{"$f":"IF(ISERR(GETPIVOTDATA(\"body\",knt_tab!$G$3,\"zavodnik\",knt_tab!G32)),\"\",IF(GETPIVOTDATA(\"body\",knt_tab!$G$3,\"zavodnik\",knt_tab!G32)=0,\"\",knt_tab!G32))","v":"Dryšl Adam"},{"$f":"IF(V13=\"\",\"\",GETPIVOTDATA(\"body\",knt_tab!$G$3,\"zavodnik\",V13))","v":3}]
[11,{"$f":"IF(ISERR(GETPIVOTDATA(\"body\",knt_tab!$A$3,\"zavodnik\",knt_tab!A15)),\"\",IF(GETPIVOTDATA(\"body\",knt_tab!$A$3,\"zavodnik\",knt_tab!A15)=0,\"\",knt_tab!A15))","v":"Martínková Adéla"},{"$f":"IF(B14=\"\",\"\",GETPIVOTDATA(\"body\",knt_tab!$A$3,\"zavodnik\",B14))","v":82},null,70,{"$f":"IF(ISERR(GETPIVOTDATA(\"body\",knt_tab!$A$3,\"zavodnik\",knt_tab!A76)),\"\",IF(GETPIVOTDATA(\"body\",knt_tab!$A$3,\"zavodnik\",knt_tab!A76)=0,\"\",knt_tab!A76))","v":"Malinovský Jiří"},{"$f":"IF(F14=\"\",\"\",GETPIVOTDATA(\"body\",knt_tab!$A$3,\"zavodnik\",F14))","v":13},null,128,{"$f":"IF(ISERR(GETPIVOTDATA(\"body\",knt_tab!$A$3,\"zavodnik\",knt_tab!A137)),\"\",IF(GETPIVOTDATA(\"body\",knt_tab!$A$3,\"zavodnik\",knt_tab!A137)=0,\"\",knt_tab!A137))","v":"Vrbas Alexandr"},{"$f":"IF(J14=\"\",\"\",GETPIVOTDATA(\"body\",knt_tab!$A$3,\"zavodnik\",J14))","v":1},null,{"$f":"IF(N14=\"\",\"\",IF(O14=O13,M13,ROW(M14)-ROW($M$9)))","v":5},{"$f":"IF(ISERR(GETPIVOTDATA(\"body\",knt_tab!$Y$3,\"zavodnik\",knt_tab!Y9)),\"\",IF(GETPIVOTDATA(\"body\",knt_tab!$Y$3,\"zavodnik\",knt_tab!Y9)=0,\"\",knt_tab!Y9))","v":"Janoš Marek"},{"$f":"IF(N14=\"\",\"\",GETPIVOTDATA(\"body\",knt_tab!$Y$3,\"zavodnik\",N14))","v":6},null,11,{"$f":"IF(ISERR(GETPIVOTDATA(\"body\",knt_tab!$M$3,\"zavodnik\",knt_tab!M15)),\"\",IF(GETPIVOTDATA(\"body\",knt_tab!$M$3,\"zavodnik\",knt_tab!M15)=0,\"\",knt_tab!M15))","v":"Fulneček Šimon"},{"$f":"IF(R14=\"\",\"\",GETPIVOTDATA(\"body\",knt_tab!$M$3,\"zavodnik\",R14))","v":33},null,29,{"$f":"IF(ISERR(GETPIVOTDATA(\"body\",knt_tab!$G$3,\"zavodnik\",knt_tab!G33)),\"\",IF(GETPIVOTDATA(\"body\",knt_tab!$G$3,\"zavodnik\",knt_tab!G33)=0,\"\",knt_tab!G33))","v":"Šotola Kryštof"},{"$f":"IF(V14=\"\",\"\",GETPIVOTDATA(\"body\",knt_tab!$G$3,\"zavodnik\",V14))","v":2}]
[11,{"$f":"IF(ISERR(GETPIVOTDATA(\"body\",knt_tab!$A$3,\"zavodnik\",knt_tab!A16)),\"\",IF(GETPIVOTDATA(\"body\",knt_tab!$A$3,\"zavodnik\",knt_tab!A16)=0,\"\",knt_tab!A16))","v":"Meixner Tomáš"},{"$f":"IF(B15=\"\",\"\",GETPIVOTDATA(\"body\",knt_tab!$A$3,\"zavodnik\",B15))","v":82},null,73,{"$f":"IF(ISERR(GETPIVOTDATA(\"body\",knt_tab!$A$3,\"zavodnik\",knt_tab!A77)),\"\",IF(GETPIVOTDATA(\"body\",knt_tab!$A$3,\"zavodnik\",knt_tab!A77)=0,\"\",knt_tab!A77))","v":"Caletka Michal"},{"$f":"IF(F15=\"\",\"\",GETPIVOTDATA(\"body\",knt_tab!$A$3,\"zavodnik\",F15))","v":12},null,"",{"$f":"IF(ISERR(GETPIVOTDATA(\"body\",knt_tab!$A$3,\"zavodnik\",knt_tab!A138)),\"\",IF(GETPIVOTDATA(\"body\",knt_tab!$A$3,\"zavodnik\",knt_tab!A138)=0,\"\",knt_tab!A138))","v":""},{"$f":"IF(J15=\"\",\"\",GETPIVOTDATA(\"body\",knt_tab!$A$3,\"zavodnik\",J15))","v":""},null,{"$f":"IF(N15=\"\",\"\",IF(O15=O14,M14,ROW(M15)-ROW($M$9)))","v":""},{"$f":"IF(ISERR(GETPIVOTDATA(\"body\",knt_tab!$Y$3,\"zavodnik\",knt_tab!Y10)),\"\",IF(GETPIVOTDATA(\"body\",knt_tab!$Y$3,\"zavodnik\",knt_tab!Y10)=0,\"\",knt_tab!Y10))","v":""},{"$f":"IF(N15=\"\",\"\",GETPIVOTDATA(\"body\",knt_tab!$Y$3,\"zavodnik\",N15))","v":""},null,12,{"$f":"IF(ISERR(GETPIVOTDATA(\"body\",knt_tab!$M$3,\"zavodnik\",knt_tab!M16)),\"\",IF(GETPIVOTDATA(\"body\",knt_tab!$M$3,\"zavodnik\",knt_tab!M16)=0,\"\",knt_tab!M16))","v":"Caletka Petr"},{"$f":"IF(R15=\"\",\"\",GETPIVOTDATA(\"body\",knt_tab!$M$3,\"zavodnik\",R15))","v":26},null,29,{"$f":"IF(ISERR(GETPIVOTDATA(\"body\",knt_tab!$G$3,\"zavodnik\",knt_tab!G34)),\"\",IF(GETPIVOTDATA(\"body\",knt_tab!$G$3,\"zavodnik\",knt_tab!G34)=0,\"\",knt_tab!G34))","v":"Nuhlíček Jakub"},{"$f":"IF(V15=\"\",\"\",GETPIVOTDATA(\"body\",knt_tab!$G$3,\"zavodnik\",V15))","v":2}]
[13,{"$f":"IF(ISERR(GETPIVOTDATA(\"body\",knt_tab!$A$3,\"zavodnik\",knt_tab!A17)),\"\",IF(GETPIVOTDATA(\"body\",knt_tab!$A$3,\"zavodnik\",knt_tab!A17)=0,\"\",knt_tab!A17))","v":"Rapčanová Silvie"},{"$f":"IF(B16=\"\",\"\",GETPIVOTDATA(\"body\",knt_tab!$A$3,\"zavodnik\",B16))","v":79},null,73,{"$f":"IF(ISERR(GETPIVOTDATA(\"body\",knt_tab!$A$3,\"zavodnik\",knt_tab!A78)),\"\",IF(GETPIVOTDATA(\"body\",knt_tab!$A$3,\"zavodnik\",knt_tab!A78)=0,\"\",knt_tab!A78))","v":"Bukovjanová Charlotte"},{"$f":"IF(F16=\"\",\"\",GETPIVOTDATA(\"body\",knt_tab!$A$3,\"zavodnik\",F16))","v":12},null,"",{"$f":"IF(ISERR(GETPIVOTDATA(\"body\",knt_tab!$A$3,\"zavodnik\",knt_tab!A139)),\"\",IF(GETPIVOTDATA(\"body\",knt_tab!$A$3,\"zavodnik\",knt_tab!A139)=0,\"\",knt_tab!A139))","v":""},{"$f":"IF(J16=\"\",\"\",GETPIVOTDATA(\"body\",knt_tab!$A$3,\"zavodnik\",J16))","v":""},null,null,null,null,null,{"$f":"IF(R16=\"\",\"\",IF(S16=S15,Q15,ROW(Q16)-ROW($Q$3)))","v":13},{"$f":"IF(ISERR(GETPIVOTDATA(\"body\",knt_tab!$M$3,\"zavodnik\",knt_tab!M17)),\"\",IF(GETPIVOTDATA(\"body\",knt_tab!$M$3,\"zavodnik\",knt_tab!M17)=0,\"\",knt_tab!M17))","v":"Čerchla Michal"},{"$f":"IF(R16=\"\",\"\",GETPIVOTDATA(\"body\",knt_tab!$M$3,\"zavodnik\",R16))","v":25},null,29,{"$f":"IF(ISERR(GETPIVOTDATA(\"body\",knt_tab!$G$3,\"zavodnik\",knt_tab!G35)),\"\",IF(GETPIVOTDATA(\"body\",knt_tab!$G$3,\"zavodnik\",knt_tab!G35)=0,\"\",knt_tab!G35))","v":"Čelůstka Eduard"},{"$f":"IF(V16=\"\",\"\",GETPIVOTDATA(\"body\",knt_tab!$G$3,\"zavodnik\",V16))","v":2}]
[14,{"$f":"IF(ISERR(GETPIVOTDATA(\"body\",knt_tab!$A$3,\"zavodnik\",knt_tab!A18)),\"\",IF(GETPIVOTDATA(\"body\",knt_tab!$A$3,\"zavodnik\",knt_tab!A18)=0,\"\",knt_tab!A18))","v":"Václavková Tereza"},{"$f":"IF(B17=\"\",\"\",GETPIVOTDATA(\"body\",knt_tab!$A$3,\"zavodnik\",B17))","v":77},null,73,{"$f":"IF(ISERR(GETPIVOTDATA(\"body\",knt_tab!$A$3,\"zavodnik\",knt_tab!A79)),\"\",IF(GETPIVOTDATA(\"body\",knt_tab!$A$3,\"zavodnik\",knt_tab!A79)=0,\"\",knt_tab!A79))","v":"Freiwald Richard"},{"$f":"IF(F17=\"\",\"\",GETPIVOTDATA(\"body\",knt_tab!$A$3,\"zavodnik\",F17))","v":12},null,{"$f":"IF(J17=\"\",\"\",IF(K17=K16,I16,ROW(I17)-ROW($I$3)+122))","v":""},{"$f":"IF(ISERR(GETPIVOTDATA(\"body\",knt_tab!$A$3,\"zavodnik\",knt_tab!A140)),\"\",IF(GETPIVOTDATA(\"body\",knt_tab!$A$3,\"zavodnik\",knt_tab!A140)=0,\"\",knt_tab!A140))","v":""},{"$f":"IF(J17=\"\",\"\",GETPIVOTDATA(\"body\",knt_tab!$A$3,\"zavodnik\",J17))","v":""},null,"Dorostenky",null,null,null,{"$f":"IF(R17=\"\",\"\",IF(S17=S16,Q16,ROW(Q17)-ROW($Q$3)))","v":13},{"$f":"IF(ISERR(GETPIVOTDATA(\"body\",knt_tab!$M$3,\"zavodnik\",knt_tab!M18)),\"\",IF(GETPIVOTDATA(\"body\",knt_tab!$M$3,\"zavodnik\",knt_tab!M18)=0,\"\",knt_tab!M18))","v":"Buranyč Filip"},{"$f":"IF(R17=\"\",\"\",GETPIVOTDATA(\"body\",knt_tab!$M$3,\"zavodnik\",R17))","v":25},null,32,{"$f":"IF(ISERR(GETPIVOTDATA(\"body\",knt_tab!$G$3,\"zavodnik\",knt_tab!G36)),\"\",IF(GETPIVOTDATA(\"body\",knt_tab!$G$3,\"zavodnik\",knt_tab!G36)=0,\"\",knt_tab!G36))","v":"Suchan Jan"},{"$f":"IF(V17=\"\",\"\",GETPIVOTDATA(\"body\",knt_tab!$G$3,\"zavodnik\",V17))","v":1}]
[15,{"$f":"IF(ISERR(GETPIVOTDATA(\"body\",knt_tab!$A$3,\"zavodnik\",knt_tab!A19)),\"\",IF(GETPIVOTDATA(\"body\",knt_tab!$A$3,\"zavodnik\",knt_tab!A19)=0,\"\",knt_tab!A19))","v":"Křížek Šimon"},{"$f":"IF(B18=\"\",\"\",GETPIVOTDATA(\"body\",knt_tab!$A$3,\"zavodnik\",B18))","v":74},null,76,{"$f":"IF(ISERR(GETPIVOTDATA(\"body\",knt_tab!$A$3,\"zavodnik\",knt_tab!A80)),\"\",IF(GETPIVOTDATA(\"body\",knt_tab!$A$3,\"zavodnik\",knt_tab!A80)=0,\"\",knt_tab!A80))","v":"Bechný Adam"},{"$f":"IF(F18=\"\",\"\",GETPIVOTDATA(\"body\",knt_tab!$A$3,\"zavodnik\",F18))","v":11},null,"",{"$f":"IF(ISERR(GETPIVOTDATA(\"body\",knt_tab!$A$3,\"zavodnik\",knt_tab!A141)),\"\",IF(GETPIVOTDATA(\"body\",knt_tab!$A$3,\"zavodnik\",knt_tab!A141)=0,\"\",knt_tab!A141))","v":""},{"$f":"IF(J18=\"\",\"\",GETPIVOTDATA(\"body\",knt_tab!$A$3,\"zavodnik\",J18))","v":""},null,"Pořadí","Příjmení","body",null,15,{"$f":"IF(ISERR(GETPIVOTDATA(\"body\",knt_tab!$M$3,\"zavodnik\",knt_tab!M19)),\"\",IF(GETPIVOTDATA(\"body\",knt_tab!$M$3,\"zavodnik\",knt_tab!M19)=0,\"\",knt_tab!M19))","v":"Matýsek Jan"},{"$f":"IF(R18=\"\",\"\",GETPIVOTDATA(\"body\",knt_tab!$M$3,\"zavodnik\",R18))","v":15},null,{"$f":"IF(V18=\"\",\"\",IF(W18=W17,U17,ROW(U18)-ROW($U$2)+17))","v":32},{"$f":"IF(ISERR(GETPIVOTDATA(\"body\",knt_tab!$G$3,\"zavodnik\",knt_tab!G37)),\"\",IF(GETPIVOTDATA(\"body\",knt_tab!$G$3,\"zavodnik\",knt_tab!G37)=0,\"\",knt_tab!G37))","v":"Horák Richard"},{"$f":"IF(V18=\"\",\"\",GETPIVOTDATA(\"body\",knt_tab!$G$3,\"zavodnik\",V18))","v":1}]
[16,{"$f":"IF(ISERR(GETPIVOTDATA(\"body\",knt_tab!$A$3,\"zavodnik\",knt_tab!A20)),\"\",IF(GETPIVOTDATA(\"body\",knt_tab!$A$3,\"zavodnik\",knt_tab!A20)=0,\"\",knt_tab!A20))","v":"Kaszperová Kristýna"},{"$f":"IF(B19=\"\",\"\",GETPIVOTDATA(\"body\",knt_tab!$A$3,\"zavodnik\",B19))","v":72},null,76,{"$f":"IF(ISERR(GETPIVOTDATA(\"body\",knt_tab!$A$3,\"zavodnik\",knt_tab!A81)),\"\",IF(GETPIVOTDATA(\"body\",knt_tab!$A$3,\"zavodnik\",knt_tab!A81)=0,\"\",knt_tab!A81))","v":"Bartošic Sebastian"},{"$f":"IF(F19=\"\",\"\",GETPIVOTDATA(\"body\",knt_tab!$A$3,\"zavodnik\",F19))","v":11},null,null,null,null,null,1,{"$f":"IF(ISERR(GETPIVOTDATA(\"body\",knt_tab!$V$3,\"zavodnik\",knt_tab!V5)),\"\",IF(GETPIVOTDATA(\"body\",knt_tab!$V$3,\"zavodnik\",knt_tab!V5)=0,\"\",knt_tab!V5))","v":"Václavková Tereza"},{"$f":"IF(N19=\"\",\"\",GETPIVOTDATA(\"body\",knt_tab!$V$3,\"zavodnik\",N19))","v":77},null,16,{"$f":"IF(ISERR(GETPIVOTDATA(\"body\",knt_tab!$M$3,\"zavodnik\",knt_tab!M20)),\"\",IF(GETPIVOTDATA(\"body\",knt_tab!$M$3,\"zavodnik\",knt_tab!M20)=0,\"\",knt_tab!M20))","v":"Turčínek Tomáš"},{"$f":"IF(R19=\"\",\"\",GETPIVOTDATA(\"body\",knt_tab!$M$3,\"zavodnik\",R19))","v":14},null,32,{"$f":"IF(ISERR(GETPIVOTDATA(\"body\",knt_tab!$G$3,\"zavodnik\",knt_tab!G38)),\"\",IF(GETPIVOTDATA(\"body\",knt_tab!$G$3,\"zavodnik\",knt_tab!G38)=0,\"\",knt_tab!G38))","v":"Vavřina Viktor "},{"$f":"IF(V19=\"\",\"\",GETPIVOTDATA(\"body\",knt_tab!$G$3,\"zavodnik\",V19))","v":1}]
[17,{"$f":"IF(ISERR(GETPIVOTDATA(\"body\",knt_tab!$A$3,\"zavodnik\",knt_tab!A21)),\"\",IF(GETPIVOTDATA(\"body\",knt_tab!$A$3,\"zavodnik\",knt_tab!A21)=0,\"\",knt_tab!A21))","v":"Zwilling Šimon"},{"$f":"IF(B20=\"\",\"\",GETPIVOTDATA(\"body\",knt_tab!$A$3,\"zavodnik\",B20))","v":70},null,76,{"$f":"IF(ISERR(GETPIVOTDATA(\"body\",knt_tab!$A$3,\"zavodnik\",knt_tab!A82)),\"\",IF(GETPIVOTDATA(\"body\",knt_tab!$A$3,\"zavodnik\",knt_tab!A82)=0,\"\",knt_tab!A82))","v":"Kuzník Tadeáš"},{"$f":"IF(F20=\"\",\"\",GETPIVOTDATA(\"body\",knt_tab!$A$3,\"zavodnik\",F20))","v":11},null,"veteráni",null,null,null,{"$f":"IF(N20=\"\",\"\",IF(O20=O19,M19,ROW(M20)-ROW($M$18)))","v":2},{"$f":"IF(ISERR(GETPIVOTDATA(\"body\",knt_tab!$V$3,\"zavodnik\",knt_tab!V6)),\"\",IF(GETPIVOTDATA(\"body\",knt_tab!$V$3,\"zavodnik\",knt_tab!V6)=0,\"\",knt_tab!V6))","v":"Čerchlová Markéta"},{"$f":"IF(N20=\"\",\"\",GETPIVOTDATA(\"body\",knt_tab!$V$3,\"zavodnik\",N20))","v":69},null,{"$f":"IF(R20=\"\",\"\",IF(S20=S19,Q19,ROW(Q20)-ROW($Q$3)))","v":17},{"$f":"IF(ISERR(GETPIVOTDATA(\"body\",knt_tab!$M$3,\"zavodnik\",knt_tab!M21)),\"\",IF(GETPIVOTDATA(\"body\",knt_tab!$M$3,\"zavodnik\",knt_tab!M21)=0,\"\",knt_tab!M21))","v":"Caletka Michal"},{"$f":"IF(R20=\"\",\"\",GETPIVOTDATA(\"body\",knt_tab!$M$3,\"zavodnik\",R20))","v":12},null,32,{"$f":"IF(ISERR(GETPIVOTDATA(\"body\",knt_tab!$G$3,\"zavodnik\",knt_tab!G39)),\"\",IF(GETPIVOTDATA(\"body\",knt_tab!$G$3,\"zavodnik\",knt_tab!G39)=0,\"\",knt_tab!G39))","v":"Vrbas Alexandr"},{"$f":"IF(V20=\"\",\"\",GETPIVOTDATA(\"body\",knt_tab!$G$3,\"zavodnik\",V20))","v":1}]
[18,{"$f":"IF(ISERR(GETPIVOTDATA(\"body\",knt_tab!$A$3,\"zavodnik\",knt_tab!A22)),\"\",IF(GETPIVOTDATA(\"body\",knt_tab!$A$3,\"zavodnik\",knt_tab!A22)=0,\"\",knt_tab!A22))","v":"Meixner Michal"},{"$f":"IF(B21=\"\",\"\",GETPIVOTDATA(\"body\",knt_tab!$A$3,\"zavodnik\",B21))","v":69},null,79,{"$f":"IF(ISERR(GETPIVOTDATA(\"body\",knt_tab!$A$3,\"zavodnik\",knt_tab!A83)),\"\",IF(GETPIVOTDATA(\"body\",knt_tab!$A$3,\"zavodnik\",knt_tab!A83)=0,\"\",knt_tab!A83))","v":"Kohn Tomáš"},{"$f":"IF(F21=\"\",\"\",GETPIVOTDATA(\"body\",knt_tab!$A$3,\"zavodnik\",F21))","v":10},null,"Pořadí","Příjmení","body",null,3,{"$f":"IF(ISERR(GETPIVOTDATA(\"body\",knt_tab!$V$3,\"zavodnik\",knt_tab!V7)),\"\",IF(GETPIVOTDATA(\"body\",knt_tab!$V$3,\"zavodnik\",knt_tab!V7)=0,\"\",knt_tab!V7))","v":"Kuncová Viktorie"},{"$f":"IF(N21=\"\",\"\",GETPIVOTDATA(\"body\",knt_tab!$V$3,\"zavodnik\",N21))","v":9},null,18,{"$f":"IF(ISERR(GETPIVOTDATA(\"body\",knt_tab!$M$3,\"zavodnik\",knt_tab!M22)),\"\",IF(GETPIVOTDATA(\"body\",knt_tab!$M$3,\"zavodnik\",knt_tab!M22)=0,\"\",knt_tab!M22))","v":"Kuzník Tadeáš"},{"$f":"IF(R21=\"\",\"\",GETPIVOTDATA(\"body\",knt_tab!$M$3,\"zavodnik\",R21))","v":11},null,"",{"$f":"IF(ISERR(GETPIVOTDATA(\"body\",knt_tab!$G$3,\"zavodnik\",knt_tab!G40)),\"\",IF(GETPIVOTDATA(\"body\",knt_tab!$G$3,\"zavodnik\",knt_tab!G40)=0,\"\",knt_tab!G40))","v":""},{"$f":"IF(V21=\"\",\"\",GETPIVOTDATA(\"body\",knt_tab!$G$3,\"zavodnik\",V21))","v":""}]
[18,{"$f":"IF(ISERR(GETPIVOTDATA(\"body\",knt_tab!$A$3,\"zavodnik\",knt_tab!A23)),\"\",IF(GETPIVOTDATA(\"body\",knt_tab!$A$3,\"zavodnik\",knt_tab!A23)=0,\"\",knt_tab!A23))","v":"Čerchlová Markéta"},{"$f":"IF(B22=\"\",\"\",GETPIVOTDATA(\"body\",knt_tab!$A$3,\"zavodnik\",B22))","v":69},null,79,{"$f":"IF(ISERR(GETPIVOTDATA(\"body\",knt_tab!$A$3,\"zavodnik\",knt_tab!A84)),\"\",IF(GETPIVOTDATA(\"body\",knt_tab!$A$3,\"zavodnik\",knt_tab!A84)=0,\"\",knt_tab!A84))","v":"Král Jakub"},{"$f":"IF(F22=\"\",\"\",GETPIVOTDATA(\"body\",knt_tab!$A$3,\"zavodnik\",F22))","v":10},null,1,{"$f":"IF(ISERR(GETPIVOTDATA(\"body\",knt_tab!$AK$3,\"zavodnik\",knt_tab!AK5)),\"\",IF(GETPIVOTDATA(\"body\",knt_tab!$AK$3,\"zavodnik\",knt_tab!AK5)=0,\"\",knt_tab!AK5))","v":"Černota Jiří"},{"$f":"IF(J22=\"\",\"\",GETPIVOTDATA(\"body\",knt_tab!$AK$3,\"zavodnik\",J22))","v":24},null,"",{"$f":"IF(ISERR(GETPIVOTDATA(\"body\",knt_tab!$V$3,\"zavodnik\",knt_tab!V8)),\"\",IF(GETPIVOTDATA(\"body\",knt_tab!$V$3,\"zavodnik\",knt_tab!V8)=0,\"\",knt_tab!V8))","v":""},{"$f":"IF(N22=\"\",\"\",GETPIVOTDATA(\"body\",knt_tab!$V$3,\"zavodnik\",N22))","v":""},null,19,{"$f":"IF(ISERR(GETPIVOTDATA(\"body\",knt_tab!$M$3,\"zavodnik\",knt_tab!M23)),\"\",IF(GETPIVOTDATA(\"body\",knt_tab!$M$3,\"zavodnik\",knt_tab!M23)=0,\"\",knt_tab!M23))","v":"Závodný Matyáš"},{"$f":"IF(R22=\"\",\"\",GETPIVOTDATA(\"body\",knt_tab!$M$3,\"zavodnik\",R22))","v":9},null,"",{"$f":"IF(ISERR(GETPIVOTDATA(\"body\",knt_tab!$G$3,\"zavodnik\",knt_tab!G41)),\"\",IF(GETPIVOTDATA(\"body\",knt_tab!$G$3,\"zavodnik\",knt_tab!G41)=0,\"\",knt_tab!G41))","v":""},{"$f":"IF(V22=\"\",\"\",GETPIVOTDATA(\"body\",knt_tab!$G$3,\"zavodnik\",V22))","v":""}]
[20,{"$f":"IF(ISERR(GETPIVOTDATA(\"body\",knt_tab!$A$3,\"zavodnik\",knt_tab!A24)),\"\",IF(GETPIVOTDATA(\"body\",knt_tab!$A$3,\"zavodnik\",knt_tab!A24)=0,\"\",knt_tab!A24))","v":"Kršňák Filip"},{"$f":"IF(B23=\"\",\"\",GETPIVOTDATA(\"body\",knt_tab!$A$3,\"zavodnik\",B23))","v":65},null,81,{"$f":"IF(ISERR(GETPIVOTDATA(\"body\",knt_tab!$A$3,\"zavodnik\",knt_tab!A85)),\"\",IF(GETPIVOTDATA(\"body\",knt_tab!$A$3,\"zavodnik\",knt_tab!A85)=0,\"\",knt_tab!A85))","v":"Závodný Matyáš"},{"$f":"IF(F23=\"\",\"\",GETPIVOTDATA(\"body\",knt_tab!$A$3,\"zavodnik\",F23))","v":9},null,{"$f":"IF(J23=\"\",\"\",IF(K23=K22,I22,ROW(I23)-ROW($I$21)))","v":2},{"$f":"IF(ISERR(GETPIVOTDATA(\"body\",knt_tab!$AK$3,\"zavodnik\",knt_tab!AK6)),\"\",IF(GETPIVOTDATA(\"body\",knt_tab!$AK$3,\"zavodnik\",knt_tab!AK6)=0,\"\",knt_tab!AK6))","v":"Chlebový Arnold"},{"$f":"IF(J23=\"\",\"\",GETPIVOTDATA(\"body\",knt_tab!$AK$3,\"zavodnik\",J23))","v":21},null,"",{"$f":"IF(ISERR(GETPIVOTDATA(\"body\",knt_tab!$V$3,\"zavodnik\",knt_tab!V9)),\"\",IF(GETPIVOTDATA(\"body\",knt_tab!$V$3,\"zavodnik\",knt_tab!V9)=0,\"\",knt_tab!V9))","v":""},{"$f":"IF(N23=\"\",\"\",GETPIVOTDATA(\"body\",knt_tab!$V$3,\"zavodnik\",N23))","v":""},null,19,{"$f":"IF(ISERR(GETPIVOTDATA(\"body\",knt_tab!$M$3,\"zavodnik\",knt_tab!M24)),\"\",IF(GETPIVOTDATA(\"body\",knt_tab!$M$3,\"zavodnik\",knt_tab!M24)=0,\"\",knt_tab!M24))","v":"Čech Jiří"},{"$f":"IF(R23=\"\",\"\",GETPIVOTDATA(\"body\",knt_tab!$M$3,\"zavodnik\",R23))","v":9},null,"",{"$f":"IF(ISERR(GETPIVOTDATA(\"body\",knt_tab!$G$3,\"zavodnik\",knt_tab!G42)),\"\",IF(GETPIVOTDATA(\"body\",knt_tab!$G$3,\"zavodnik\",knt_tab!G42)=0,\"\",knt_tab!G42))","v":""},{"$f":"IF(V23=\"\",\"\",GETPIVOTDATA(\"body\",knt_tab!$G$3,\"zavodnik\",V23))","v":""}]
[20,{"$f":"IF(ISERR(GETPIVOTDATA(\"body\",knt_tab!$A$3,\"zavodnik\",knt_tab!A25)),\"\",IF(GETPIVOTDATA(\"body\",knt_tab!$A$3,\"zavodnik\",knt_tab!A25)=0,\"\",knt_tab!A25))","v":"Boháček Jan"},{"$f":"IF(B24=\"\",\"\",GETPIVOTDATA(\"body\",knt_tab!$A$3,\"zavodnik\",B24))","v":65},null,81,{"$f":"IF(ISERR(GETPIVOTDATA(\"body\",knt_tab!$A$3,\"zavodnik\",knt_tab!A86)),\"\",IF(GETPIVOTDATA(\"body\",knt_tab!$A$3,\"zavodnik\",knt_tab!A86)=0,\"\",knt_tab!A86))","v":"Čech Jiří"},{"$f":"IF(F24=\"\",\"\",GETPIVOTDATA(\"body\",knt_tab!$A$3,\"zavodnik\",F24))","v":9},null,3,{"$f":"IF(ISERR(GETPIVOTDATA(\"body\",knt_tab!$AK$3,\"zavodnik\",knt_tab!AK7)),\"\",IF(GETPIVOTDATA(\"body\",knt_tab!$AK$3,\"zavodnik\",knt_tab!AK7)=0,\"\",knt_tab!AK7))","v":"Badura Martin"},{"$f":"IF(J24=\"\",\"\",GETPIVOTDATA(\"body\",knt_tab!$AK$3,\"zavodnik\",J24))","v":5},null,"",{"$f":"IF(ISERR(GETPIVOTDATA(\"body\",knt_tab!$V$3,\"zavodnik\",knt_tab!V10)),\"\",IF(GETPIVOTDATA(\"body\",knt_tab!$V$3,\"zavodnik\",knt_tab!V10)=0,\"\",knt_tab!V10))","v":""},{"$f":"IF(N24=\"\",\"\",GETPIVOTDATA(\"body\",knt_tab!$V$3,\"zavodnik\",N24))","v":""},null,{"$f":"IF(R24=\"\",\"\",IF(S24=S23,Q23,ROW(Q24)-ROW($Q$3)))","v":21},{"$f":"IF(ISERR(GETPIVOTDATA(\"body\",knt_tab!$M$3,\"zavodnik\",knt_tab!M25)),\"\",IF(GETPIVOTDATA(\"body\",knt_tab!$M$3,\"zavodnik\",knt_tab!M25)=0,\"\",knt_tab!M25))","v":"Bernacký Mikuláš"},{"$f":"IF(R24=\"\",\"\",GETPIVOTDATA(\"body\",knt_tab!$M$3,\"zavodnik\",R24))","v":8},null,"",{"$f":"IF(ISERR(GETPIVOTDATA(\"body\",knt_tab!$G$3,\"zavodnik\",knt_tab!G43)),\"\",IF(GETPIVOTDATA(\"body\",knt_tab!$G$3,\"zavodnik\",knt_tab!G43)=0,\"\",knt_tab!G43))","v":""},{"$f":"IF(V24=\"\",\"\",GETPIVOTDATA(\"body\",knt_tab!$G$3,\"zavodnik\",V24))","v":""}]
[20,{"$f":"IF(ISERR(GETPIVOTDATA(\"body\",knt_tab!$A$3,\"zavodnik\",knt_tab!A26)),\"\",IF(GETPIVOTDATA(\"body\",knt_tab!$A$3,\"zavodnik\",knt_tab!A26)=0,\"\",knt_tab!A26))","v":"Horák Adam"},{"$f":"IF(B25=\"\",\"\",GETPIVOTDATA(\"body\",knt_tab!$A$3,\"zavodnik\",B25))","v":65},null,83,{"$f":"IF(ISERR(GETPIVOTDATA(\"body\",knt_tab!$A$3,\"zavodnik\",knt_tab!A87)),\"\",IF(GETPIVOTDATA(\"body\",knt_tab!$A$3,\"zavodnik\",knt_tab!A87)=0,\"\",knt_tab!A87))","v":"Bernacký Mikuláš"},{"$f":"IF(F25=\"\",\"\",GETPIVOTDATA(\"body\",knt_tab!$A$3,\"zavodnik\",F25))","v":8},null,4,{"$f":"IF(ISERR(GETPIVOTDATA(\"body\",knt_tab!$AK$3,\"zavodnik\",knt_tab!AK8)),\"\",IF(GETPIVOTDATA(\"body\",knt_tab!$AK$3,\"zavodnik\",knt_tab!AK8)=0,\"\",knt_tab!AK8))","v":"Pravda Pavel"},{"$f":"IF(J25=\"\",\"\",GETPIVOTDATA(\"body\",knt_tab!$AK$3,\"zavodnik\",J25))","v":3},null,"",{"$f":"IF(ISERR(GETPIVOTDATA(\"body\",knt_tab!$V$3,\"zavodnik\",knt_tab!V11)),\"\",IF(GETPIVOTDATA(\"body\",knt_tab!$V$3,\"zavodnik\",knt_tab!V11)=0,\"\",knt_tab!V11))","v":""},{"$f":"IF(N25=\"\",\"\",GETPIVOTDATA(\"body\",knt_tab!$V$3,\"zavodnik\",N25))","v":""},null,22,{"$f":"IF(ISERR(GETPIVOTDATA(\"body\",knt_tab!$M$3,\"zavodnik\",knt_tab!M26)),\"\",IF(GETPIVOTDATA(\"body\",knt_tab!$M$3,\"zavodnik\",knt_tab!M26)=0,\"\",knt_tab!M26))","v":"Lindovský Jiří "},{"$f":"IF(R25=\"\",\"\",GETPIVOTDATA(\"body\",knt_tab!$M$3,\"zavodnik\",R25))","v":6},null,"",{"$f":"IF(ISERR(GETPIVOTDATA(\"body\",knt_tab!$G$3,\"zavodnik\",knt_tab!G44)),\"\",IF(GETPIVOTDATA(\"body\",knt_tab!$G$3,\"zavodnik\",knt_tab!G44)=0,\"\",knt_tab!G44))","v":""},{"$f":"IF(V25=\"\",\"\",GETPIVOTDATA(\"body\",knt_tab!$G$3,\"zavodnik\",V25))","v":""}]
[23,{"$f":"IF(ISERR(GETPIVOTDATA(\"body\",knt_tab!$A$3,\"zavodnik\",knt_tab!A27)),\"\",IF(GETPIVOTDATA(\"body\",knt_tab!$A$3,\"zavodnik\",knt_tab!A27)=0,\"\",knt_tab!A27))","v":"Malaczynski Filip"},{"$f":"IF(B26=\"\",\"\",GETPIVOTDATA(\"body\",knt_tab!$A$3,\"zavodnik\",B26))","v":63},null,83,{"$f":"IF(ISERR(GETPIVOTDATA(\"body\",knt_tab!$A$3,\"zavodnik\",knt_tab!A88)),\"\",IF(GETPIVOTDATA(\"body\",knt_tab!$A$3,\"zavodnik\",knt_tab!A88)=0,\"\",knt_tab!A88))","v":"Hegner Leoš"},{"$f":"IF(F26=\"\",\"\",GETPIVOTDATA(\"body\",knt_tab!$A$3,\"zavodnik\",F26))","v":8},null,"",{"$f":"IF(ISERR(GETPIVOTDATA(\"body\",knt_tab!$AK$3,\"zavodnik\",knt_tab!AK9)),\"\",IF(GETPIVOTDATA(\"body\",knt_tab!$AK$3,\"zavodnik\",knt_tab!AK9)=0,\"\",knt_tab!AK9))","v":""},{"$f":"IF(J26=\"\",\"\",GETPIVOTDATA(\"body\",knt_tab!$AK$3,\"zavodnik\",J26))","v":""},null,null,null,null,null,{"$f":"IF(R26=\"\",\"\",IF(S26=S25,Q25,ROW(Q26)-ROW($Q$3)))","v":22},{"$f":"IF(ISERR(GETPIVOTDATA(\"body\",knt_tab!$M$3,\"zavodnik\",knt_tab!M27)),\"\",IF(GETPIVOTDATA(\"body\",knt_tab!$M$3,\"zavodnik\",knt_tab!M27)=0,\"\",knt_tab!M27))","v":"Freiwald Richard"},{"$f":"IF(R26=\"\",\"\",GETPIVOTDATA(\"body\",knt_tab!$M$3,\"zavodnik\",R26))","v":6},null,"",{"$f":"IF(ISERR(GETPIVOTDATA(\"body\",knt_tab!$G$3,\"zavodnik\",knt_tab!G45)),\"\",IF(GETPIVOTDATA(\"body\",knt_tab!$G$3,\"zavodnik\",knt_tab!G45)=0,\"\",knt_tab!G45))","v":""},{"$f":"IF(V26=\"\",\"\",GETPIVOTDATA(\"body\",knt_tab!$G$3,\"zavodnik\",V26))","v":""}]
[24,{"$f":"IF(ISERR(GETPIVOTDATA(\"body\",knt_tab!$A$3,\"zavodnik\",knt_tab!A28)),\"\",IF(GETPIVOTDATA(\"body\",knt_tab!$A$3,\"zavodnik\",knt_tab!A28)=0,\"\",knt_tab!A28))","v":"Pustějovský Tomáš"},{"$f":"IF(B27=\"\",\"\",GETPIVOTDATA(\"body\",knt_tab!$A$3,\"zavodnik\",B27))","v":61},null,83,{"$f":"IF(ISERR(GETPIVOTDATA(\"body\",knt_tab!$A$3,\"zavodnik\",knt_tab!A89)),\"\",IF(GETPIVOTDATA(\"body\",knt_tab!$A$3,\"zavodnik\",knt_tab!A89)=0,\"\",knt_tab!A89))","v":"Konvičný Dominik"},{"$f":"IF(F27=\"\",\"\",GETPIVOTDATA(\"body\",knt_tab!$A$3,\"zavodnik\",F27))","v":8},null,"",{"$f":"IF(ISERR(GETPIVOTDATA(\"body\",knt_tab!$AK$3,\"zavodnik\",knt_tab!AK10)),\"\",IF(GETPIVOTDATA(\"body\",knt_tab!$AK$3,\"zavodnik\",knt_tab!AK10)=0,\"\",knt_tab!AK10))","v":""},{"$f":"IF(J27=\"\",\"\",GETPIVOTDATA(\"body\",knt_tab!$AK$3,\"zavodnik\",J27))","v":""},null,"ženy",null,null,null,24,{"$f":"IF(ISERR(GETPIVOTDATA(\"body\",knt_tab!$M$3,\"zavodnik\",knt_tab!M28)),\"\",IF(GETPIVOTDATA(\"body\",knt_tab!$M$3,\"zavodnik\",knt_tab!M28)=0,\"\",knt_tab!M28))","v":"Šumský Miroslav"},{"$f":"IF(R27=\"\",\"\",GETPIVOTDATA(\"body\",knt_tab!$M$3,\"zavodnik\",R27))","v":5}]
[24,{"$f":"IF(ISERR(GETPIVOTDATA(\"body\",knt_tab!$A$3,\"zavodnik\",knt_tab!A29)),\"\",IF(GETPIVOTDATA(\"body\",knt_tab!$A$3,\"zavodnik\",knt_tab!A29)=0,\"\",knt_tab!A29))","v":"Kunc Matěj"},{"$f":"IF(B28=\"\",\"\",GETPIVOTDATA(\"body\",knt_tab!$A$3,\"zavodnik\",B28))","v":61},null,83,{"$f":"IF(ISERR(GETPIVOTDATA(\"body\",knt_tab!$A$3,\"zavodnik\",knt_tab!A90)),\"\",IF(GETPIVOTDATA(\"body\",knt_tab!$A$3,\"zavodnik\",knt_tab!A90)=0,\"\",knt_tab!A90))","v":"Štverka Matyáš"},{"$f":"IF(F28=\"\",\"\",GETPIVOTDATA(\"body\",knt_tab!$A$3,\"zavodnik\",F28))","v":8},null,"",{"$f":"IF(ISERR(GETPIVOTDATA(\"body\",knt_tab!$AK$3,\"zavodnik\",knt_tab!AK11)),\"\",IF(GETPIVOTDATA(\"body\",knt_tab!$AK$3,\"zavodnik\",knt_tab!AK11)=0,\"\",knt_tab!AK11))","v":""},{"$f":"IF(J28=\"\",\"\",GETPIVOTDATA(\"body\",knt_tab!$AK$3,\"zavodnik\",J28))","v":""},null,"Pořadí","Příjmení","body",null,{"$f":"IF(R28=\"\",\"\",IF(S28=S27,Q27,ROW(Q28)-ROW($Q$3)))","v":25},{"$f":"IF(ISERR(GETPIVOTDATA(\"body\",knt_tab!$M$3,\"zavodnik\",knt_tab!M29)),\"\",IF(GETPIVOTDATA(\"body\",knt_tab!$M$3,\"zavodnik\",knt_tab!M29)=0,\"\",knt_tab!M29))","v":"Náplava Richard"},{"$f":"IF(R28=\"\",\"\",GETPIVOTDATA(\"body\",knt_tab!$M$3,\"zavodnik\",R28))","v":3},null,"mláďata"]
[24,{"$f":"IF(ISERR(GETPIVOTDATA(\"body\",knt_tab!$A$3,\"zavodnik\",knt_tab!A30)),\"\",IF(GETPIVOTDATA(\"body\",knt_tab!$A$3,\"zavodnik\",knt_tab!A30)=0,\"\",knt_tab!A30))","v":"Huvar Matyáš"},{"$f":"IF(B29=\"\",\"\",GETPIVOTDATA(\"body\",knt_tab!$A$3,\"zavodnik\",B29))","v":61},null,83,{"$f":"IF(ISERR(GETPIVOTDATA(\"body\",knt_tab!$A$3,\"zavodnik\",knt_tab!A91)),\"\",IF(GETPIVOTDATA(\"body\",knt_tab!$A$3,\"zavodnik\",knt_tab!A91)=0,\"\",knt_tab!A91))","v":"Plaček Viktor"},{"$f":"IF(F29=\"\",\"\",GETPIVOTDATA(\"body\",knt_tab!$A$3,\"zavodnik\",F29))","v":8},null,"",{"$f":"IF(ISERR(GETPIVOTDATA(\"body\",knt_tab!$AK$3,\"zavodnik\",knt_tab!AK12)),\"\",IF(GETPIVOTDATA(\"body\",knt_tab!$AK$3,\"zavodnik\",knt_tab!AK12)=0,\"\",knt_tab!AK12))","v":""},{"$f":"IF(J29=\"\",\"\",GETPIVOTDATA(\"body\",knt_tab!$AK$3,\"zavodnik\",J29))","v":""},null,1,{"$f":"IF(ISERR(GETPIVOTDATA(\"body\",knt_tab!$AH$3,\"zavodnik\",knt_tab!AH5)),\"\",IF(GETPIVOTDATA(\"body\",knt_tab!$AH$3,\"zavodnik\",knt_tab!AH5)=0,\"\",knt_tab!AH5))","v":"Martínková Adéla"},{"$f":"IF(N29=\"\",\"\",GETPIVOTDATA(\"body\",knt_tab!$AH$3,\"zavodnik\",N29))","v":36},null,26,{"$f":"IF(ISERR(GETPIVOTDATA(\"body\",knt_tab!$M$3,\"zavodnik\",knt_tab!M30)),\"\",IF(GETPIVOTDATA(\"body\",knt_tab!$M$3,\"zavodnik\",knt_tab!M30)=0,\"\",knt_tab!M30))","v":"Kožušník Vojtěch"},{"$f":"IF(R29=\"\",\"\",GETPIVOTDATA(\"body\",knt_tab!$M$3,\"zavodnik\",R29))","v":1},null,"Pořadí","Příjmení","body"]
[27,{"$f":"IF(ISERR(GETPIVOTDATA(\"body\",knt_tab!$A$3,\"zavodnik\",knt_tab!A31)),\"\",IF(GETPIVOTDATA(\"body\",knt_tab!$A$3,\"zavodnik\",knt_tab!A31)=0,\"\",knt_tab!A31))","v":"Kuželová Dominika"},{"$f":"IF(B30=\"\",\"\",GETPIVOTDATA(\"body\",knt_tab!$A$3,\"zavodnik\",B30))","v":58},null,88,{"$f":"IF(ISERR(GETPIVOTDATA(\"body\",knt_tab!$A$3,\"zavodnik\",knt_tab!A92)),\"\",IF(GETPIVOTDATA(\"body\",knt_tab!$A$3,\"zavodnik\",knt_tab!A92)=0,\"\",knt_tab!A92))","v":"Kožušník Václav"},{"$f":"IF(F30=\"\",\"\",GETPIVOTDATA(\"body\",knt_tab!$A$3,\"zavodnik\",F30))","v":7},null,"",{"$f":"IF(ISERR(GETPIVOTDATA(\"body\",knt_tab!$AK$3,\"zavodnik\",knt_tab!AK13)),\"\",IF(GETPIVOTDATA(\"body\",knt_tab!$AK$3,\"zavodnik\",knt_tab!AK13)=0,\"\",knt_tab!AK13))","v":""},{"$f":"IF(J30=\"\",\"\",GETPIVOTDATA(\"body\",knt_tab!$AK$3,\"zavodnik\",J30))","v":""},null,{"$f":"IF(N30=\"\",\"\",IF(O30=O29,M29,ROW(M30)-ROW($M$28)))","v":2},{"$f":"IF(ISERR(GETPIVOTDATA(\"body\",knt_tab!$AH$3,\"zavodnik\",knt_tab!AH6)),\"\",IF(GETPIVOTDATA(\"body\",knt_tab!$AH$3,\"zavodnik\",knt_tab!AH6)=0,\"\",knt_tab!AH6))","v":"Polášková Kristýna"},{"$f":"IF(N30=\"\",\"\",GETPIVOTDATA(\"body\",knt_tab!$AH$3,\"zavodnik\",N30))","v":28},null,26,{"$f":"IF(ISERR(GETPIVOTDATA(\"body\",knt_tab!$M$3,\"zavodnik\",knt_tab!M31)),\"\",IF(GETPIVOTDATA(\"body\",knt_tab!$M$3,\"zavodnik\",knt_tab!M31)=0,\"\",knt_tab!M31))","v":"Kaliský Tomáš"},{"$f":"IF(R30=\"\",\"\",GETPIVOTDATA(\"body\",knt_tab!$M$3,\"zavodnik\",R30))","v":1},null,1,{"$f":"IF(ISERR(GETPIVOTDATA(\"body\",knt_tab!$D$3,\"zavodnik\",knt_tab!D5)),\"\",IF(GETPIVOTDATA(\"body\",knt_tab!$D$3,\"zavodnik\",knt_tab!D5)=0,\"\",knt_tab!D5))","v":"Kaszperová Kristýna"},{"$f":"IF(V30=\"\",\"\",GETPIVOTDATA(\"body\",knt_tab!$D$3,\"zavodnik\",V30))","v":72}]
[28,{"$f":"IF(ISERR(GETPIVOTDATA(\"body\",knt_tab!$A$3,\"zavodnik\",knt_tab!A32)),\"\",IF(GETPIVOTDATA(\"body\",knt_tab!$A$3,\"zavodnik\",knt_tab!A32)=0,\"\",knt_tab!A32))","v":"Seibert Marian"},{"$f":"IF(B31=\"\",\"\",GETPIVOTDATA(\"body\",knt_tab!$A$3,\"zavodnik\",B31))","v":55},null,88,{"$f":"IF(ISERR(GETPIVOTDATA(\"body\",knt_tab!$A$3,\"zavodnik\",knt_tab!A93)),\"\",IF(GETPIVOTDATA(\"body\",knt_tab!$A$3,\"zavodnik\",knt_tab!A93)=0,\"\",knt_tab!A93))","v":"King Samuel"},{"$f":"IF(F31=\"\",\"\",GETPIVOTDATA(\"body\",knt_tab!$A$3,\"zavodnik\",F31))","v":7},null,null,null,null,null,{"$f":"IF(N31=\"\",\"\",IF(O31=O30,M30,ROW(M31)-ROW($M$28)))","v":3},{"$f":"IF(ISERR(GETPIVOTDATA(\"body\",knt_tab!$AH$3,\"zavodnik\",knt_tab!AH7)),\"\",IF(GETPIVOTDATA(\"body\",knt_tab!$AH$3,\"zavodnik\",knt_tab!AH7)=0,\"\",knt_tab!AH7))","v":"Kuncová Viktorie"},{"$f":"IF(N31=\"\",\"\",GETPIVOTDATA(\"body\",knt_tab!$AH$3,\"zavodnik\",N31))","v":7},null,{"$f":"IF(R31=\"\",\"\",IF(S31=S30,Q30,ROW(Q31)-ROW($Q$3)))","v":""},{"$f":"IF(ISERR(GETPIVOTDATA(\"body\",knt_tab!$M$3,\"zavodnik\",knt_tab!M32)),\"\",IF(GETPIVOTDATA(\"body\",knt_tab!$M$3,\"zavodnik\",knt_tab!M32)=0,\"\",knt_tab!M32))","v":""},{"$f":"IF(R31=\"\",\"\",GETPIVOTDATA(\"body\",knt_tab!$M$3,\"zavodnik\",R31))","v":""},null,{"$f":"IF(V31=\"\",\"\",IF(W31=W30,U30,ROW(U31)-ROW($U$29)))","v":2},{"$f":"IF(ISERR(GETPIVOTDATA(\"body\",knt_tab!$D$3,\"zavodnik\",knt_tab!D6)),\"\",IF(GETPIVOTDATA(\"body\",knt_tab!$D$3,\"zavodnik\",knt_tab!D6)=0,\"\",knt_tab!D6))","v":"Zwilling Šimon"},{"$f":"IF(V31=\"\",\"\",GETPIVOTDATA(\"body\",knt_tab!$D$3,\"zavodnik\",V31))","v":70}]
[28,{"$f":"IF(ISERR(GETPIVOTDATA(\"body\",knt_tab!$A$3,\"zavodnik\",knt_tab!A33)),\"\",IF(GETPIVOTDATA(\"body\",knt_tab!$A$3,\"zavodnik\",knt_tab!A33)=0,\"\",knt_tab!A33))","v":"Čebík Filip"},{"$f":"IF(B32=\"\",\"\",GETPIVOTDATA(\"body\",knt_tab!$A$3,\"zavodnik\",B32))","v":55},null,88,{"$f":"IF(ISERR(GETPIVOTDATA(\"body\",knt_tab!$A$3,\"zavodnik\",knt_tab!A94)),\"\",IF(GETPIVOTDATA(\"body\",knt_tab!$A$3,\"zavodnik\",knt_tab!A94)=0,\"\",knt_tab!A94))","v":"Bartošic Sebastián"},{"$f":"IF(F32=\"\",\"\",GETPIVOTDATA(\"body\",knt_tab!$A$3,\"zavodnik\",F32))","v":7},null,"muži",null,null,null,{"$f":"IF(N32=\"\",\"\",IF(O32=O31,M31,ROW(M32)-ROW($M$28)))","v":""},{"$f":"IF(ISERR(GETPIVOTDATA(\"body\",knt_tab!$AH$3,\"zavodnik\",knt_tab!AH8)),\"\",IF(GETPIVOTDATA(\"body\",knt_tab!$AH$3,\"zavodnik\",knt_tab!AH8)=0,\"\",knt_tab!AH8))","v":""},{"$f":"IF(N32=\"\",\"\",GETPIVOTDATA(\"body\",knt_tab!$AH$3,\"zavodnik\",N32))","v":""},null,"",{"$f":"IF(ISERR(GETPIVOTDATA(\"body\",knt_tab!$M$3,\"zavodnik\",knt_tab!M33)),\"\",IF(GETPIVOTDATA(\"body\",knt_tab!$M$3,\"zavodnik\",knt_tab!M33)=0,\"\",knt_tab!M33))","v":""},{"$f":"IF(R32=\"\",\"\",GETPIVOTDATA(\"body\",knt_tab!$M$3,\"zavodnik\",R32))","v":""},null,3,{"$f":"IF(ISERR(GETPIVOTDATA(\"body\",knt_tab!$D$3,\"zavodnik\",knt_tab!D7)),\"\",IF(GETPIVOTDATA(\"body\",knt_tab!$D$3,\"zavodnik\",knt_tab!D7)=0,\"\",knt_tab!D7))","v":"Huvar Matyáš"},{"$f":"IF(V32=\"\",\"\",GETPIVOTDATA(\"body\",knt_tab!$D$3,\"zavodnik\",V32))","v":61}]
[{"$f":"IF(B33=\"\",\"\",IF(C33=C32,A32,ROW(A33)-ROW($A$3)))","v":30},{"$f":"IF(ISERR(GETPIVOTDATA(\"body\",knt_tab!$A$3,\"zavodnik\",knt_tab!A34)),\"\",IF(GETPIVOTDATA(\"body\",knt_tab!$A$3,\"zavodnik\",knt_tab!A34)=0,\"\",knt_tab!A34))","v":"Svoboda Jiří"},{"$f":"IF(B33=\"\",\"\",GETPIVOTDATA(\"body\",knt_tab!$A$3,\"zavodnik\",B33))","v":51},null,88,{"$f":"IF(ISERR(GETPIVOTDATA(\"body\",knt_tab!$A$3,\"zavodnik\",knt_tab!A95)),\"\",IF(GETPIVOTDATA(\"body\",knt_tab!$A$3,\"zavodnik\",knt_tab!A95)=0,\"\",knt_tab!A95))","v":"Kobiernicki Marek"},{"$f":"IF(F33=\"\",\"\",GETPIVOTDATA(\"body\",knt_tab!$A$3,\"zavodnik\",F33))","v":7},null,"Pořadí","Příjmení","body",null,null,null,null,null,"",{"$f":"IF(ISERR(GETPIVOTDATA(\"body\",knt_tab!$M$3,\"zavodnik\",knt_tab!M34)),\"\",IF(GETPIVOTDATA(\"body\",knt_tab!$M$3,\"zavodnik\",knt_tab!M34)=0,\"\",knt_tab!M34))","v":""},{"$f":"IF(R33=\"\",\"\",GETPIVOTDATA(\"body\",knt_tab!$M$3,\"zavodnik\",R33))","v":""},null,4,{"$f":"IF(ISERR(GETPIVOTDATA(\"body\",knt_tab!$D$3,\"zavodnik\",knt_tab!D8)),\"\",IF(GETPIVOTDATA(\"body\",knt_tab!$D$3,\"zavodnik\",knt_tab!D8)=0,\"\",knt_tab!D8))","v":"Vlk František"},{"$f":"IF(V33=\"\",\"\",GETPIVOTDATA(\"body\",knt_tab!$D$3,\"zavodnik\",V33))","v":39}]
[{"$f":"IF(B34=\"\",\"\",IF(C34=C33,A33,ROW(A34)-ROW($A$3)))","v":31},{"$f":"IF(ISERR(GETPIVOTDATA(\"body\",knt_tab!$A$3,\"zavodnik\",knt_tab!A35)),\"\",IF(GETPIVOTDATA(\"body\",knt_tab!$A$3,\"zavodnik\",knt_tab!A35)=0,\"\",knt_tab!A35))","v":"Mojžíšek Lukáš"},{"$f":"IF(B34=\"\",\"\",GETPIVOTDATA(\"body\",knt_tab!$A$3,\"zavodnik\",B34))","v":50},null,88,{"$f":"IF(ISERR(GETPIVOTDATA(\"body\",knt_tab!$A$3,\"zavodnik\",knt_tab!A96)),\"\",IF(GETPIVOTDATA(\"body\",knt_tab!$A$3,\"zavodnik\",knt_tab!A96)=0,\"\",knt_tab!A96))","v":"To Vojtěch"},{"$f":"IF(F34=\"\",\"\",GETPIVOTDATA(\"body\",knt_tab!$A$3,\"zavodnik\",F34))","v":7},null,1,{"$f":"IF(ISERR(GETPIVOTDATA(\"body\",knt_tab!$AE$3,\"zavodnik\",knt_tab!AE5)),\"\",IF(GETPIVOTDATA(\"body\",knt_tab!$AE$3,\"zavodnik\",knt_tab!AE5)=0,\"\",knt_tab!AE5))","v":"Svoboda Jiří"},{"$f":"IF(J34=\"\",\"\",GETPIVOTDATA(\"body\",knt_tab!$AE$3,\"zavodnik\",J34))","v":51},null,"Dorostenci",null,null,null,null,null,null,null,4,{"$f":"IF(ISERR(GETPIVOTDATA(\"body\",knt_tab!$D$3,\"zavodnik\",knt_tab!D9)),\"\",IF(GETPIVOTDATA(\"body\",knt_tab!$D$3,\"zavodnik\",knt_tab!D9)=0,\"\",knt_tab!D9))","v":"Kuluris Manolis"},{"$f":"IF(V34=\"\",\"\",GETPIVOTDATA(\"body\",knt_tab!$D$3,\"zavodnik\",V34))","v":39}]
[32,{"$f":"IF(ISERR(GETPIVOTDATA(\"body\",knt_tab!$A$3,\"zavodnik\",knt_tab!A36)),\"\",IF(GETPIVOTDATA(\"body\",knt_tab!$A$3,\"zavodnik\",knt_tab!A36)=0,\"\",knt_tab!A36))","v":"Rapčanová Alice"},{"$f":"IF(B35=\"\",\"\",GETPIVOTDATA(\"body\",knt_tab!$A$3,\"zavodnik\",B35))","v":49},null,88,{"$f":"IF(ISERR(GETPIVOTDATA(\"body\",knt_tab!$A$3,\"zavodnik\",knt_tab!A97)),\"\",IF(GETPIVOTDATA(\"body\",knt_tab!$A$3,\"zavodnik\",knt_tab!A97)=0,\"\",knt_tab!A97))","v":"Pavlica Lukáš"},{"$f":"IF(F35=\"\",\"\",GETPIVOTDATA(\"body\",knt_tab!$A$3,\"zavodnik\",F35))","v":7},null,{"$f":"IF(J35=\"\",\"\",IF(K35=K34,I34,ROW(I35)-ROW($I$33)))","v":2},{"$f":"IF(ISERR(GETPIVOTDATA(\"body\",knt_tab!$AE$3,\"zavodnik\",knt_tab!AE6)),\"\",IF(GETPIVOTDATA(\"body\",knt_tab!$AE$3,\"zavodnik\",knt_tab!AE6)=0,\"\",knt_tab!AE6))","v":"Silvestr Matěj"},{"$f":"IF(J35=\"\",\"\",GETPIVOTDATA(\"body\",knt_tab!$AE$3,\"zavodnik\",J35))","v":35},null,"Pořadí","Příjmení","body",null,"mladší žákyně",null,null,null,6,{"$f":"IF(ISERR(GETPIVOTDATA(\"body\",knt_tab!$D$3,\"zavodnik\",knt_tab!D10)),\"\",IF(GETPIVOTDATA(\"body\",knt_tab!$D$3,\"zavodnik\",knt_tab!D10)=0,\"\",knt_tab!D10))","v":"Ciora Jakub"},{"$f":"IF(V35=\"\",\"\",GETPIVOTDATA(\"body\",knt_tab!$D$3,\"zavodnik\",V35))","v":37}]
[33,{"$f":"IF(ISERR(GETPIVOTDATA(\"body\",knt_tab!$A$3,\"zavodnik\",knt_tab!A37)),\"\",IF(GETPIVOTDATA(\"body\",knt_tab!$A$3,\"zavodnik\",knt_tab!A37)=0,\"\",knt_tab!A37))","v":"Tomek David"},{"$f":"IF(B36=\"\",\"\",GETPIVOTDATA(\"body\",knt_tab!$A$3,\"zavodnik\",B36))","v":42},null,94,{"$f":"IF(ISERR(GETPIVOTDATA(\"body\",knt_tab!$A$3,\"zavodnik\",knt_tab!A98)),\"\",IF(GETPIVOTDATA(\"body\",knt_tab!$A$3,\"zavodnik\",knt_tab!A98)=0,\"\",knt_tab!A98))","v":"Přidal Ladislav"},{"$f":"IF(F36=\"\",\"\",GETPIVOTDATA(\"body\",knt_tab!$A$3,\"zavodnik\",F36))","v":6},null,3,{"$f":"IF(ISERR(GETPIVOTDATA(\"body\",knt_tab!$AE$3,\"zavodnik\",knt_tab!AE7)),\"\",IF(GETPIVOTDATA(\"body\",knt_tab!$AE$3,\"zavodnik\",knt_tab!AE7)=0,\"\",knt_tab!AE7))","v":"Kohn Pavel"},{"$f":"IF(J36=\"\",\"\",GETPIVOTDATA(\"body\",knt_tab!$AE$3,\"zavodnik\",J36))","v":31},null,1,{"$f":"IF(ISERR(GETPIVOTDATA(\"body\",knt_tab!$S$3,\"zavodnik\",knt_tab!S5)),\"\",IF(GETPIVOTDATA(\"body\",knt_tab!$S$3,\"zavodnik\",knt_tab!S5)=0,\"\",knt_tab!S5))","v":"Pavlica Tomáš"},{"$f":"IF(N36=\"\",\"\",GETPIVOTDATA(\"body\",knt_tab!$S$3,\"zavodnik\",N36))","v":129},null,"Pořadí","Příjmení","body",null,7,{"$f":"IF(ISERR(GETPIVOTDATA(\"body\",knt_tab!$D$3,\"zavodnik\",knt_tab!D11)),\"\",IF(GETPIVOTDATA(\"body\",knt_tab!$D$3,\"zavodnik\",knt_tab!D11)=0,\"\",knt_tab!D11))","v":"Kocmanová Lucie"},{"$f":"IF(V36=\"\",\"\",GETPIVOTDATA(\"body\",knt_tab!$D$3,\"zavodnik\",V36))","v":34}]
[34,{"$f":"IF(ISERR(GETPIVOTDATA(\"body\",knt_tab!$A$3,\"zavodnik\",knt_tab!A38)),\"\",IF(GETPIVOTDATA(\"body\",knt_tab!$A$3,\"zavodnik\",knt_tab!A38)=0,\"\",knt_tab!A38))","v":"Fráňa Patrik"},{"$f":"IF(B37=\"\",\"\",GETPIVOTDATA(\"body\",knt_tab!$A$3,\"zavodnik\",B37))","v":41},null,94,{"$f":"IF(ISERR(GETPIVOTDATA(\"body\",knt_tab!$A$3,\"zavodnik\",knt_tab!A99)),\"\",IF(GETPIVOTDATA(\"body\",knt_tab!$A$3,\"zavodnik\",knt_tab!A99)=0,\"\",knt_tab!A99))","v":"Škoda Melichar"},{"$f":"IF(F37=\"\",\"\",GETPIVOTDATA(\"body\",knt_tab!$A$3,\"zavodnik\",F37))","v":6},null,4,{"$f":"IF(ISERR(GETPIVOTDATA(\"body\",knt_tab!$AE$3,\"zavodnik\",knt_tab!AE8)),\"\",IF(GETPIVOTDATA(\"body\",knt_tab!$AE$3,\"zavodnik\",knt_tab!AE8)=0,\"\",knt_tab!AE8))","v":"Pustějovský Tomáš"},{"$f":"IF(J37=\"\",\"\",GETPIVOTDATA(\"body\",knt_tab!$AE$3,\"zavodnik\",J37))","v":30},null,{"$f":"IF(N37=\"\",\"\",IF(O37=O36,M36,ROW(M37)-ROW($M$35)))","v":2},{"$f":"IF(ISERR(GETPIVOTDATA(\"body\",knt_tab!$S$3,\"zavodnik\",knt_tab!S6)),\"\",IF(GETPIVOTDATA(\"body\",knt_tab!$S$3,\"zavodnik\",knt_tab!S6)=0,\"\",knt_tab!S6))","v":"Bulka Vojtěch"},{"$f":"IF(N37=\"\",\"\",GETPIVOTDATA(\"body\",knt_tab!$S$3,\"zavodnik\",N37))","v":83},null,1,{"$f":"IF(ISERR(GETPIVOTDATA(\"body\",knt_tab!$J$3,\"zavodnik\",knt_tab!J5)),\"\",IF(GETPIVOTDATA(\"body\",knt_tab!$J$3,\"zavodnik\",knt_tab!J5)=0,\"\",knt_tab!J5))","v":"Vavřínová Pavla"},{"$f":"IF(R37=\"\",\"\",GETPIVOTDATA(\"body\",knt_tab!$J$3,\"zavodnik\",R37))","v":102},null,8,{"$f":"IF(ISERR(GETPIVOTDATA(\"body\",knt_tab!$D$3,\"zavodnik\",knt_tab!D12)),\"\",IF(GETPIVOTDATA(\"body\",knt_tab!$D$3,\"zavodnik\",knt_tab!D12)=0,\"\",knt_tab!D12))","v":"Mařec Tomáš"},{"$f":"IF(V37=\"\",\"\",GETPIVOTDATA(\"body\",knt_tab!$D$3,\"zavodnik\",V37))","v":32}]
[35,{"$f":"IF(ISERR(GETPIVOTDATA(\"body\",knt_tab!$A$3,\"zavodnik\",knt_tab!A39)),\"\",IF(GETPIVOTDATA(\"body\",knt_tab!$A$3,\"zavodnik\",knt_tab!A39)=0,\"\",knt_tab!A39))","v":"Kuluris Manolis"},{"$f":"IF(B38=\"\",\"\",GETPIVOTDATA(\"body\",knt_tab!$A$3,\"zavodnik\",B38))","v":39},null,94,{"$f":"IF(ISERR(GETPIVOTDATA(\"body\",knt_tab!$A$3,\"zavodnik\",knt_tab!A100)),\"\",IF(GETPIVOTDATA(\"body\",knt_tab!$A$3,\"zavodnik\",knt_tab!A100)=0,\"\",knt_tab!A100))","v":"Šmatelka Ondřej"},{"$f":"IF(F38=\"\",\"\",GETPIVOTDATA(\"body\",knt_tab!$A$3,\"zavodnik\",F38))","v":6},null,5,{"$f":"IF(ISERR(GETPIVOTDATA(\"body\",knt_tab!$AE$3,\"zavodnik\",knt_tab!AE9)),\"\",IF(GETPIVOTDATA(\"body\",knt_tab!$AE$3,\"zavodnik\",knt_tab!AE9)=0,\"\",knt_tab!AE9))","v":"Šimek Daniel"},{"$f":"IF(J38=\"\",\"\",GETPIVOTDATA(\"body\",knt_tab!$AE$3,\"zavodnik\",J38))","v":24},null,3,{"$f":"IF(ISERR(GETPIVOTDATA(\"body\",knt_tab!$S$3,\"zavodnik\",knt_tab!S7)),\"\",IF(GETPIVOTDATA(\"body\",knt_tab!$S$3,\"zavodnik\",knt_tab!S7)=0,\"\",knt_tab!S7))","v":"Meixner Tomáš"},{"$f":"IF(N38=\"\",\"\",GETPIVOTDATA(\"body\",knt_tab!$S$3,\"zavodnik\",N38))","v":82},null,{"$f":"IF(R38=\"\",\"\",IF(S38=S37,Q37,ROW(Q38)-ROW($Q$36)))","v":2},{"$f":"IF(ISERR(GETPIVOTDATA(\"body\",knt_tab!$J$3,\"zavodnik\",knt_tab!J6)),\"\",IF(GETPIVOTDATA(\"body\",knt_tab!$J$3,\"zavodnik\",knt_tab!J6)=0,\"\",knt_tab!J6))","v":"Rapčanová Silvie"},{"$f":"IF(R38=\"\",\"\",GETPIVOTDATA(\"body\",knt_tab!$J$3,\"zavodnik\",R38))","v":79},null,9,{"$f":"IF(ISERR(GETPIVOTDATA(\"body\",knt_tab!$D$3,\"zavodnik\",knt_tab!D13)),\"\",IF(GETPIVOTDATA(\"body\",knt_tab!$D$3,\"zavodnik\",knt_tab!D13)=0,\"\",knt_tab!D13))","v":"Přichystal Leon"},{"$f":"IF(V38=\"\",\"\",GETPIVOTDATA(\"body\",knt_tab!$D$3,\"zavodnik\",V38))","v":27}]
[35,{"$f":"IF(ISERR(GETPIVOTDATA(\"body\",knt_tab!$A$3,\"zavodnik\",knt_tab!A40)),\"\",IF(GETPIVOTDATA(\"body\",knt_tab!$A$3,\"zavodnik\",knt_tab!A40)=0,\"\",knt_tab!A40))","v":"Vlk František"},{"$f":"IF(B39=\"\",\"\",GETPIVOTDATA(\"body\",knt_tab!$A$3,\"zavodnik\",B39))","v":39},null,94,{"$f":"IF(ISERR(GETPIVOTDATA(\"body\",knt_tab!$A$3,\"zavodnik\",knt_tab!A101)),\"\",IF(GETPIVOTDATA(\"body\",knt_tab!$A$3,\"zavodnik\",knt_tab!A101)=0,\"\",knt_tab!A101))","v":"Valošek Jakub"},{"$f":"IF(F39=\"\",\"\",GETPIVOTDATA(\"body\",knt_tab!$A$3,\"zavodnik\",F39))","v":6},null,6,{"$f":"IF(ISERR(GETPIVOTDATA(\"body\",knt_tab!$AE$3,\"zavodnik\",knt_tab!AE10)),\"\",IF(GETPIVOTDATA(\"body\",knt_tab!$AE$3,\"zavodnik\",knt_tab!AE10)=0,\"\",knt_tab!AE10))","v":"Raška Michael"},{"$f":"IF(J39=\"\",\"\",GETPIVOTDATA(\"body\",knt_tab!$AE$3,\"zavodnik\",J39))","v":18},null,4,{"$f":"IF(ISERR(GETPIVOTDATA(\"body\",knt_tab!$S$3,\"zavodnik\",knt_tab!S8)),\"\",IF(GETPIVOTDATA(\"body\",knt_tab!$S$3,\"zavodnik\",knt_tab!S8)=0,\"\",knt_tab!S8))","v":"Malaczynski Filip"},{"$f":"IF(N39=\"\",\"\",GETPIVOTDATA(\"body\",knt_tab!$S$3,\"zavodnik\",N39))","v":63},null,3,{"$f":"IF(ISERR(GETPIVOTDATA(\"body\",knt_tab!$J$3,\"zavodnik\",knt_tab!J7)),\"\",IF(GETPIVOTDATA(\"body\",knt_tab!$J$3,\"zavodnik\",knt_tab!J7)=0,\"\",knt_tab!J7))","v":"Rapčanová Alice"},{"$f":"IF(R39=\"\",\"\",GETPIVOTDATA(\"body\",knt_tab!$J$3,\"zavodnik\",R39))","v":49},null,10,{"$f":"IF(ISERR(GETPIVOTDATA(\"body\",knt_tab!$D$3,\"zavodnik\",knt_tab!D14)),\"\",IF(GETPIVOTDATA(\"body\",knt_tab!$D$3,\"zavodnik\",knt_tab!D14)=0,\"\",knt_tab!D14))","v":"Stark Vojtěch"},{"$f":"IF(V39=\"\",\"\",GETPIVOTDATA(\"body\",knt_tab!$D$3,\"zavodnik\",V39))","v":24}]
[37,{"$f":"IF(ISERR(GETPIVOTDATA(\"body\",knt_tab!$A$3,\"zavodnik\",knt_tab!A41)),\"\",IF(GETPIVOTDATA(\"body\",knt_tab!$A$3,\"zavodnik\",knt_tab!A41)=0,\"\",knt_tab!A41))","v":"Ciora Jakub"},{"$f":"IF(B40=\"\",\"\",GETPIVOTDATA(\"body\",knt_tab!$A$3,\"zavodnik\",B40))","v":37},null,94,{"$f":"IF(ISERR(GETPIVOTDATA(\"body\",knt_tab!$A$3,\"zavodnik\",knt_tab!A102)),\"\",IF(GETPIVOTDATA(\"body\",knt_tab!$A$3,\"zavodnik\",knt_tab!A102)=0,\"\",knt_tab!A102))","v":"Lindovský Jiří "},{"$f":"IF(F40=\"\",\"\",GETPIVOTDATA(\"body\",knt_tab!$A$3,\"zavodnik\",F40))","v":6},null,7,{"$f":"IF(ISERR(GETPIVOTDATA(\"body\",knt_tab!$AE$3,\"zavodnik\",knt_tab!AE11)),\"\",IF(GETPIVOTDATA(\"body\",knt_tab!$AE$3,\"zavodnik\",knt_tab!AE11)=0,\"\",knt_tab!AE11))","v":"Král Jakub"},{"$f":"IF(J40=\"\",\"\",GETPIVOTDATA(\"body\",knt_tab!$AE$3,\"zavodnik\",J40))","v":10},null,5,{"$f":"IF(ISERR(GETPIVOTDATA(\"body\",knt_tab!$S$3,\"zavodnik\",knt_tab!S9)),\"\",IF(GETPIVOTDATA(\"body\",knt_tab!$S$3,\"zavodnik\",knt_tab!S9)=0,\"\",knt_tab!S9))","v":"Šimek Daniel"},{"$f":"IF(N40=\"\",\"\",GETPIVOTDATA(\"body\",knt_tab!$S$3,\"zavodnik\",N40))","v":58},null,4,{"$f":"IF(ISERR(GETPIVOTDATA(\"body\",knt_tab!$J$3,\"zavodnik\",knt_tab!J8)),\"\",IF(GETPIVOTDATA(\"body\",knt_tab!$J$3,\"zavodnik\",knt_tab!J8)=0,\"\",knt_tab!J8))","v":"Bukovjanová Charlotte"},{"$f":"IF(R40=\"\",\"\",GETPIVOTDATA(\"body\",knt_tab!$J$3,\"zavodnik\",R40))","v":12},null,11,{"$f":"IF(ISERR(GETPIVOTDATA(\"body\",knt_tab!$D$3,\"zavodnik\",knt_tab!D15)),\"\",IF(GETPIVOTDATA(\"body\",knt_tab!$D$3,\"zavodnik\",knt_tab!D15)=0,\"\",knt_tab!D15))","v":"Kanclíř Šimon"},{"$f":"IF(V40=\"\",\"\",GETPIVOTDATA(\"body\",knt_tab!$D$3,\"zavodnik\",V40))","v":22}]
[38,{"$f":"IF(ISERR(GETPIVOTDATA(\"body\",knt_tab!$A$3,\"zavodnik\",knt_tab!A42)),\"\",IF(GETPIVOTDATA(\"body\",knt_tab!$A$3,\"zavodnik\",knt_tab!A42)=0,\"\",knt_tab!A42))","v":"Kolář Daniel"},{"$f":"IF(B41=\"\",\"\",GETPIVOTDATA(\"body\",knt_tab!$A$3,\"zavodnik\",B41))","v":36},null,94,{"$f":"IF(ISERR(GETPIVOTDATA(\"body\",knt_tab!$A$3,\"zavodnik\",knt_tab!A103)),\"\",IF(GETPIVOTDATA(\"body\",knt_tab!$A$3,\"zavodnik\",knt_tab!A103)=0,\"\",knt_tab!A103))","v":"Galamboš Kristián"},{"$f":"IF(F41=\"\",\"\",GETPIVOTDATA(\"body\",knt_tab!$A$3,\"zavodnik\",F41))","v":6},null,7,{"$f":"IF(ISERR(GETPIVOTDATA(\"body\",knt_tab!$AE$3,\"zavodnik\",knt_tab!AE12)),\"\",IF(GETPIVOTDATA(\"body\",knt_tab!$AE$3,\"zavodnik\",knt_tab!AE12)=0,\"\",knt_tab!AE12))","v":"Kohn Tomáš"},{"$f":"IF(J41=\"\",\"\",GETPIVOTDATA(\"body\",knt_tab!$AE$3,\"zavodnik\",J41))","v":10},null,6,{"$f":"IF(ISERR(GETPIVOTDATA(\"body\",knt_tab!$S$3,\"zavodnik\",knt_tab!S10)),\"\",IF(GETPIVOTDATA(\"body\",knt_tab!$S$3,\"zavodnik\",knt_tab!S10)=0,\"\",knt_tab!S10))","v":"Mojžíšek Lukáš"},{"$f":"IF(N41=\"\",\"\",GETPIVOTDATA(\"body\",knt_tab!$S$3,\"zavodnik\",N41))","v":36},null,5,{"$f":"IF(ISERR(GETPIVOTDATA(\"body\",knt_tab!$J$3,\"zavodnik\",knt_tab!J9)),\"\",IF(GETPIVOTDATA(\"body\",knt_tab!$J$3,\"zavodnik\",knt_tab!J9)=0,\"\",knt_tab!J9))","v":"Martináková Stela"},{"$f":"IF(R41=\"\",\"\",GETPIVOTDATA(\"body\",knt_tab!$J$3,\"zavodnik\",R41))","v":3},null,12,{"$f":"IF(ISERR(GETPIVOTDATA(\"body\",knt_tab!$D$3,\"zavodnik\",knt_tab!D16)),\"\",IF(GETPIVOTDATA(\"body\",knt_tab!$D$3,\"zavodnik\",knt_tab!D16)=0,\"\",knt_tab!D16))","v":"Sládek Maxmilián"},{"$f":"IF(V41=\"\",\"\",GETPIVOTDATA(\"body\",knt_tab!$D$3,\"zavodnik\",V41))","v":16}]
[39,{"$f":"IF(ISERR(GETPIVOTDATA(\"body\",knt_tab!$A$3,\"zavodnik\",knt_tab!A43)),\"\",IF(GETPIVOTDATA(\"body\",knt_tab!$A$3,\"zavodnik\",knt_tab!A43)=0,\"\",knt_tab!A43))","v":"Kolář Vojtěch"},{"$f":"IF(B42=\"\",\"\",GETPIVOTDATA(\"body\",knt_tab!$A$3,\"zavodnik\",B42))","v":34},null,94,{"$f":"IF(ISERR(GETPIVOTDATA(\"body\",knt_tab!$A$3,\"zavodnik\",knt_tab!A104)),\"\",IF(GETPIVOTDATA(\"body\",knt_tab!$A$3,\"zavodnik\",knt_tab!A104)=0,\"\",knt_tab!A104))","v":"Vjaclovský David"},{"$f":"IF(F42=\"\",\"\",GETPIVOTDATA(\"body\",knt_tab!$A$3,\"zavodnik\",F42))","v":6},null,9,{"$f":"IF(ISERR(GETPIVOTDATA(\"body\",knt_tab!$AE$3,\"zavodnik\",knt_tab!AE13)),\"\",IF(GETPIVOTDATA(\"body\",knt_tab!$AE$3,\"zavodnik\",knt_tab!AE13)=0,\"\",knt_tab!AE13))","v":"Šmatelka Ondřej"},{"$f":"IF(J42=\"\",\"\",GETPIVOTDATA(\"body\",knt_tab!$AE$3,\"zavodnik\",J42))","v":6},null,7,{"$f":"IF(ISERR(GETPIVOTDATA(\"body\",knt_tab!$S$3,\"zavodnik\",knt_tab!S11)),\"\",IF(GETPIVOTDATA(\"body\",knt_tab!$S$3,\"zavodnik\",knt_tab!S11)=0,\"\",knt_tab!S11))","v":"Tycar Štěpán"},{"$f":"IF(N42=\"\",\"\",GETPIVOTDATA(\"body\",knt_tab!$S$3,\"zavodnik\",N42))","v":30},null,"",{"$f":"IF(ISERR(GETPIVOTDATA(\"body\",knt_tab!$J$3,\"zavodnik\",knt_tab!J10)),\"\",IF(GETPIVOTDATA(\"body\",knt_tab!$J$3,\"zavodnik\",knt_tab!J10)=0,\"\",knt_tab!J10))","v":""},{"$f":"IF(R42=\"\",\"\",GETPIVOTDATA(\"body\",knt_tab!$J$3,\"zavodnik\",R42))","v":""},null,13,{"$f":"IF(ISERR(GETPIVOTDATA(\"body\",knt_tab!$D$3,\"zavodnik\",knt_tab!D17)),\"\",IF(GETPIVOTDATA(\"body\",knt_tab!$D$3,\"zavodnik\",knt_tab!D17)=0,\"\",knt_tab!D17))","v":"Nuhlíček Michal"},{"$f":"IF(V42=\"\",\"\",GETPIVOTDATA(\"body\",knt_tab!$D$3,\"zavodnik\",V42))","v":15}]
[39,{"$f":"IF(ISERR(GETPIVOTDATA(\"body\",knt_tab!$A$3,\"zavodnik\",knt_tab!A44)),\"\",IF(GETPIVOTDATA(\"body\",knt_tab!$A$3,\"zavodnik\",knt_tab!A44)=0,\"\",knt_tab!A44))","v":"Kocmanová Lucie"},{"$f":"IF(B43=\"\",\"\",GETPIVOTDATA(\"body\",knt_tab!$A$3,\"zavodnik\",B43))","v":34},null,94,{"$f":"IF(ISERR(GETPIVOTDATA(\"body\",knt_tab!$A$3,\"zavodnik\",knt_tab!A105)),\"\",IF(GETPIVOTDATA(\"body\",knt_tab!$A$3,\"zavodnik\",knt_tab!A105)=0,\"\",knt_tab!A105))","v":"Janoš Marek"},{"$f":"IF(F43=\"\",\"\",GETPIVOTDATA(\"body\",knt_tab!$A$3,\"zavodnik\",F43))","v":6},null,10,{"$f":"IF(ISERR(GETPIVOTDATA(\"body\",knt_tab!$AE$3,\"zavodnik\",knt_tab!AE14)),\"\",IF(GETPIVOTDATA(\"body\",knt_tab!$AE$3,\"zavodnik\",knt_tab!AE14)=0,\"\",knt_tab!AE14))","v":"Mojžíšek Lukáš"},{"$f":"IF(J43=\"\",\"\",GETPIVOTDATA(\"body\",knt_tab!$AE$3,\"zavodnik\",J43))","v":5},null,8,{"$f":"IF(ISERR(GETPIVOTDATA(\"body\",knt_tab!$S$3,\"zavodnik\",knt_tab!S12)),\"\",IF(GETPIVOTDATA(\"body\",knt_tab!$S$3,\"zavodnik\",knt_tab!S12)=0,\"\",knt_tab!S12))","v":"Lindovský Jiří"},{"$f":"IF(N43=\"\",\"\",GETPIVOTDATA(\"body\",knt_tab!$S$3,\"zavodnik\",N43))","v":20},null,"",{"$f":"IF(ISERR(GETPIVOTDATA(\"body\",knt_tab!$J$3,\"zavodnik\",knt_tab!J11)),\"\",IF(GETPIVOTDATA(\"body\",knt_tab!$J$3,\"zavodnik\",knt_tab!J11)=0,\"\",knt_tab!J11))","v":""},{"$f":"IF(R43=\"\",\"\",GETPIVOTDATA(\"body\",knt_tab!$J$3,\"zavodnik\",R43))","v":""},null,14,{"$f":"IF(ISERR(GETPIVOTDATA(\"body\",knt_tab!$D$3,\"zavodnik\",knt_tab!D18)),\"\",IF(GETPIVOTDATA(\"body\",knt_tab!$D$3,\"zavodnik\",knt_tab!D18)=0,\"\",knt_tab!D18))","v":"Ryška Filip"},{"$f":"IF(V43=\"\",\"\",GETPIVOTDATA(\"body\",knt_tab!$D$3,\"zavodnik\",V43))","v":14}]
[41,{"$f":"IF(ISERR(GETPIVOTDATA(\"body\",knt_tab!$A$3,\"zavodnik\",knt_tab!A45)),\"\",IF(GETPIVOTDATA(\"body\",knt_tab!$A$3,\"zavodnik\",knt_tab!A45)=0,\"\",knt_tab!A45))","v":"Fulneček Šimon"},{"$f":"IF(B44=\"\",\"\",GETPIVOTDATA(\"body\",knt_tab!$A$3,\"zavodnik\",B44))","v":33},null,94,{"$f":"IF(ISERR(GETPIVOTDATA(\"body\",knt_tab!$A$3,\"zavodnik\",knt_tab!A106)),\"\",IF(GETPIVOTDATA(\"body\",knt_tab!$A$3,\"zavodnik\",knt_tab!A106)=0,\"\",knt_tab!A106))","v":"Macháček Tomáš"},{"$f":"IF(F44=\"\",\"\",GETPIVOTDATA(\"body\",knt_tab!$A$3,\"zavodnik\",F44))","v":6},null,11,{"$f":"IF(ISERR(GETPIVOTDATA(\"body\",knt_tab!$AE$3,\"zavodnik\",knt_tab!AE15)),\"\",IF(GETPIVOTDATA(\"body\",knt_tab!$AE$3,\"zavodnik\",knt_tab!AE15)=0,\"\",knt_tab!AE15))","v":"Gřešek Vít"},{"$f":"IF(J44=\"\",\"\",GETPIVOTDATA(\"body\",knt_tab!$AE$3,\"zavodnik\",J44))","v":2},null,9,{"$f":"IF(ISERR(GETPIVOTDATA(\"body\",knt_tab!$S$3,\"zavodnik\",knt_tab!S13)),\"\",IF(GETPIVOTDATA(\"body\",knt_tab!$S$3,\"zavodnik\",knt_tab!S13)=0,\"\",knt_tab!S13))","v":"Motyka Dominik"},{"$f":"IF(N44=\"\",\"\",GETPIVOTDATA(\"body\",knt_tab!$S$3,\"zavodnik\",N44))","v":19},null,null,null,null,null,15,{"$f":"IF(ISERR(GETPIVOTDATA(\"body\",knt_tab!$D$3,\"zavodnik\",knt_tab!D19)),\"\",IF(GETPIVOTDATA(\"body\",knt_tab!$D$3,\"zavodnik\",knt_tab!D19)=0,\"\",knt_tab!D19))","v":"Malinovský Jiří"},{"$f":"IF(V44=\"\",\"\",GETPIVOTDATA(\"body\",knt_tab!$D$3,\"zavodnik\",V44))","v":13}]
[42,{"$f":"IF(ISERR(GETPIVOTDATA(\"body\",knt_tab!$A$3,\"zavodnik\",knt_tab!A46)),\"\",IF(GETPIVOTDATA(\"body\",knt_tab!$A$3,\"zavodnik\",knt_tab!A46)=0,\"\",knt_tab!A46))","v":"Mařec Tomáš"},{"$f":"IF(B45=\"\",\"\",GETPIVOTDATA(\"body\",knt_tab!$A$3,\"zavodnik\",B45))","v":32},null,94,{"$f":"IF(ISERR(GETPIVOTDATA(\"body\",knt_tab!$A$3,\"zavodnik\",knt_tab!A107)),\"\",IF(GETPIVOTDATA(\"body\",knt_tab!$A$3,\"zavodnik\",knt_tab!A107)=0,\"\",knt_tab!A107))","v":"Matušek Jakub"},{"$f":"IF(F45=\"\",\"\",GETPIVOTDATA(\"body\",knt_tab!$A$3,\"zavodnik\",F45))","v":6},null,12,{"$f":"IF(ISERR(GETPIVOTDATA(\"body\",knt_tab!$AE$3,\"zavodnik\",knt_tab!AE16)),\"\",IF(GETPIVOTDATA(\"body\",knt_tab!$AE$3,\"zavodnik\",knt_tab!AE16)=0,\"\",knt_tab!AE16))","v":"Chlopčík Ondřej"},{"$f":"IF(J45=\"\",\"\",GETPIVOTDATA(\"body\",knt_tab!$AE$3,\"zavodnik\",J45))","v":1},null,10,{"$f":"IF(ISERR(GETPIVOTDATA(\"body\",knt_tab!$S$3,\"zavodnik\",knt_tab!S14)),\"\",IF(GETPIVOTDATA(\"body\",knt_tab!$S$3,\"zavodnik\",knt_tab!S14)=0,\"\",knt_tab!S14))","v":"Kresta Matěj"},{"$f":"IF(N45=\"\",\"\",GETPIVOTDATA(\"body\",knt_tab!$S$3,\"zavodnik\",N45))","v":17},null,"mladší žáci",null,null,null,15,{"$f":"IF(ISERR(GETPIVOTDATA(\"body\",knt_tab!$D$3,\"zavodnik\",knt_tab!D20)),\"\",IF(GETPIVOTDATA(\"body\",knt_tab!$D$3,\"zavodnik\",knt_tab!D20)=0,\"\",knt_tab!D20))","v":"Fojtík Jiří Václav"},{"$f":"IF(V45=\"\",\"\",GETPIVOTDATA(\"body\",knt_tab!$D$3,\"zavodnik\",V45))","v":13}]
[43,{"$f":"IF(ISERR(GETPIVOTDATA(\"body\",knt_tab!$A$3,\"zavodnik\",knt_tab!A47)),\"\",IF(GETPIVOTDATA(\"body\",knt_tab!$A$3,\"zavodnik\",knt_tab!A47)=0,\"\",knt_tab!A47))","v":"Kohn Pavel"},{"$f":"IF(B46=\"\",\"\",GETPIVOTDATA(\"body\",knt_tab!$A$3,\"zavodnik\",B46))","v":31},null,104,{"$f":"IF(ISERR(GETPIVOTDATA(\"body\",knt_tab!$A$3,\"zavodnik\",knt_tab!A108)),\"\",IF(GETPIVOTDATA(\"body\",knt_tab!$A$3,\"zavodnik\",knt_tab!A108)=0,\"\",knt_tab!A108))","v":"Šumský Miroslav"},{"$f":"IF(F46=\"\",\"\",GETPIVOTDATA(\"body\",knt_tab!$A$3,\"zavodnik\",F46))","v":5},null,"",{"$f":"IF(ISERR(GETPIVOTDATA(\"body\",knt_tab!$AE$3,\"zavodnik\",knt_tab!AE17)),\"\",IF(GETPIVOTDATA(\"body\",knt_tab!$AE$3,\"zavodnik\",knt_tab!AE17)=0,\"\",knt_tab!AE17))","v":""},{"$f":"IF(J46=\"\",\"\",GETPIVOTDATA(\"body\",knt_tab!$AE$3,\"zavodnik\",J46))","v":""},null,11,{"$f":"IF(ISERR(GETPIVOTDATA(\"body\",knt_tab!$S$3,\"zavodnik\",knt_tab!S15)),\"\",IF(GETPIVOTDATA(\"body\",knt_tab!$S$3,\"zavodnik\",knt_tab!S15)=0,\"\",knt_tab!S15))","v":"Pavlica Lukáš"},{"$f":"IF(N46=\"\",\"\",GETPIVOTDATA(\"body\",knt_tab!$S$3,\"zavodnik\",N46))","v":7},null,"Pořadí","Příjmení","body",null,17,{"$f":"IF(ISERR(GETPIVOTDATA(\"body\",knt_tab!$D$3,\"zavodnik\",knt_tab!D21)),\"\",IF(GETPIVOTDATA(\"body\",knt_tab!$D$3,\"zavodnik\",knt_tab!D21)=0,\"\",knt_tab!D21))","v":"Bartošic Sebastian"},{"$f":"IF(V46=\"\",\"\",GETPIVOTDATA(\"body\",knt_tab!$D$3,\"zavodnik\",V46))","v":11}]
[44,{"$f":"IF(ISERR(GETPIVOTDATA(\"body\",knt_tab!$A$3,\"zavodnik\",knt_tab!A48)),\"\",IF(GETPIVOTDATA(\"body\",knt_tab!$A$3,\"zavodnik\",knt_tab!A48)=0,\"\",knt_tab!A48))","v":"Tycar Štěpán"},{"$f":"IF(B47=\"\",\"\",GETPIVOTDATA(\"body\",knt_tab!$A$3,\"zavodnik\",B47))","v":30},null,104,{"$f":"IF(ISERR(GETPIVOTDATA(\"body\",knt_tab!$A$3,\"zavodnik\",knt_tab!A109)),\"\",IF(GETPIVOTDATA(\"body\",knt_tab!$A$3,\"zavodnik\",knt_tab!A109)=0,\"\",knt_tab!A109))","v":"Badura Martin"},{"$f":"IF(F47=\"\",\"\",GETPIVOTDATA(\"body\",knt_tab!$A$3,\"zavodnik\",F47))","v":5},null,"",{"$f":"IF(ISERR(GETPIVOTDATA(\"body\",knt_tab!$AE$3,\"zavodnik\",knt_tab!AE18)),\"\",IF(GETPIVOTDATA(\"body\",knt_tab!$AE$3,\"zavodnik\",knt_tab!AE18)=0,\"\",knt_tab!AE18))","v":""},{"$f":"IF(J47=\"\",\"\",GETPIVOTDATA(\"body\",knt_tab!$AE$3,\"zavodnik\",J47))","v":""},null,{"$f":"IF(N47=\"\",\"\",IF(O47=O46,M46,ROW(M47)-ROW($M$35)))","v":12},{"$f":"IF(ISERR(GETPIVOTDATA(\"body\",knt_tab!$S$3,\"zavodnik\",knt_tab!S16)),\"\",IF(GETPIVOTDATA(\"body\",knt_tab!$S$3,\"zavodnik\",knt_tab!S16)=0,\"\",knt_tab!S16))","v":"Freiwald Richard"},{"$f":"IF(N47=\"\",\"\",GETPIVOTDATA(\"body\",knt_tab!$S$3,\"zavodnik\",N47))","v":6},null,1,{"$f":"IF(ISERR(GETPIVOTDATA(\"body\",knt_tab!$G$3,\"zavodnik\",knt_tab!G5)),\"\",IF(GETPIVOTDATA(\"body\",knt_tab!$G$3,\"zavodnik\",knt_tab!G5)=0,\"\",knt_tab!G5))","v":"Huvar Jakub"},{"$f":"IF(R47=\"\",\"\",GETPIVOTDATA(\"body\",knt_tab!$G$3,\"zavodnik\",R47))","v":88},null,17,{"$f":"IF(ISERR(GETPIVOTDATA(\"body\",knt_tab!$D$3,\"zavodnik\",knt_tab!D22)),\"\",IF(GETPIVOTDATA(\"body\",knt_tab!$D$3,\"zavodnik\",knt_tab!D22)=0,\"\",knt_tab!D22))","v":"Bechný Adam"},{"$f":"IF(V47=\"\",\"\",GETPIVOTDATA(\"body\",knt_tab!$D$3,\"zavodnik\",V47))","v":11}]
[{"$f":"IF(B48=\"\",\"\",IF(C48=C47,A47,ROW(A48)-ROW($A$3)))","v":45},{"$f":"IF(ISERR(GETPIVOTDATA(\"body\",knt_tab!$A$3,\"zavodnik\",knt_tab!A49)),\"\",IF(GETPIVOTDATA(\"body\",knt_tab!$A$3,\"zavodnik\",knt_tab!A49)=0,\"\",knt_tab!A49))","v":"Kožušník Vojtěch"},{"$f":"IF(B48=\"\",\"\",GETPIVOTDATA(\"body\",knt_tab!$A$3,\"zavodnik\",B48))","v":29},null,104,{"$f":"IF(ISERR(GETPIVOTDATA(\"body\",knt_tab!$A$3,\"zavodnik\",knt_tab!A110)),\"\",IF(GETPIVOTDATA(\"body\",knt_tab!$A$3,\"zavodnik\",knt_tab!A110)=0,\"\",knt_tab!A110))","v":"Schwarz Šimon"},{"$f":"IF(F48=\"\",\"\",GETPIVOTDATA(\"body\",knt_tab!$A$3,\"zavodnik\",F48))","v":5},null,"",{"$f":"IF(ISERR(GETPIVOTDATA(\"body\",knt_tab!$AE$3,\"zavodnik\",knt_tab!AE19)),\"\",IF(GETPIVOTDATA(\"body\",knt_tab!$AE$3,\"zavodnik\",knt_tab!AE19)=0,\"\",knt_tab!AE19))","v":""},{"$f":"IF(J48=\"\",\"\",GETPIVOTDATA(\"body\",knt_tab!$AE$3,\"zavodnik\",J48))","v":""},null,12,{"$f":"IF(ISERR(GETPIVOTDATA(\"body\",knt_tab!$S$3,\"zavodnik\",knt_tab!S17)),\"\",IF(GETPIVOTDATA(\"body\",knt_tab!$S$3,\"zavodnik\",knt_tab!S17)=0,\"\",knt_tab!S17))","v":"Kršňák Filip"},{"$f":"IF(N48=\"\",\"\",GETPIVOTDATA(\"body\",knt_tab!$S$3,\"zavodnik\",N48))","v":6},null,{"$f":"IF(R48=\"\",\"\",IF(S48=S47,Q47,ROW(Q48)-ROW($Q$46)))","v":2},{"$f":"IF(ISERR(GETPIVOTDATA(\"body\",knt_tab!$G$3,\"zavodnik\",knt_tab!G6)),\"\",IF(GETPIVOTDATA(\"body\",knt_tab!$G$3,\"zavodnik\",knt_tab!G6)=0,\"\",knt_tab!G6))","v":"Meixner Michal"},{"$f":"IF(R48=\"\",\"\",GETPIVOTDATA(\"body\",knt_tab!$G$3,\"zavodnik\",R48))","v":69},null,19,{"$f":"IF(ISERR(GETPIVOTDATA(\"body\",knt_tab!$D$3,\"zavodnik\",knt_tab!D23)),\"\",IF(GETPIVOTDATA(\"body\",knt_tab!$D$3,\"zavodnik\",knt_tab!D23)=0,\"\",knt_tab!D23))","v":"Plaček Viktor"},{"$f":"IF(V48=\"\",\"\",GETPIVOTDATA(\"body\",knt_tab!$D$3,\"zavodnik\",V48))","v":8}]
[46,{"$f":"IF(ISERR(GETPIVOTDATA(\"body\",knt_tab!$A$3,\"zavodnik\",knt_tab!A50)),\"\",IF(GETPIVOTDATA(\"body\",knt_tab!$A$3,\"zavodnik\",knt_tab!A50)=0,\"\",knt_tab!A50))","v":"Přichystal Leon"},{"$f":"IF(B49=\"\",\"\",GETPIVOTDATA(\"body\",knt_tab!$A$3,\"zavodnik\",B49))","v":27},null,104,{"$f":"IF(ISERR(GETPIVOTDATA(\"body\",knt_tab!$A$3,\"zavodnik\",knt_tab!A111)),\"\",IF(GETPIVOTDATA(\"body\",knt_tab!$A$3,\"zavodnik\",knt_tab!A111)=0,\"\",knt_tab!A111))","v":"Mikenda Ondřej"},{"$f":"IF(F49=\"\",\"\",GETPIVOTDATA(\"body\",knt_tab!$A$3,\"zavodnik\",F49))","v":5},null,"",{"$f":"IF(ISERR(GETPIVOTDATA(\"body\",knt_tab!$AE$3,\"zavodnik\",knt_tab!AE20)),\"\",IF(GETPIVOTDATA(\"body\",knt_tab!$AE$3,\"zavodnik\",knt_tab!AE20)=0,\"\",knt_tab!AE20))","v":""},{"$f":"IF(J49=\"\",\"\",GETPIVOTDATA(\"body\",knt_tab!$AE$3,\"zavodnik\",J49))","v":""},null,14,{"$f":"IF(ISERR(GETPIVOTDATA(\"body\",knt_tab!$S$3,\"zavodnik\",knt_tab!S18)),\"\",IF(GETPIVOTDATA(\"body\",knt_tab!$S$3,\"zavodnik\",knt_tab!S18)=0,\"\",knt_tab!S18))","v":"Křížek Šimon"},{"$f":"IF(N49=\"\",\"\",GETPIVOTDATA(\"body\",knt_tab!$S$3,\"zavodnik\",N49))","v":2},null,3,{"$f":"IF(ISERR(GETPIVOTDATA(\"body\",knt_tab!$G$3,\"zavodnik\",knt_tab!G7)),\"\",IF(GETPIVOTDATA(\"body\",knt_tab!$G$3,\"zavodnik\",knt_tab!G7)=0,\"\",knt_tab!G7))","v":"Boháček Jan"},{"$f":"IF(R49=\"\",\"\",GETPIVOTDATA(\"body\",knt_tab!$G$3,\"zavodnik\",R49))","v":65},null,20,{"$f":"IF(ISERR(GETPIVOTDATA(\"body\",knt_tab!$D$3,\"zavodnik\",knt_tab!D24)),\"\",IF(GETPIVOTDATA(\"body\",knt_tab!$D$3,\"zavodnik\",knt_tab!D24)=0,\"\",knt_tab!D24))","v":"Bartošic Sebastián"},{"$f":"IF(V49=\"\",\"\",GETPIVOTDATA(\"body\",knt_tab!$D$3,\"zavodnik\",V49))","v":7}]
[46,{"$f":"IF(ISERR(GETPIVOTDATA(\"body\",knt_tab!$A$3,\"zavodnik\",knt_tab!A51)),\"\",IF(GETPIVOTDATA(\"body\",knt_tab!$A$3,\"zavodnik\",knt_tab!A51)=0,\"\",knt_tab!A51))","v":"Otáhalová Magdaléna"},{"$f":"IF(B50=\"\",\"\",GETPIVOTDATA(\"body\",knt_tab!$A$3,\"zavodnik\",B50))","v":27},null,108,{"$f":"IF(ISERR(GETPIVOTDATA(\"body\",knt_tab!$A$3,\"zavodnik\",knt_tab!A112)),\"\",IF(GETPIVOTDATA(\"body\",knt_tab!$A$3,\"zavodnik\",knt_tab!A112)=0,\"\",knt_tab!A112))","v":"Turek Jakub"},{"$f":"IF(F50=\"\",\"\",GETPIVOTDATA(\"body\",knt_tab!$A$3,\"zavodnik\",F50))","v":4},null,"",{"$f":"IF(ISERR(GETPIVOTDATA(\"body\",knt_tab!$AE$3,\"zavodnik\",knt_tab!AE21)),\"\",IF(GETPIVOTDATA(\"body\",knt_tab!$AE$3,\"zavodnik\",knt_tab!AE21)=0,\"\",knt_tab!AE21))","v":""},{"$f":"IF(J50=\"\",\"\",GETPIVOTDATA(\"body\",knt_tab!$AE$3,\"zavodnik\",J50))","v":""},null,null,null,null,null,3,{"$f":"IF(ISERR(GETPIVOTDATA(\"body\",knt_tab!$G$3,\"zavodnik\",knt_tab!G8)),\"\",IF(GETPIVOTDATA(\"body\",knt_tab!$G$3,\"zavodnik\",knt_tab!G8)=0,\"\",knt_tab!G8))","v":"Horák Adam"},{"$f":"IF(R50=\"\",\"\",GETPIVOTDATA(\"body\",knt_tab!$G$3,\"zavodnik\",R50))","v":65},null,20,{"$f":"IF(ISERR(GETPIVOTDATA(\"body\",knt_tab!$D$3,\"zavodnik\",knt_tab!D25)),\"\",IF(GETPIVOTDATA(\"body\",knt_tab!$D$3,\"zavodnik\",knt_tab!D25)=0,\"\",knt_tab!D25))","v":"Kožušník Václav"},{"$f":"IF(V50=\"\",\"\",GETPIVOTDATA(\"body\",knt_tab!$D$3,\"zavodnik\",V50))","v":7}]
[48,{"$f":"IF(ISERR(GETPIVOTDATA(\"body\",knt_tab!$A$3,\"zavodnik\",knt_tab!A52)),\"\",IF(GETPIVOTDATA(\"body\",knt_tab!$A$3,\"zavodnik\",knt_tab!A52)=0,\"\",knt_tab!A52))","v":"Caletka Petr"},{"$f":"IF(B51=\"\",\"\",GETPIVOTDATA(\"body\",knt_tab!$A$3,\"zavodnik\",B51))","v":26},null,108,{"$f":"IF(ISERR(GETPIVOTDATA(\"body\",knt_tab!$A$3,\"zavodnik\",knt_tab!A113)),\"\",IF(GETPIVOTDATA(\"body\",knt_tab!$A$3,\"zavodnik\",knt_tab!A113)=0,\"\",knt_tab!A113))","v":"Fojtík Jiří"},{"$f":"IF(F51=\"\",\"\",GETPIVOTDATA(\"body\",knt_tab!$A$3,\"zavodnik\",F51))","v":4},null,"",{"$f":"IF(ISERR(GETPIVOTDATA(\"body\",knt_tab!$AE$3,\"zavodnik\",knt_tab!AE22)),\"\",IF(GETPIVOTDATA(\"body\",knt_tab!$AE$3,\"zavodnik\",knt_tab!AE22)=0,\"\",knt_tab!AE22))","v":""},{"$f":"IF(J51=\"\",\"\",GETPIVOTDATA(\"body\",knt_tab!$AE$3,\"zavodnik\",J51))","v":""},null,"starší žákyně",null,null,null,5,{"$f":"IF(ISERR(GETPIVOTDATA(\"body\",knt_tab!$G$3,\"zavodnik\",knt_tab!G9)),\"\",IF(GETPIVOTDATA(\"body\",knt_tab!$G$3,\"zavodnik\",knt_tab!G9)=0,\"\",knt_tab!G9))","v":"Seibert Marian"},{"$f":"IF(R51=\"\",\"\",GETPIVOTDATA(\"body\",knt_tab!$G$3,\"zavodnik\",R51))","v":55},null,20,{"$f":"IF(ISERR(GETPIVOTDATA(\"body\",knt_tab!$D$3,\"zavodnik\",knt_tab!D26)),\"\",IF(GETPIVOTDATA(\"body\",knt_tab!$D$3,\"zavodnik\",knt_tab!D26)=0,\"\",knt_tab!D26))","v":"To Vojtěch"},{"$f":"IF(V51=\"\",\"\",GETPIVOTDATA(\"body\",knt_tab!$D$3,\"zavodnik\",V51))","v":7}]
[49,{"$f":"IF(ISERR(GETPIVOTDATA(\"body\",knt_tab!$A$3,\"zavodnik\",knt_tab!A53)),\"\",IF(GETPIVOTDATA(\"body\",knt_tab!$A$3,\"zavodnik\",knt_tab!A53)=0,\"\",knt_tab!A53))","v":"Buranyč Filip"},{"$f":"IF(B52=\"\",\"\",GETPIVOTDATA(\"body\",knt_tab!$A$3,\"zavodnik\",B52))","v":25},null,108,{"$f":"IF(ISERR(GETPIVOTDATA(\"body\",knt_tab!$A$3,\"zavodnik\",knt_tab!A114)),\"\",IF(GETPIVOTDATA(\"body\",knt_tab!$A$3,\"zavodnik\",knt_tab!A114)=0,\"\",knt_tab!A114))","v":"Šelong Tadeáš"},{"$f":"IF(F52=\"\",\"\",GETPIVOTDATA(\"body\",knt_tab!$A$3,\"zavodnik\",F52))","v":4},null,"",{"$f":"IF(ISERR(GETPIVOTDATA(\"body\",knt_tab!$AE$3,\"zavodnik\",knt_tab!AE23)),\"\",IF(GETPIVOTDATA(\"body\",knt_tab!$AE$3,\"zavodnik\",knt_tab!AE23)=0,\"\",knt_tab!AE23))","v":""},{"$f":"IF(J52=\"\",\"\",GETPIVOTDATA(\"body\",knt_tab!$AE$3,\"zavodnik\",J52))","v":""},null,"Pořadí","Příjmení","body",null,6,{"$f":"IF(ISERR(GETPIVOTDATA(\"body\",knt_tab!$G$3,\"zavodnik\",knt_tab!G10)),\"\",IF(GETPIVOTDATA(\"body\",knt_tab!$G$3,\"zavodnik\",knt_tab!G10)=0,\"\",knt_tab!G10))","v":"Kolář Vojtěch"},{"$f":"IF(R52=\"\",\"\",GETPIVOTDATA(\"body\",knt_tab!$G$3,\"zavodnik\",R52))","v":34},null,23,{"$f":"IF(ISERR(GETPIVOTDATA(\"body\",knt_tab!$D$3,\"zavodnik\",knt_tab!D27)),\"\",IF(GETPIVOTDATA(\"body\",knt_tab!$D$3,\"zavodnik\",knt_tab!D27)=0,\"\",knt_tab!D27))","v":"Škoda Melichar"},{"$f":"IF(V52=\"\",\"\",GETPIVOTDATA(\"body\",knt_tab!$D$3,\"zavodnik\",V52))","v":6}]
[49,{"$f":"IF(ISERR(GETPIVOTDATA(\"body\",knt_tab!$A$3,\"zavodnik\",knt_tab!A54)),\"\",IF(GETPIVOTDATA(\"body\",knt_tab!$A$3,\"zavodnik\",knt_tab!A54)=0,\"\",knt_tab!A54))","v":"Čerchla Michal"},{"$f":"IF(B53=\"\",\"\",GETPIVOTDATA(\"body\",knt_tab!$A$3,\"zavodnik\",B53))","v":25},null,108,{"$f":"IF(ISERR(GETPIVOTDATA(\"body\",knt_tab!$A$3,\"zavodnik\",knt_tab!A115)),\"\",IF(GETPIVOTDATA(\"body\",knt_tab!$A$3,\"zavodnik\",knt_tab!A115)=0,\"\",knt_tab!A115))","v":"Fojtík Daniel"},{"$f":"IF(F53=\"\",\"\",GETPIVOTDATA(\"body\",knt_tab!$A$3,\"zavodnik\",F53))","v":4},null,"",{"$f":"IF(ISERR(GETPIVOTDATA(\"body\",knt_tab!$AE$3,\"zavodnik\",knt_tab!AE24)),\"\",IF(GETPIVOTDATA(\"body\",knt_tab!$AE$3,\"zavodnik\",knt_tab!AE24)=0,\"\",knt_tab!AE24))","v":""},{"$f":"IF(J53=\"\",\"\",GETPIVOTDATA(\"body\",knt_tab!$AE$3,\"zavodnik\",J53))","v":""},null,1,{"$f":"IF(ISERR(GETPIVOTDATA(\"body\",knt_tab!$P$3,\"zavodnik\",knt_tab!P5)),\"\",IF(GETPIVOTDATA(\"body\",knt_tab!$P$3,\"zavodnik\",knt_tab!P5)=0,\"\",knt_tab!P5))","v":"Kuželová Dominika"},{"$f":"IF(N53=\"\",\"\",GETPIVOTDATA(\"body\",knt_tab!$P$3,\"zavodnik\",N53))","v":58},null,7,{"$f":"IF(ISERR(GETPIVOTDATA(\"body\",knt_tab!$G$3,\"zavodnik\",knt_tab!G11)),\"\",IF(GETPIVOTDATA(\"body\",knt_tab!$G$3,\"zavodnik\",knt_tab!G11)=0,\"\",knt_tab!G11))","v":"Kožušník Vojtěch"},{"$f":"IF(R53=\"\",\"\",GETPIVOTDATA(\"body\",knt_tab!$G$3,\"zavodnik\",R53))","v":28},null,23,{"$f":"IF(ISERR(GETPIVOTDATA(\"body\",knt_tab!$D$3,\"zavodnik\",knt_tab!D28)),\"\",IF(GETPIVOTDATA(\"body\",knt_tab!$D$3,\"zavodnik\",knt_tab!D28)=0,\"\",knt_tab!D28))","v":"Galamboš Kristián"},{"$f":"IF(V53=\"\",\"\",GETPIVOTDATA(\"body\",knt_tab!$D$3,\"zavodnik\",V53))","v":6}]
[51,{"$f":"IF(ISERR(GETPIVOTDATA(\"body\",knt_tab!$A$3,\"zavodnik\",knt_tab!A55)),\"\",IF(GETPIVOTDATA(\"body\",knt_tab!$A$3,\"zavodnik\",knt_tab!A55)=0,\"\",knt_tab!A55))","v":"Černota Jiří"},{"$f":"IF(B54=\"\",\"\",GETPIVOTDATA(\"body\",knt_tab!$A$3,\"zavodnik\",B54))","v":24},null,108,{"$f":"IF(ISERR(GETPIVOTDATA(\"body\",knt_tab!$A$3,\"zavodnik\",knt_tab!A116)),\"\",IF(GETPIVOTDATA(\"body\",knt_tab!$A$3,\"zavodnik\",knt_tab!A116)=0,\"\",knt_tab!A116))","v":"Bechný Martin"},{"$f":"IF(F54=\"\",\"\",GETPIVOTDATA(\"body\",knt_tab!$A$3,\"zavodnik\",F54))","v":4},null,"",{"$f":"IF(ISERR(GETPIVOTDATA(\"body\",knt_tab!$AE$3,\"zavodnik\",knt_tab!AE25)),\"\",IF(GETPIVOTDATA(\"body\",knt_tab!$AE$3,\"zavodnik\",knt_tab!AE25)=0,\"\",knt_tab!AE25))","v":""},{"$f":"IF(J54=\"\",\"\",GETPIVOTDATA(\"body\",knt_tab!$AE$3,\"zavodnik\",J54))","v":""},null,{"$f":"IF(N54=\"\",\"\",IF(O54=O53,M53,ROW(M54)-ROW($M$52)))","v":2},{"$f":"IF(ISERR(GETPIVOTDATA(\"body\",knt_tab!$P$3,\"zavodnik\",knt_tab!P6)),\"\",IF(GETPIVOTDATA(\"body\",knt_tab!$P$3,\"zavodnik\",knt_tab!P6)=0,\"\",knt_tab!P6))","v":"Otáhalová Magdaléna"},{"$f":"IF(N54=\"\",\"\",GETPIVOTDATA(\"body\",knt_tab!$P$3,\"zavodnik\",N54))","v":27},null,8,{"$f":"IF(ISERR(GETPIVOTDATA(\"body\",knt_tab!$G$3,\"zavodnik\",knt_tab!G12)),\"\",IF(GETPIVOTDATA(\"body\",knt_tab!$G$3,\"zavodnik\",knt_tab!G12)=0,\"\",knt_tab!G12))","v":"To Adam"},{"$f":"IF(R54=\"\",\"\",GETPIVOTDATA(\"body\",knt_tab!$G$3,\"zavodnik\",R54))","v":20},null,23,{"$f":"IF(ISERR(GETPIVOTDATA(\"body\",knt_tab!$D$3,\"zavodnik\",knt_tab!D29)),\"\",IF(GETPIVOTDATA(\"body\",knt_tab!$D$3,\"zavodnik\",knt_tab!D29)=0,\"\",knt_tab!D29))","v":"Macháček Tomáš"},{"$f":"IF(V54=\"\",\"\",GETPIVOTDATA(\"body\",knt_tab!$D$3,\"zavodnik\",V54))","v":6}]
[51,{"$f":"IF(ISERR(GETPIVOTDATA(\"body\",knt_tab!$A$3,\"zavodnik\",knt_tab!A56)),\"\",IF(GETPIVOTDATA(\"body\",knt_tab!$A$3,\"zavodnik\",knt_tab!A56)=0,\"\",knt_tab!A56))","v":"Kuncová Viktorie"},{"$f":"IF(B55=\"\",\"\",GETPIVOTDATA(\"body\",knt_tab!$A$3,\"zavodnik\",B55))","v":24},null,113,{"$f":"IF(ISERR(GETPIVOTDATA(\"body\",knt_tab!$A$3,\"zavodnik\",knt_tab!A117)),\"\",IF(GETPIVOTDATA(\"body\",knt_tab!$A$3,\"zavodnik\",knt_tab!A117)=0,\"\",knt_tab!A117))","v":"Náplava Richard"},{"$f":"IF(F55=\"\",\"\",GETPIVOTDATA(\"body\",knt_tab!$A$3,\"zavodnik\",F55))","v":3},null,"",{"$f":"IF(ISERR(GETPIVOTDATA(\"body\",knt_tab!$AE$3,\"zavodnik\",knt_tab!AE26)),\"\",IF(GETPIVOTDATA(\"body\",knt_tab!$AE$3,\"zavodnik\",knt_tab!AE26)=0,\"\",knt_tab!AE26))","v":""},{"$f":"IF(J55=\"\",\"\",GETPIVOTDATA(\"body\",knt_tab!$AE$3,\"zavodnik\",J55))","v":""},null,{"$f":"IF(N55=\"\",\"\",IF(O55=O54,M54,ROW(M55)-ROW($M$52)))","v":3},{"$f":"IF(ISERR(GETPIVOTDATA(\"body\",knt_tab!$P$3,\"zavodnik\",knt_tab!P7)),\"\",IF(GETPIVOTDATA(\"body\",knt_tab!$P$3,\"zavodnik\",knt_tab!P7)=0,\"\",knt_tab!P7))","v":"Rodryčová Adéla"},{"$f":"IF(N55=\"\",\"\",GETPIVOTDATA(\"body\",knt_tab!$P$3,\"zavodnik\",N55))","v":23},null,9,{"$f":"IF(ISERR(GETPIVOTDATA(\"body\",knt_tab!$G$3,\"zavodnik\",knt_tab!G13)),\"\",IF(GETPIVOTDATA(\"body\",knt_tab!$G$3,\"zavodnik\",knt_tab!G13)=0,\"\",knt_tab!G13))","v":"Krischke Fabien"},{"$f":"IF(R55=\"\",\"\",GETPIVOTDATA(\"body\",knt_tab!$G$3,\"zavodnik\",R55))","v":19},null,23,{"$f":"IF(ISERR(GETPIVOTDATA(\"body\",knt_tab!$D$3,\"zavodnik\",knt_tab!D30)),\"\",IF(GETPIVOTDATA(\"body\",knt_tab!$D$3,\"zavodnik\",knt_tab!D30)=0,\"\",knt_tab!D30))","v":"Přidal Ladislav"},{"$f":"IF(V55=\"\",\"\",GETPIVOTDATA(\"body\",knt_tab!$D$3,\"zavodnik\",V55))","v":6}]
[51,{"$f":"IF(ISERR(GETPIVOTDATA(\"body\",knt_tab!$A$3,\"zavodnik\",knt_tab!A57)),\"\",IF(GETPIVOTDATA(\"body\",knt_tab!$A$3,\"zavodnik\",knt_tab!A57)=0,\"\",knt_tab!A57))","v":"Stark Vojtěch"},{"$f":"IF(B56=\"\",\"\",GETPIVOTDATA(\"body\",knt_tab!$A$3,\"zavodnik\",B56))","v":24},null,113,{"$f":"IF(ISERR(GETPIVOTDATA(\"body\",knt_tab!$A$3,\"zavodnik\",knt_tab!A118)),\"\",IF(GETPIVOTDATA(\"body\",knt_tab!$A$3,\"zavodnik\",knt_tab!A118)=0,\"\",knt_tab!A118))","v":"Benáčková Denisa"},{"$f":"IF(F56=\"\",\"\",GETPIVOTDATA(\"body\",knt_tab!$A$3,\"zavodnik\",F56))","v":3},null,null,null,null,null,{"$f":"IF(N56=\"\",\"\",IF(O56=O55,M55,ROW(M56)-ROW($M$52)))","v":4},{"$f":"IF(ISERR(GETPIVOTDATA(\"body\",knt_tab!$P$3,\"zavodnik\",knt_tab!P8)),\"\",IF(GETPIVOTDATA(\"body\",knt_tab!$P$3,\"zavodnik\",knt_tab!P8)=0,\"\",knt_tab!P8))","v":"Vavřínová Pavla"},{"$f":"IF(N56=\"\",\"\",GETPIVOTDATA(\"body\",knt_tab!$P$3,\"zavodnik\",N56))","v":6},null,10,{"$f":"IF(ISERR(GETPIVOTDATA(\"body\",knt_tab!$G$3,\"zavodnik\",knt_tab!G14)),\"\",IF(GETPIVOTDATA(\"body\",knt_tab!$G$3,\"zavodnik\",knt_tab!G14)=0,\"\",knt_tab!G14))","v":"Kulhánek Adam"},{"$f":"IF(R56=\"\",\"\",GETPIVOTDATA(\"body\",knt_tab!$G$3,\"zavodnik\",R56))","v":18},null,23,{"$f":"IF(ISERR(GETPIVOTDATA(\"body\",knt_tab!$D$3,\"zavodnik\",knt_tab!D31)),\"\",IF(GETPIVOTDATA(\"body\",knt_tab!$D$3,\"zavodnik\",knt_tab!D31)=0,\"\",knt_tab!D31))","v":"Vjaclovský David"},{"$f":"IF(V56=\"\",\"\",GETPIVOTDATA(\"body\",knt_tab!$D$3,\"zavodnik\",V56))","v":6}]
[54,{"$f":"IF(ISERR(GETPIVOTDATA(\"body\",knt_tab!$A$3,\"zavodnik\",knt_tab!A58)),\"\",IF(GETPIVOTDATA(\"body\",knt_tab!$A$3,\"zavodnik\",knt_tab!A58)=0,\"\",knt_tab!A58))","v":"Rodryčová Adéla"},{"$f":"IF(B57=\"\",\"\",GETPIVOTDATA(\"body\",knt_tab!$A$3,\"zavodnik\",B57))","v":23},null,{"$f":"IF(F57=\"\",\"\",IF(G57=G56,E56,ROW(E57)-ROW($E$3)+61))","v":113},{"$f":"IF(ISERR(GETPIVOTDATA(\"body\",knt_tab!$A$3,\"zavodnik\",knt_tab!A119)),\"\",IF(GETPIVOTDATA(\"body\",knt_tab!$A$3,\"zavodnik\",knt_tab!A119)=0,\"\",knt_tab!A119))","v":"Bravanský Marek"},{"$f":"IF(F57=\"\",\"\",GETPIVOTDATA(\"body\",knt_tab!$A$3,\"zavodnik\",F57))","v":3},null,"Juniorky",null,null,null,{"$f":"IF(N57=\"\",\"\",IF(O57=O56,M56,ROW(M57)-ROW($M$52)))","v":5},{"$f":"IF(ISERR(GETPIVOTDATA(\"body\",knt_tab!$P$3,\"zavodnik\",knt_tab!P9)),\"\",IF(GETPIVOTDATA(\"body\",knt_tab!$P$3,\"zavodnik\",knt_tab!P9)=0,\"\",knt_tab!P9))","v":"Benáčková Denisa"},{"$f":"IF(N57=\"\",\"\",GETPIVOTDATA(\"body\",knt_tab!$P$3,\"zavodnik\",N57))","v":3},null,11,{"$f":"IF(ISERR(GETPIVOTDATA(\"body\",knt_tab!$G$3,\"zavodnik\",knt_tab!G15)),\"\",IF(GETPIVOTDATA(\"body\",knt_tab!$G$3,\"zavodnik\",knt_tab!G15)=0,\"\",knt_tab!G15))","v":"Baudiš Michal"},{"$f":"IF(R57=\"\",\"\",GETPIVOTDATA(\"body\",knt_tab!$G$3,\"zavodnik\",R57))","v":17},null,23,{"$f":"IF(ISERR(GETPIVOTDATA(\"body\",knt_tab!$D$3,\"zavodnik\",knt_tab!D32)),\"\",IF(GETPIVOTDATA(\"body\",knt_tab!$D$3,\"zavodnik\",knt_tab!D32)=0,\"\",knt_tab!D32))","v":"Valošek Jakub"},{"$f":"IF(V57=\"\",\"\",GETPIVOTDATA(\"body\",knt_tab!$D$3,\"zavodnik\",V57))","v":6}]
[55,{"$f":"IF(ISERR(GETPIVOTDATA(\"body\",knt_tab!$A$3,\"zavodnik\",knt_tab!A59)),\"\",IF(GETPIVOTDATA(\"body\",knt_tab!$A$3,\"zavodnik\",knt_tab!A59)=0,\"\",knt_tab!A59))","v":"Kanclíř Šimon"},{"$f":"IF(B58=\"\",\"\",GETPIVOTDATA(\"body\",knt_tab!$A$3,\"zavodnik\",B58))","v":22},null,113,{"$f":"IF(ISERR(GETPIVOTDATA(\"body\",knt_tab!$A$3,\"zavodnik\",knt_tab!A120)),\"\",IF(GETPIVOTDATA(\"body\",knt_tab!$A$3,\"zavodnik\",knt_tab!A120)=0,\"\",knt_tab!A120))","v":"Martináková Stela"},{"$f":"IF(F58=\"\",\"\",GETPIVOTDATA(\"body\",knt_tab!$A$3,\"zavodnik\",F58))","v":3},null,"Pořadí","Příjmení","body",null,"",{"$f":"IF(ISERR(GETPIVOTDATA(\"body\",knt_tab!$P$3,\"zavodnik\",knt_tab!P10)),\"\",IF(GETPIVOTDATA(\"body\",knt_tab!$P$3,\"zavodnik\",knt_tab!P10)=0,\"\",knt_tab!P10))","v":""},{"$f":"IF(N58=\"\",\"\",GETPIVOTDATA(\"body\",knt_tab!$P$3,\"zavodnik\",N58))","v":""},null,12,{"$f":"IF(ISERR(GETPIVOTDATA(\"body\",knt_tab!$G$3,\"zavodnik\",knt_tab!G16)),\"\",IF(GETPIVOTDATA(\"body\",knt_tab!$G$3,\"zavodnik\",knt_tab!G16)=0,\"\",knt_tab!G16))","v":"Pospíšil Jan"},{"$f":"IF(R58=\"\",\"\",GETPIVOTDATA(\"body\",knt_tab!$G$3,\"zavodnik\",R58))","v":14},null,29,{"$f":"IF(ISERR(GETPIVOTDATA(\"body\",knt_tab!$D$3,\"zavodnik\",knt_tab!D33)),\"\",IF(GETPIVOTDATA(\"body\",knt_tab!$D$3,\"zavodnik\",knt_tab!D33)=0,\"\",knt_tab!D33))","v":"Fojtík Jiří"},{"$f":"IF(V58=\"\",\"\",GETPIVOTDATA(\"body\",knt_tab!$D$3,\"zavodnik\",V58))","v":4}]
[56,{"$f":"IF(ISERR(GETPIVOTDATA(\"body\",knt_tab!$A$3,\"zavodnik\",knt_tab!A60)),\"\",IF(GETPIVOTDATA(\"body\",knt_tab!$A$3,\"zavodnik\",knt_tab!A60)=0,\"\",knt_tab!A60))","v":"Chlebový Arnold"},{"$f":"IF(B59=\"\",\"\",GETPIVOTDATA(\"body\",knt_tab!$A$3,\"zavodnik\",B59))","v":21},null,113,{"$f":"IF(ISERR(GETPIVOTDATA(\"body\",knt_tab!$A$3,\"zavodnik\",knt_tab!A121)),\"\",IF(GETPIVOTDATA(\"body\",knt_tab!$A$3,\"zavodnik\",knt_tab!A121)=0,\"\",knt_tab!A121))","v":"Dryšl Adam"},{"$f":"IF(F59=\"\",\"\",GETPIVOTDATA(\"body\",knt_tab!$A$3,\"zavodnik\",F59))","v":3},null,1,{"$f":"IF(ISERR(GETPIVOTDATA(\"body\",knt_tab!$AB$3,\"zavodnik\",knt_tab!AB5)),\"\",IF(GETPIVOTDATA(\"body\",knt_tab!$AB$3,\"zavodnik\",knt_tab!AB5)=0,\"\",knt_tab!AB5))","v":"Polášková Kristýna"},{"$f":"IF(J59=\"\",\"\",GETPIVOTDATA(\"body\",knt_tab!$AB$3,\"zavodnik\",J59))","v":59},null,"",{"$f":"IF(ISERR(GETPIVOTDATA(\"body\",knt_tab!$P$3,\"zavodnik\",knt_tab!P11)),\"\",IF(GETPIVOTDATA(\"body\",knt_tab!$P$3,\"zavodnik\",knt_tab!P11)=0,\"\",knt_tab!P11))","v":""},{"$f":"IF(N59=\"\",\"\",GETPIVOTDATA(\"body\",knt_tab!$P$3,\"zavodnik\",N59))","v":""},null,12,{"$f":"IF(ISERR(GETPIVOTDATA(\"body\",knt_tab!$G$3,\"zavodnik\",knt_tab!G17)),\"\",IF(GETPIVOTDATA(\"body\",knt_tab!$G$3,\"zavodnik\",knt_tab!G17)=0,\"\",knt_tab!G17))","v":"Křenek Jakub"},{"$f":"IF(R59=\"\",\"\",GETPIVOTDATA(\"body\",knt_tab!$G$3,\"zavodnik\",R59))","v":14},null,29,{"$f":"IF(ISERR(GETPIVOTDATA(\"body\",knt_tab!$D$3,\"zavodnik\",knt_tab!D34)),\"\",IF(GETPIVOTDATA(\"body\",knt_tab!$D$3,\"zavodnik\",knt_tab!D34)=0,\"\",knt_tab!D34))","v":"Šelong Tadeáš"},{"$f":"IF(V59=\"\",\"\",GETPIVOTDATA(\"body\",knt_tab!$D$3,\"zavodnik\",V59))","v":4}]
[57,{"$f":"IF(ISERR(GETPIVOTDATA(\"body\",knt_tab!$A$3,\"zavodnik\",knt_tab!A61)),\"\",IF(GETPIVOTDATA(\"body\",knt_tab!$A$3,\"zavodnik\",knt_tab!A61)=0,\"\",knt_tab!A61))","v":"To Adam"},{"$f":"IF(B60=\"\",\"\",GETPIVOTDATA(\"body\",knt_tab!$A$3,\"zavodnik\",B60))","v":20},null,113,{"$f":"IF(ISERR(GETPIVOTDATA(\"body\",knt_tab!$A$3,\"zavodnik\",knt_tab!A122)),\"\",IF(GETPIVOTDATA(\"body\",knt_tab!$A$3,\"zavodnik\",knt_tab!A122)=0,\"\",knt_tab!A122))","v":"Zakaryan Erik"},{"$f":"IF(F60=\"\",\"\",GETPIVOTDATA(\"body\",knt_tab!$A$3,\"zavodnik\",F60))","v":3},null,{"$f":"IF(J60=\"\",\"\",IF(K60=K59,I59,ROW(I60)-ROW($I$58)))","v":2},{"$f":"IF(ISERR(GETPIVOTDATA(\"body\",knt_tab!$AB$3,\"zavodnik\",knt_tab!AB6)),\"\",IF(GETPIVOTDATA(\"body\",knt_tab!$AB$3,\"zavodnik\",knt_tab!AB6)=0,\"\",knt_tab!AB6))","v":"Martínková Adéla"},{"$f":"IF(J60=\"\",\"\",GETPIVOTDATA(\"body\",knt_tab!$AB$3,\"zavodnik\",J60))","v":46},null,"",{"$f":"IF(ISERR(GETPIVOTDATA(\"body\",knt_tab!$P$3,\"zavodnik\",knt_tab!P12)),\"\",IF(GETPIVOTDATA(\"body\",knt_tab!$P$3,\"zavodnik\",knt_tab!P12)=0,\"\",knt_tab!P12))","v":""},{"$f":"IF(N60=\"\",\"\",GETPIVOTDATA(\"body\",knt_tab!$P$3,\"zavodnik\",N60))","v":""},null,14,{"$f":"IF(ISERR(GETPIVOTDATA(\"body\",knt_tab!$G$3,\"zavodnik\",knt_tab!G18)),\"\",IF(GETPIVOTDATA(\"body\",knt_tab!$G$3,\"zavodnik\",knt_tab!G18)=0,\"\",knt_tab!G18))","v":"Neuwirt Petr"},{"$f":"IF(R60=\"\",\"\",GETPIVOTDATA(\"body\",knt_tab!$G$3,\"zavodnik\",R60))","v":13},null,31,{"$f":"IF(ISERR(GETPIVOTDATA(\"body\",knt_tab!$D$3,\"zavodnik\",knt_tab!D35)),\"\",IF(GETPIVOTDATA(\"body\",knt_tab!$D$3,\"zavodnik\",knt_tab!D35)=0,\"\",knt_tab!D35))","v":"Románek Jakub"},{"$f":"IF(V60=\"\",\"\",GETPIVOTDATA(\"body\",knt_tab!$D$3,\"zavodnik\",V60))","v":3}]
[58,{"$f":"IF(ISERR(GETPIVOTDATA(\"body\",knt_tab!$A$3,\"zavodnik\",knt_tab!A62)),\"\",IF(GETPIVOTDATA(\"body\",knt_tab!$A$3,\"zavodnik\",knt_tab!A62)=0,\"\",knt_tab!A62))","v":"Krischke Fabien"},{"$f":"IF(B61=\"\",\"\",GETPIVOTDATA(\"body\",knt_tab!$A$3,\"zavodnik\",B61))","v":19},null,113,{"$f":"IF(ISERR(GETPIVOTDATA(\"body\",knt_tab!$A$3,\"zavodnik\",knt_tab!A123)),\"\",IF(GETPIVOTDATA(\"body\",knt_tab!$A$3,\"zavodnik\",knt_tab!A123)=0,\"\",knt_tab!A123))","v":"Chmela Tomáš"},{"$f":"IF(F61=\"\",\"\",GETPIVOTDATA(\"body\",knt_tab!$A$3,\"zavodnik\",F61))","v":3},null,{"$f":"IF(J61=\"\",\"\",IF(K61=K60,I60,ROW(I61)-ROW($I$58)))","v":3},{"$f":"IF(ISERR(GETPIVOTDATA(\"body\",knt_tab!$AB$3,\"zavodnik\",knt_tab!AB7)),\"\",IF(GETPIVOTDATA(\"body\",knt_tab!$AB$3,\"zavodnik\",knt_tab!AB7)=0,\"\",knt_tab!AB7))","v":"Kuncová Viktorie"},{"$f":"IF(J61=\"\",\"\",GETPIVOTDATA(\"body\",knt_tab!$AB$3,\"zavodnik\",J61))","v":8},null,"",{"$f":"IF(ISERR(GETPIVOTDATA(\"body\",knt_tab!$P$3,\"zavodnik\",knt_tab!P13)),\"\",IF(GETPIVOTDATA(\"body\",knt_tab!$P$3,\"zavodnik\",knt_tab!P13)=0,\"\",knt_tab!P13))","v":""},{"$f":"IF(N61=\"\",\"\",GETPIVOTDATA(\"body\",knt_tab!$P$3,\"zavodnik\",N61))","v":""},null,15,{"$f":"IF(ISERR(GETPIVOTDATA(\"body\",knt_tab!$G$3,\"zavodnik\",knt_tab!G19)),\"\",IF(GETPIVOTDATA(\"body\",knt_tab!$G$3,\"zavodnik\",knt_tab!G19)=0,\"\",knt_tab!G19))","v":"Hegner Leoš"},{"$f":"IF(R61=\"\",\"\",GETPIVOTDATA(\"body\",knt_tab!$G$3,\"zavodnik\",R61))","v":8},null,31,{"$f":"IF(ISERR(GETPIVOTDATA(\"body\",knt_tab!$D$3,\"zavodnik\",knt_tab!D36)),\"\",IF(GETPIVOTDATA(\"body\",knt_tab!$D$3,\"zavodnik\",knt_tab!D36)=0,\"\",knt_tab!D36))","v":"Bravanský Marek"},{"$f":"IF(V61=\"\",\"\",GETPIVOTDATA(\"body\",knt_tab!$D$3,\"zavodnik\",V61))","v":3}]
[59,{"$f":"IF(ISERR(GETPIVOTDATA(\"body\",knt_tab!$A$3,\"zavodnik\",knt_tab!A63)),\"\",IF(GETPIVOTDATA(\"body\",knt_tab!$A$3,\"zavodnik\",knt_tab!A63)=0,\"\",knt_tab!A63))","v":"Kulhánek Adam"},{"$f":"IF(B62=\"\",\"\",GETPIVOTDATA(\"body\",knt_tab!$A$3,\"zavodnik\",B62))","v":18},null,113,{"$f":"IF(ISERR(GETPIVOTDATA(\"body\",knt_tab!$A$3,\"zavodnik\",knt_tab!A124)),\"\",IF(GETPIVOTDATA(\"body\",knt_tab!$A$3,\"zavodnik\",knt_tab!A124)=0,\"\",knt_tab!A124))","v":"Románek Jakub"},{"$f":"IF(F62=\"\",\"\",GETPIVOTDATA(\"body\",knt_tab!$A$3,\"zavodnik\",F62))","v":3},null,{"$f":"IF(J62=\"\",\"\",IF(K62=K61,I61,ROW(I62)-ROW($I$58)))","v":""},{"$f":"IF(ISERR(GETPIVOTDATA(\"body\",knt_tab!$AB$3,\"zavodnik\",knt_tab!AB8)),\"\",IF(GETPIVOTDATA(\"body\",knt_tab!$AB$3,\"zavodnik\",knt_tab!AB8)=0,\"\",knt_tab!AB8))","v":""},{"$f":"IF(J62=\"\",\"\",GETPIVOTDATA(\"body\",knt_tab!$AB$3,\"zavodnik\",J62))","v":""},null,"",{"$f":"IF(ISERR(GETPIVOTDATA(\"body\",knt_tab!$P$3,\"zavodnik\",knt_tab!P14)),\"\",IF(GETPIVOTDATA(\"body\",knt_tab!$P$3,\"zavodnik\",knt_tab!P14)=0,\"\",knt_tab!P14))","v":""},{"$f":"IF(N62=\"\",\"\",GETPIVOTDATA(\"body\",knt_tab!$P$3,\"zavodnik\",N62))","v":""},null,15,{"$f":"IF(ISERR(GETPIVOTDATA(\"body\",knt_tab!$G$3,\"zavodnik\",knt_tab!G20)),\"\",IF(GETPIVOTDATA(\"body\",knt_tab!$G$3,\"zavodnik\",knt_tab!G20)=0,\"\",knt_tab!G20))","v":"Konvičný Dominik"},{"$f":"IF(R62=\"\",\"\",GETPIVOTDATA(\"body\",knt_tab!$G$3,\"zavodnik\",R62))","v":8},null,33,{"$f":"IF(ISERR(GETPIVOTDATA(\"body\",knt_tab!$D$3,\"zavodnik\",knt_tab!D37)),\"\",IF(GETPIVOTDATA(\"body\",knt_tab!$D$3,\"zavodnik\",knt_tab!D37)=0,\"\",knt_tab!D37))","v":"Murin Jan"},{"$f":"IF(V62=\"\",\"\",GETPIVOTDATA(\"body\",knt_tab!$D$3,\"zavodnik\",V62))","v":2}]
[59,{"$f":"IF(ISERR(GETPIVOTDATA(\"body\",knt_tab!$A$3,\"zavodnik\",knt_tab!A64)),\"\",IF(GETPIVOTDATA(\"body\",knt_tab!$A$3,\"zavodnik\",knt_tab!A64)=0,\"\",knt_tab!A64))","v":"Raška Michael"},{"$f":"IF(B63=\"\",\"\",GETPIVOTDATA(\"body\",knt_tab!$A$3,\"zavodnik\",B63))","v":18},null,{"$f":"IF(F63=\"\",\"\",IF(G63=G62,E62,ROW(E63)-ROW($E$3)+61))","v":113},{"$f":"IF(ISERR(GETPIVOTDATA(\"body\",knt_tab!$A$3,\"zavodnik\",knt_tab!A125)),\"\",IF(GETPIVOTDATA(\"body\",knt_tab!$A$3,\"zavodnik\",knt_tab!A125)=0,\"\",knt_tab!A125))","v":"Pravda Pavel"},{"$f":"IF(F63=\"\",\"\",GETPIVOTDATA(\"body\",knt_tab!$A$3,\"zavodnik\",F63))","v":3},null,"",{"$f":"IF(ISERR(GETPIVOTDATA(\"body\",knt_tab!$AB$3,\"zavodnik\",knt_tab!AB9)),\"\",IF(GETPIVOTDATA(\"body\",knt_tab!$AB$3,\"zavodnik\",knt_tab!AB9)=0,\"\",knt_tab!AB9))","v":""},{"$f":"IF(J63=\"\",\"\",GETPIVOTDATA(\"body\",knt_tab!$AB$3,\"zavodnik\",J63))","v":""},null,"",{"$f":"IF(ISERR(GETPIVOTDATA(\"body\",knt_tab!$P$3,\"zavodnik\",knt_tab!P15)),\"\",IF(GETPIVOTDATA(\"body\",knt_tab!$P$3,\"zavodnik\",knt_tab!P15)=0,\"\",knt_tab!P15))","v":""},{"$f":"IF(N63=\"\",\"\",GETPIVOTDATA(\"body\",knt_tab!$P$3,\"zavodnik\",N63))","v":""},null,15,{"$f":"IF(ISERR(GETPIVOTDATA(\"body\",knt_tab!$G$3,\"zavodnik\",knt_tab!G21)),\"\",IF(GETPIVOTDATA(\"body\",knt_tab!$G$3,\"zavodnik\",knt_tab!G21)=0,\"\",knt_tab!G21))","v":"Štverka Matyáš"},{"$f":"IF(R63=\"\",\"\",GETPIVOTDATA(\"body\",knt_tab!$G$3,\"zavodnik\",R63))","v":8},null,33,{"$f":"IF(ISERR(GETPIVOTDATA(\"body\",knt_tab!$D$3,\"zavodnik\",knt_tab!D38)),\"\",IF(GETPIVOTDATA(\"body\",knt_tab!$D$3,\"zavodnik\",knt_tab!D38)=0,\"\",knt_tab!D38))","v":"Jančata Daniel"},{"$f":"IF(V63=\"\",\"\",GETPIVOTDATA(\"body\",knt_tab!$D$3,\"zavodnik\",V63))","v":2}]